Workbook

Sheet Info

Sheet Trial

Sheet Instructions
A1: Excel Skills | Financial Statements Template - Non-Profit Organization
A2: Instructions
A3: www.excel-skills.com
A5: This template enables users to compile comprehensive non-profit organization (NPO) financial statements in accordance with International Financial Reporting Standards for Small & Medium Enterprises (IFRS for SME's) based on any trial balance regardless of the account structure. The financial statements are compiled by linking each account in the trial balance to a pre-defined financial statement reporting class and all the amounts on the financial statements are automatically calculated based on the linked reporting classes. The template also facilitates including financial information which is not derived from a trial balance and can easily be rolled forward or back by simply changing the reporting year in a single input cell.
A7: Disclaimer: The aim of this template is to assist users in compiling a standard set of annual financial statements and we can therefore not guarantee that all the annual financial statement disclosures which are required for the particular business will be accommodated in the template design. The user therefore remains solely responsible for ensuring the accuracy and completeness of financial statement disclosure.
A9: Note: This template has been designed for non-profit organizations - we also provide separate versions of the template for sole practitioners, trusts, companies and closed corporations.
A11: The template includes the following sheets:
A12: Setup - enter your business name, add a currency symbol and specify the financial year-end month and the reporting year. The reporting year that is specified determines which annual periods will be included in the current and comparative periods on the financial statements.
A13: Classes - this sheet contains all the pre-defined financial statement reporting classes which should be used to link the accounts on the trial balance to the calculations on the financial statements. The class descriptions included on this sheet are displayed on the financial statements and the sheet also includes error checking in the columns with light blue column headings which highlights errors in the linking of the reporting classes.
A14: TB - a complete trial balance for each annual period should be included on this sheet and each account in the trial balance should be linked to the appropriate financial statement reporting class by entering or copying the class code into column B. The amounts that are included on the financial statements are automatically updated based on the classes specified on this sheet.
A15: FinInfo - this sheet contains financial statement information which is incorporated in the financial statements but not derived from the trial balance. Users are therefore required to enter the appropriate values for each annual period which is included in the template. The values specified on this sheet are automatically included on the financial statements based on the pre-defined code which included in column B.
A16: AFS - this sheet includes a complete set of financial statements which is automatically compiled based on the reporting year selected on the Setup sheet, the account balances included on the TB sheet and the financial information included on the FinInfo sheet. The reporting class codes which are used to populate each line item are included in column A.
A17: TBImport - the calculations on this sheet enables users to review the sequence of trial balance accounts before copying the account balances to the TB sheet. The sequence of accounts can be amended until no errors are reflected and the calculations in column E round all trial balance amounts to the nearest integer value thereby ensuring that all the totals on the annual financial statements are accurate.
A19: In order to start using the template, you basically need to complete the following steps:
A20: ■ Change the default settings in the cells with yellow cell backgrounds on the Setup sheet.
A21: ■ If you do not want to use your own account structure and you would rather use our standard template setup, you only need to include your annual trial balance values on the TB sheet. All the reporting classes will automatically be linked to the appropriate account balances and populated on the financial statements (AFS sheet).
A22: ■ If you want to use your own account structure, replace our default data by copying the account numbers, account descriptions and balances of all the accounts on your trial balance onto the TB sheet and then link each individual account to the appropriate reporting class by copying or entering the class code into column B. The full list of all the classes that are linked to the financial statements are included on the Classes sheet.
A23: ■ We recommend using the TBImport sheet when copying trial balance data into the template. This sheet checks whether the sequence of accounts on the sheet and the sequence of accounts on the TB sheet are the same which makes it easier to copy your account balances. The sheet also rounds all balances to the nearest integer which ensures that the totals on the financial statements are always displayed correctly.
A24: ■ Once you have added your trial balance data, add the appropriate non-trial balance financial statement data to the FinInfo sheet.
A25: ■ Review your financial statements on the AFS sheet and customize the data that needs to be entered on this sheet (as indicated in the columns next to the financial statements). The reporting class codes that relate to each line on the financial statements are included in column A which makes it easy to determine which account balances or other financial information is included in each financial statement line item.
A26: ■ You can now hide the lines that you do not want to include in your financial statements and then move the column headings to the appropriate locations based on your amended page setup.
A28: Note: These are only the main steps that need to be completed and we strongly recommend that you go through the instructions below in order to obtain a more thorough understanding of the template design.
A30: Setup
A32: The input cells with yellow cell backgrounds on the Setup sheet need to be completed in order to set the template up for your business. The business name is included as a heading on all the sheets and also as a heading on all the financial statement pages.
A34: The currency symbol is included below the year headings on the financial statements. The year-end month is used to determine the appropriate year-end date and previous year-end date which are included in a number of notes to the financial statements.
A36: The reporting year determines which annual period is used as the current reporting period in the financial statements. The comparative year is also determined based on the input in this cell and all the values included on the TB sheet and the FinInfo sheet are included in the automated financial statement calculations based on the year entered in this cell.
A38: Note: You can therefore automatically roll the financial statements forward or back by simply changing the reporting year on the Setup sheet. All the calculations on the financial statements will be updated automatically after editing the value in this cell.
A40: The reporting date and the first day, last day and last day text next to it are all determined based on the year-end month and reporting year which have been specified. These dates are used in the headings of the financial statements and in multiple notes.
A42: The total number of pages is only used to determine the total number of pages that needs to be included in the table of contents on the financial statements. The default value may need to be changed after customizing the financial statements and determining the total number of pages which will be printed.
A44: The input in the date of approval cell is used as the financial statement approval date below the table of contents in the financial statements. If the cell is left blank, the month-end date of the month which is two months after the year-end date is used.
A46: Reporting Classes
A48: The default reporting classes which are used to link the trial balance values to the financial statement line items are included on the Classes sheet. These reporting classes need to be linked to each account in the trial balance and are included in column A on the AFS sheet next to the line items which are calculated based on the respective reporting classes.
A50: Note: We strongly recommend using our default reporting classes and only adding new classes if they are required. Changing the structure of the reporting class codes may lead to inaccuracies in the financial statements.
A52: The first letter of all reporting class codes should start with the type of account which it will be used for. All income statement accounts should start with an "I" and all balance sheet accounts should start with a "B". This is followed by a hyphen, a two-digit account group number, a two-digit account number (if needed) and all reporting class codes should end with a "G".
A54: Note: There are exceptions to this general reporting class code structure which will be covered later on in these instructions. The code convention used in this template is also consistent with the code convention that we use in some of our other accounting templates.
A56: Most of the line items on the financial statements are automatically populated based on the reporting classes which are included in column A on the AFS sheet. We have used different colours to indicate the type of reporting class used for each line item - there are basically 5 types of reporting class codes:
A57: GREEN - these reporting class codes are based on the trial balance values on the TB sheet and use a universal formula which can be copied to any line on the financial statements.
A58: ORANGE - these reporting class codes are based on the financial information on the FinInfo sheet but also use a universal formula which can be copied to any line on the financial statements. The sheet from which the calculation is sourced is different but the formula is exactly the same as the green class formula. The formulas for orange and green items are therefore inter-changeable.
A59: BLUE - these reporting class codes are based on the trial balance values on the TB sheet but use a formula which is specific for the note on the financial statement that the reporting class forms part of. These formulas should only be copied within the same note if you need to add additional items and cannot be copied to any other location in the financial statements otherwise it will result in inaccuracies.
A60: RED - these reporting class codes are based on the financial information on the FinInfo sheet and use a formula which is specific for the note on the financial statement that the reporting class forms part of. These formulas should only be copied within the same note if you need to add additional items and cannot be copied to any other location in the financial statements otherwise it will result in inaccuracies.
A61: PURPLE - these calculations are balancing calculations which means that they have been included in order to ensure that the financial statements balance. The calculations should therefore always result in nil values. These items are typically used where the appropriate balance sheet item is included in one account on the trial balance but require multiple lines on the financial statements. The multiple lines are then included individually and the balancing entry is added to ensure that the multiple lines add up to the account balance on the trial balance. If a balancing line item therefore contains values, it means that there is something wrong!
A63: The reporting classes included on the Classes sheet should only be used to link the trial balance values on the TB sheet to the financial statements. The reporting classes that should be used for the financial information on the FinInfo sheet are covered later on in the instructions.
A65: The default reporting class which is used for each income statement and balance sheet item included on the trial balance are based on the same reporting classes that we use in our other accounting templates. Each account group has its own two-digit account number as indicated on the Classes sheet.
A67: Linking account groups to financial statement items is the main premise of the template design but we have also accommodated variations of the account group links in order to facilitate flexible reporting functionality. The flexibility of these variations is best explained by way of a few examples:
A69: Example 1 - Account Group Links
A71: Account groups can be identified by the two-digit number which follows the hyphen in the reporting class code. The reporting class for the sales account group is IS-01 and the reporting class of the cost of sales account group is IS-02. If you want to include all the accounts that form part of an account group in a single line on the financial statements, you can use the account group followed by a "G" (because all reporting classes need to end with a "G") as the reporting class and link multiple accounts in the trial balance to the same reporting class code.
A73: For example, there are three cost of sales accounts on our default trial balance and all three accounts are linked to the same reporting class which means that they will report in one line on the income statement in the financial statements (AFS sheet). Refer to the cost of sales line on the income statement (AFS sheet) and you will see the IS-02G code in column A.
A75: Example 2 - Account Number Links
A77: A good example of these links are the operating expense accounts which are included in the detailed income statement on the AFS sheet. If we used the account group code for operating expenses (IS-03G), linked each IS-03 account on the trial balance to this reporting class and included this reporting class on the income statement on the AFS sheet, all operating expenses would have been included in one line.
A79: We wanted to include a detailed income statement and we therefore had to separate the IS-03 account group into multiple reporting class codes so that we could include multiple lines for the same account group on the income statement. We did this by simply adding another two-digit number after the account group number and before the "G" and included the new reporting classes in column A next to the income statement on the AFS sheet.
A81: Note: The four-digit reporting class number does not need to be the same as the account numbers on the trial balance - it can be any number as long as it is unique. You can also link multiple trial balance accounts to these account level reporting classes by using the same reporting class codes for the appropriate individual accounts on the trial balance.
A83: Example 3 - Additional Disclosure
A85: In some instances, you may want to be able to include an account in the financial statements as part of an account group but also to include the account individually as an additional disclosure. In cases like these, you need to link the account to a reporting class which has the same characters as the account group reporting class and to then include additional unique characters at the end of the reporting class code.
A87: For example, a loss on the disposal of property, plant & equipment needs to be included in the other expenses account group total but also as an additional disclosure under the profit before tax note. The first part of the reporting class therefore needs to be the same as the other expenses account group reporting class (I-08G) and we then add additional characters to this class which results in a unique reporting class for this account.
A89: We therefore use a reporting class of I-08G02G for this account. Note that the first 5 characters are the same as the account group reporting class which means that this account will be included in the other expenses total on the income statement but the "02" makes it unique and enables us to include just the amount for this item under the profit before tax note. We end with another "G" because all reporting classes need to end with a "G".
A91: New reporting classes
A93: If you want to create a new reporting class for an item which we have not provided for in our standard template setup, you can add the new reporting class in the appropriate location on the Classes sheet by inserting a new row (anywhere above the "End of list" row), entering a new unique reporting class code in column A (remember to end with a "G") and entering a description for the reporting class. You also need to copy the formulas in the other columns on the Classes sheet to ensure that error checking is applied to your new reporting class.
A95: Once you have added your new reporting class to the Classes sheet, you can use it to link accounts in your trial balance (on the TB sheet) to the reporting class by simply copying the new reporting class into column B next to the appropriate account numbers on the TB sheet.
A97: You also need to add the new reporting class to the AFS sheet to ensure that the appropriate amounts are included in your financial statements. If the new reporting class needs to be included on the face of the income statement or balance sheet, you can insert a new row in the appropriate location, copy the formulas from any row with a green reporting class and replace the copied class in column A with your new reporting class code.
A99: If you want to include the new reporting class in the notes to the financial statements, you need to insert the appropriate number of rows required for your new note, copy one of the other notes with a similar structure, change the reporting class code in column A to your new reporting class code and then link your note to the appropriate row on the income statement or balance sheet.
A101: Class Descriptions
A103: The line item formulas in column B on the AFS sheet include the descriptions in column B on the Classes sheet as the line item descriptions for all lines linked to a green reporting class. If you therefore want to edit the line item descriptions on the financial statements, you need to edit the class descriptions in column B on the Classes sheet.
A105: Error Checking
A107: The Classes sheet also contains four columns with light blue column headings which include formulas which are used for error checking. These formulas should be copied for all new reporting classes which are added to the sheet.
A109: The Code Status column contains formulas which check that all reporting classes start with either an "I" for income statement accounts or a "B" for balance sheet accounts and that all codes end with a "G". If this is not the case, the appropriate row will contain an error status.
A111: The TB Status column indicates whether the reporting class code has been linked to an account on the trial balance (TB sheet). If the reporting class is used on the TB sheet, the status will display "ok". The AFS Status column indicates whether the reporting class code has been added to the financial statements on the AFS sheet. If the reporting class has been added to the AFS sheet, the status will display "ok".
A113: The Error Status column checks whether all reporting class codes which have been linked to accounts on the TB sheet are included on the AFS sheet. If a class has been linked to an account on the TB sheet and not included on the AFS sheet, an "add!" status will be displayed.
A115: Note: If classes are linked to accounts on the TB sheet and not included on the AFS sheet, your financial statements will not balance. We have therefore included conditional formatting on the Classes sheet which highlights the Error Status column heading in red if there are any errors in this column. If the Error Status column heading is highlighted in red, find the class which displays an "add!" status in this column and add it in the appropriate location on the financial statements (AFS sheet).
A117: Trial Balance
A119: A complete trial balance should be included on the TB sheet for each annual reporting period which needs to be included in the financial statements. All the account numbers and account descriptions which form part of the trial balance need to be included in column C and D on the TB sheet and the account balances need to be entered into the columns from column E onwards.
A121: Each account in the trial balance needs to be linked to one of the pre-defined reporting classes on the Classes sheet by entering or copying the appropriate class code into column B. These class codes determine where in the financial statements the appropriate account balances will be included.
A123: Note: The Status column (A) contains a formula which needs to be copied for all new lines that are added to the TB sheet. This column will contain a "class!" status if the reporting class included in column B is not included on the Classes sheet and an "add!" status if the reporting class has not been included in the financial statements (column A of the AFS sheet). If the reporting class is included on the Classes and AFS sheets, the status will reflect "ok".
A125: There are two ways of including your trial balance data into the template. You can use our existing account numbers and descriptions and just include your annual trial balance values in the other columns on the TB sheet which means that all the accounts will already be linked to the financial statements or you can replace our default data with your own trial balance data.
A127: If you follow the second approach, each account in your trial balance needs to be linked to one of the financial statement reporting classes listed on the Classes sheet. The template will contain default data on the TB sheet when you use it for the first time but you can replace all the account numbers and descriptions with your own and clear all the class codes in column B before you commence with the exercise of linking your accounts to the appropriate pre-defined financial statement reporting classes.
A129: After clearing all the class codes from column B, you need to refer to the Classes sheet in order to determine which accounts need to be linked to which financial statement reporting classes. Note that you do not need to use all the default classes if they are not required but it is imperative that each account is linked to a class. After completing the linking exercise, there should therefore be no blank values in column B.
A131: Note: All the accounts which are included in your trial balance should be entered in a continuous cell range on the TB sheet - there should not be any blank rows or columns in between account numbers or financial periods otherwise all the accounts or periods may not be included in the financial statement calculations and your balance sheet may therefore not balance!
A133: We have also included totals above the column headings which will indicate if the sum of the account balances for any annual period does not equal nil. If the total of all the account balances in a trial balance does not equal nil, it means that the financial statements will not be accurate and that the balance sheet will not balance. You should therefore always ensure that the trial balance for each annual period adds up to a nil value.
A135: New businesses
A137: When compiling financial statements for a new business, you only need to include the account balances of the current financial reporting period on the TB sheet. All the amounts for the comparative financial year on the financial statements will be nil.
A139: The TB sheet contains a number of default years - you can therefore change the column heading in column E to the appropriate current financial year and change all the subsequent columns to the appropriate subsequent years. Also remember to enter the correct reporting year on the Setup sheet.
A141: Note: The financial statements on the AFS sheet contain a current and comparative period. If you use the financial statements for a new business and only include values for one year, the comparative year will contain zero values in all rows. You cannot delete these values but you can format them as white text so that they are not visible when you print the financial statements.
A143: Existing businesses
A145: When compiling financial statements for an existing business, you need to include the trial balances of at least the last two financial years on the TB sheet but you will also need to include the balance sheet balances of a third year so that the cash flow calculations in the financial statements are accurate.
A147: We therefore recommend that users include the complete trial balances of at least three financial years on the TB sheet when using the template to compile financial statements for existing businesses. If you only include the balance sheet of the third financial year (the year prior to the comparative financial period), it is absolutely essential that the trial balance still balances and that the retained surplus balance is calculated accurately, otherwise your financial statements for the comparative year may not be accurate.
A149: The TB sheet contains eight financial periods by default and in most instances, these financial periods will represent the financial periods required for existing businesses. If you are compiling financial statements for previous periods, you may however need to change the column headings accordingly (start with the year before the comparative period in column E). Also remember to enter the correct reporting year on the Setup sheet so that the financial statements are compiled for the correct period!
A151: Adding new financial periods
A153: After using the template to compile your first set of financial statements, you can add subsequent financial periods by simply copying the last column on the TB sheet to the next available column, changing the column heading to the next financial period and clearing all the account balances in the new column (we recommend replacing the existing values with nil values before entering or copying the appropriate account balances into the new column).
A155: Note: The same procedure can be followed to also add the new financial period to the FinInfo sheet but before you replace all the values in the new column with nil values, note that some of these values will need to remain unchanged for the next financial period.
A157: Note: All the trial balance data on the TB sheet should form part of a continuous cell range and you should therefore not include any blank rows or columns between rows or columns that contain data otherwise the financial statement calculations will not be accurate.
A159: Trial balance check & import
A161: If you use a trail balance export file in order to compile financial statements, the trial balance export will have to be converted so that the account numbers are in the exact same sequence as the accounts on the TB sheet before you will be able to copy the balances onto the TB sheet. This is an absolute necessity in order to ensure that the correct account balances are included next to the correct account number.
A163: New accounts may also have been added during the current financial period which may not be included in the previous trial balance on the TB sheet. These accounts therefore need to be identified and inserted in the correct row position before the account balances can be copied. This could be quite a time-consuming exercise and we have therefore created the TBImport sheet to assist users in simplifying this exercise.
A165: The following steps need to be completed in order to ensure that the trial balance for the new financial period is correctly included on the TB sheet:
A166: ■ Sort the data on the TB sheet in an ascending order based on the account number in column C.
A167: ■ Sort the data on the trial balance export file in an ascending order based on the account number column.
A168: ■ Copy the account number, account description and account balance from the export file and paste the data into column A to C on the TBImport sheet (replace the existing data on this sheet).
A169: ■ Copy cells D5 and E5 and paste these cells into all the rows in column D and E that contain account numbers. Note that these two cells contain formulas and formatting which will assist you in identifying new accounts or changes that need to be made to the sequence of the accounts in the export file.
A170: ■ Review the contents in column D - a row that contains a green "ok" cell is in the correct sequence but if an "error" is displayed in orange, it means that the sequence of accounts on the TBImport sheet is not the same as the accounts on the TB sheet.
A171: ■ Compare the contents of all the rows which contain errors by comparing the account sequence on the TBImport sheet with the account sequence on the TB sheet.
A172: ■ Where an account is included on the TBImport sheet but not on the TB sheet, insert a new row on the TB sheet, copy the account number and description into column C and D and enter a nil value into all the columns which relate to previous financial periods. After completing these steps, the error in the particular row will automatically be removed from the TBImport sheet.
A173: ■ Where an account is included on the TB sheet but not on the TBImport sheet, insert a new row on the TBImport sheet, copy the account number & description from the TB sheet and copy the formulas in column D and E from one of the existing rows. Column D should now contain a green "ok" message.
A174: ■ Repeat the previous two steps until the TBImport sheet contains no errors.
A175: ■ Ensure that the total of the amounts in column E on the TBImport sheet is nil - the total calculation is included in the row above the column headings. If the total is not nil, the difference will be reflected in orange in the cell above the column headings with an "error" message next to it. The difference may be attributable to rounding which is covered in the next section of these instructions.
A176: ■ If the column E total is not nil and the difference cannot be attributable to rounding, review your trial balance export and make sure that the total of the export file is in fact nil. Also review the TBImport sheet and ensure that all the accounts on the trial balance export have been added to this sheet.
A177: ■ Rounding errors can be corrected by amending the trial balance amounts of selected accounts in column C. When the orange cell background is removed from the total calculation and the "error" text is replaced by an "ok" message, it means that the trial balance has been corrected.
A178: ■ The amounts in column E can now be copied and pasted as values in the appropriate column (for the new period) on the TB sheet. After completing this step, the trial balance has been imported successfully into the template.
A180: Rounding in financial statements
A182: Rounding can have a significant impact on financial statements because the amounts that are displayed on the financial statements may not always add up to the totals displayed. Even the most insignificant of errors could result in financial statements appearing to be inaccurate and as a consequence also result in the value of the financial information which is included in the financial statements being questioned.
A184: Checking all the calculations in financial statements and making the appropriate adjustments could be quite a time consuming and cumbersome approach and we therefore recommend making the required adjustments on a trial balance level instead. This approach will ensure that the calculations included in the financial statements are always accurate and negate the need to go through the entire cumbersome (manual) calculation exercise.
A186: The problem with rounding in financial statement terms is that a trial balance typically includes two decimal values while financial statements are typically compiled to the nearest integer value. When two amounts that contain decimal values are rounded and added, the result is not necessarily the same as the rounded value of the total but if the decimal values are rounded to the nearest integer value and then added, the total that is calculated is guaranteed to be accurate.
A188: This approach is followed in the calculations in column E on the TBImport sheet in that the trial balance amounts in column C are rounded to the nearest integer value in column E. If you therefore use the TBImport sheet to round all the amounts on the trial balance to the nearest integer values before correcting any rounding differences that may exist and copying & pasting the values onto the TB sheet, your financial statements are guaranteed to be accurate. We therefore recommend always using the TBImport sheet before including the appropriate trial balance amounts for a new financial period on the TB sheet.
A190: Financial Information
A192: Note: We provide separate versions of the financial statements template for different entity types but the financial information in this section of the instructions is generic which means that not all the items covered will be applicable in all versions of the template. If the item referred to here is not included on the FinInfo sheet in your template, you can safely ignore it!
A194: The FinInfo sheet contains the financial information that needs to be included in our standard financial statements but can typically not be derived from the amounts on a trail balance. These values therefore need to be entered for each financial period included in the financial statements and for which a trial balance is therefore included on the TB sheet.
A196: In terms of new and existing businesses and the addition of new columns, the same procedure that needs to be followed in order to add new columns to the TB sheet needs to be completed for the FinInfo sheet. Refer to the Trial Balance section of the instructions for guidance on how to amend the default columns and how to add new columns to this sheet.
A198: Note: Some of the financial information which is listed on the FinInfo sheet may not be applicable to all businesses but we recommend that you retain all the data on this sheet and that you simply enter nil values for the items which are not applicable. Do not therefore delete any of these items as you may need some of them in future.
A200: Note: All the data on the FinInfo sheet should form part of a continuous cell range and you should not include any blank rows or columns between rows or columns that contain data otherwise the financial statement calculations may not be accurate.
A202: The values on the FinInfo sheet will have no bearing on whether the financial statements balance or not - this aspect of the financial statements is entirely determined by the account balances which are included on the TB sheet. The values on the FinInfo sheet are mainly used to provide additional disclosures that may be required and in some instances to include amounts that are required to be disclosed but typically do not get allocated to separate accounts in a general ledger (and therefore trial balance).
A204: Note: We are not going to cover each individual item on the FinInfo sheet in these instructions but you can trace the codes in column B to column A on the AFS sheet in order to see where the information is included in the financial statements. Note that all the codes for the financial information that originates from the FinInfo sheet are displayed in orange or red on the AFS sheet.
A206: Note: The reporting class codes of the items on the FinInfo sheet which require negative values to be entered have been formatted with orange text. Most of the items in black text require positive values to be entered. Some items like deferred tax can be positive or negative.
A208: All the values on the FinInfo sheet are included on the financial statements based on the reporting class code included in column B. There are four types of line items which are included on the FinInfo sheet that we will now cover individually.
A210: Items with descriptions that are based on specific TB reporting classes
A212: The items that are listed in this section all relate to specific trial balance reporting classes which have been included on the Classes sheet. The line item descriptions in column C can therefore be determined based on the original trial balance reporting classes which are included on the Classes sheet. These items basically all relate to three balance sheet items namely property, plant & equipment, intangible assets and provisions.
A214: The property, plant & equipment items basically have the same reporting classes as the corresponding classes listed on the Classes sheet but each of these codes on the FinInfo sheet starts with an "F" and ends in a different character (the items on the Classes sheet end with a "G").
A216: The "F" at the start is the default reporting class character for the items on the FinInfo sheet but the character at the end has a special meaning and purpose:
A217: R - if the code ends in a "R", the value is included in the accounting policies section of the notes to the financial statements and refers to the depreciation rate of the appropriate item.
A218: D - if the code ends in a "D", the value is included in the disposals column of the appropriate item in the property, plant & equipment note. All values must be entered as negative values and there are separate codes for the cost and accumulated depreciation sections which are based on the appropriate account group numbers.
A219: I - if the code ends in an "I", the value is included in the impairment column of the appropriate item in the property, plant & equipment note. All values must be entered as negative values and there are separate codes for the cost and accumulated depreciation sections which are based on the appropriate account group numbers. Net impairment totals are also included in a paragraph below the appropriate note.
A221: Note: If the description in column C contains the text "PPE Class" at the end of the description, it means that the code on the FinInfo sheet could not be matched to the code on the Classes sheet. You need to check the code included in this section to determine why it has not been matched to the Classes sheet. The relevant code on the classes sheet will have a "B" at the start of the code and a "G" at the end of the code but all the other characters will be the same.
A223: The section on the FinInfo sheet also contains classes for the Provisions balance sheet item. These classes again contain the same characters as the code for Provisions on the Classes sheet with only the first and last characters being different. The code again starts with an "F" and ends in either a "C" or a "R". The values entered for codes ending in a "C" and a "R" are included in the Charges & Reversals column of the Provisions note. Both need to be entered as positive values.
A225: The provisions line items have been included on the FinInfo sheet because provisions are typically recorded in one account on the trial balance and then need to be separated into individual items for financial statement purposes. We have included three default items in the template and the description of each is included in the next section of the FinInfo sheet. These descriptions can be amended and you can add additional items if required.
A227: Items with descriptions and balances that are used on the financial statements
A229: The items included in this section of the FinInfo sheet are typically included in one account on the trial balance but are required to be separated into multiple line items for financial statement purposes.
A231: The provisions note contains a total line which is based on the trial balance values and individual lines based on the values entered on the FinInfo sheet. We have therefore also included a balancing line to ensure that imbalances between the FinInfo sheet values and the trial balance values do not cause balance sheet imbalances.
A233: The values entered in this section of the FinInfo sheet represent the closing balances for each of the line items. For provisions, values should be entered as negative values which represent liabilities.
A235: Each section contains three default line items and the descriptions of the items on the financial statement are based on the description of the items which are included in this section on the FinInfo sheet. You can therefore change the descriptions in this section if you want to change the item description on the financial statements.
A237: If you need more than three line items for provisions, you can insert a new row below the last item, copy one of the existing rows, change the reporting class & description of the new item and replace the copied item's balances with nil values. You then also need to add the new item to the note in the financial statements by inserting a new row below the last default item, copying one of the existing items and entering the new class code in column A on the AFS sheet.
A239: Note: If a new line item is created for provisions, the new line item also needs to be added to the previous section on the FinInfo sheet by creating reporting codes which end in a "C" and a "R" for the new item.
A241: Items with balances that are linked to specific reporting classes (as per Classes sheet)
A243: This section of the FinInfo sheet provides for items which are included with other items in trial balance accounts but need to be disclosed separately on the financial statements. If you therefore want to remove an item from the trial balance calculation and disclose it separately on the financial statements, you can include it in this section.
A245: What is important to note is that the formulas on the AFS sheet will automatically remove the item as long as you enter the correct reporting class on the FinInfo sheet which corresponds to the reporting class which has been included on the Classes sheet and linked to the appropriate accounts on the trial balance.
A247: The reporting class that you need to use should be the same as the reporting class on the Classes sheet but for income statement accounts, the "I" at the start of the code needs to be replaced with an "E" and for balance sheet items, the "B" needs to be replaced with an "F".
A249: Examples of these types of entries have been set up in our default template design and include related party transactions which are typically included in trade debtors and trade creditors, short term loans which need to be included separately on financial statements, interest paid on leases which may be included with other interest paid amounts in a single trial balance account and interest received which may be included with interest paid amounts in a single trial balance account.
A251: You can however use the same principle which is applied in this section for any income statement or balance sheet item but it is important to remember to include the new class that is created on the FinInfo sheet on the AFS sheet otherwise your financial statements will not balance.
A253: Note: Values should be entered consistently with the type of balance which is included in the trial balance. If the item has a debit balance, a positive value should be entered and if the item has a credit balance on the trial balance, a negative value should be entered.
A255: Items that are used in other disclosures
A257: The last section on the FinInfo sheet basically includes all other non-trial balance related disclosures which need to be included in the financial statements. Refer to the matching reporting classes in column A on the AFS sheet to see where these items are included on the financial statements.
A259: Error Checking
A261: The formula in column A on the FinInfo sheet need to be copied for all new items which are added to the sheet. Different formulas are used in the different sections of the sheet and you therefore need to copy the formula from one of the existing lines in the appropriate section.
A263: The formula in the first section checks whether there is a corresponding trial balance class on the Classes sheet. If an error is displayed for any item, you need to check the Classes sheet for a corresponding item which has the same class code but starts with a "B" and ends in a "G". You should either fix the class code on the FinInfo sheet or add the appropriate item to the Classes sheet in order to fix the error.
A265: The formula in the second section also checks the Classes sheet for a corresponding code and the same process should be followed to resolve the error. An "add!" status will be displayed if the items cannot be matched to the Classes sheet.
A267: The formula in the third section displays a "no G!" status if the reporting class code on the FinInfo sheet does not contain a "G" at the end. It displays a "class!" status if a corresponding class cannot be found on the Classes sheet and it displays an "add!" status if the class on the FinInfo sheet has not been added to the AFS sheet. Note that an "add!" status may result in a financial statement imbalance because the appropriate value will have been removed from the trial balance amount but not added to the financial statements on the AFS sheet.
A269: The formula in the last section displays a "missing!" status if the appropriate reporting class on the FinInfo sheet cannot be found on the AFS sheet. If it is a new reporting class, you need to add it to the appropriate location on the AFS sheet but if it is not a new class, it indicates that you may have deleted the row which included the reporting class code.
A271: Annual Financial Statements
A273: The annual financial statements are included on the AFS sheet. All the amounts which are included in the financial statements are calculated from the trial balance included on the TB sheet and the additional financial information included on the FinInfo sheet based on the reporting class codes included in column A on the AFS sheet. It is therefore imperative that you do not delete these codes (this column does not form part of the printed pages).
A275: The codes which are included in column A on the AFS sheet can be used to trace the appropriate amounts back to the source sheet. Codes displayed in orange or red text can be found on the FinInfo sheet (all these codes begin with an "E" or "F") and codes displayed in green or blue text can be found on the TB sheet (all these codes begin with either an "I" for income statement or a "B" for balance sheet).
A277: Note: In some instances, multiple accounts on the Trial Balance may be linked to the same financial reporting class code. We recommend that you filter the TB sheet based on the code by using the filter feature in the column heading row in column B on the TB sheet. The totals displayed above the column headings are calculated by including only filtered data and should therefore agree to the appropriate amount on the financial statements. Where a reporting class consists of account group and account number codes, you will need to select all the codes which form part of the account group code when filtering data.
A279: Note: All the financial statement reporting class codes are pre-defined - you should therefore not amend any of these default codes because this will result in an amendment in the appropriate calculation which may lead to inaccuracies in the financial statement calculations.
A281: Basic Principles
A283: The print range of the financial statements is from column B to column J. The reporting classes in column A and the data in the columns after column J therefore do not appear on the financial statements but play an important role in the automated calculations and should not be deleted.
A285: Do not delete any of the contents on the AFS sheet because you will not be able to recover the data and some of the data may also affect other calculations on this sheet. If you therefore do not want to include any of the rows or notes in your version of the financial statements, we recommend hiding the appropriate rows instead of deleting them. This will ensure that none of the other calculations are affected.
A287: If you hide an entire note, you also need to remove the note number by deleting the formula next to the note heading in column A. Note numbers are calculated based on the previous maximum value and if you do not delete the note numbers of the notes which are not visible, the notes in your financial statements will not be sequential.
A289: The input for rows which contain data in a paragraph layout has been included in column P. The financial statements consist of multiple columns and it is not possible to merge and wrap text in a single cell in Excel. We have therefore wrapped the paragraph text in a single column in column P and used a formula to display the text in the financial statements based on the text wrapping in this column. If you want to edit any of the data that forms part of a paragraph, you need to edit the data in column P.
A291: All the calculations of amounts on the AFS sheet are automated but some areas (especially the general information page) requires user input on the AFS sheet. We have indicated where user input is required in the columns next to the financial statements.
A293: Customizing the standard financial statement data
A295: After linking your trial balance to the reporting class codes on the TB sheet and entering all the required values on the FinInfo sheet, we recommend that you review the standard financial statements on the AFS sheet. You can then hide all the content which is not applicable to your business and delete the note numbers next to the note headings if you hide entire notes. You should hide data and not delete anything from the AFS sheet!
A297: Note: We also recommend unhiding all hidden data before you start with the financial statements for a new year. This will ensure that you have not hidden rows or notes which contain amounts for the new reporting year.
A299: It is imperative that you read through all the contents included on the AFS sheet to determine whether all the standard information is applicable to your business. This is especially necessary for the notes on the accounting policies which have been applied in compiling the financial statements because these policies may very well differ between different types of businesses.
A301: It is practically impossible to include financial statement information that will be suitable to all types of businesses in a financial statement template and the responsibility for ensuring that all the required disclosures are included in the financial statements remains that of the user. We will also not be able to assist you in adding additional notes to the standard financial statements - you should be able to do this on your own by following the steps which we covered earlier on in these instructions.
A303: If you need to add new reporting classes to the template which are based on either the trial balance data or the financial information on the FinInfo sheet, you need to insert a new row in the appropriate location, copy one of the existing lines with an orange or green reporting class code in column A and change the reporting class in column A to the new reporting class. The formulas in the rows with green or orange reporting classes are all the same and copying them will result in the correct calculations being included for the new reporting class.
A305: Printing Financial Statements
A307: The full set of financial statements which are compiled with this template are included on the AFS sheet and you therefore only need to print this sheet in order to print your full set of financial statements. After hiding some rows or even entire notes or making other changes, the page setup of your version would have changed from the page setup of our standard version and you will need to make some amendments especially for printing purposes.
A309: It is mostly the notes section of the financial statements which will be affected because all the pages before this section fit onto a single page and should therefore not be affected by any of your changes. The notes section contains headings which consist of the entity name, the notes section heading and the date for which the financial statements are compiled in three separate rows.
A311: After hiding content, you need to review where these headings are printed and move the rows to the appropriate row locations so that the headings are printed at the top of all of the pages. If you need more headings than what we have included in the standard template, you can simply copy one of the existing headings.
A313: If you've hidden notes, you should also check your note numbers to see that they are all in sequence. If not, you have probably hidden a note without removing its note number.
A315: The final aspect of printing that we need to mention is the rows that contain paragraphs. All of these rows should be wrapped automatically but in isolated cases, the row height may not be correct when the pages are printed. You therefore need to review your printed financial statements to ensure that there are no extra spaces. If you note any of these occurrences, you can fix the issue by changing the row height of the affected row.
A317: AFS Components
A319: In this section of the instructions, we provide guidance on the information which is included in each section of the financial statements on the AFS sheet. One of the most important points to note is that the current and comparative periods are determined based on the year specified on the Setup sheet. Users therefore don't need to change the individual dates on the AFS sheet when compiling financial statements for a new period.
A321: Cover page
A323: The first page which forms part of the financial statements is the cover page which is included at the top of the AFS sheet. The business name is specified on the Setup sheet and the registration number is included in the general information section of the financial statements. The cover page also includes a logo placeholder which can be replaced with your logo.
A325: Table of contents
A327: Most of the information on this page is fixed. The only items that you may need to change is the number of pages and the financial statements approval date which can be specified on the Setup sheet.
A329: General Information
A331: All the details on this sheet need to be entered in column E.
A333: Independent Reviewer's Report
A335: We have included a standard independent reviewer's report on this page. If you need to include a different report or if you are setting up non-profit financial statements for a different type of entity which requires a different type of report, you can replace our report with your own.
A337: Note: Remember that all paragraph type text needs to be edited in column P. You should therefore replace the data in column P to ensure that it displays correctly on the financial statements.
A339: The accountant details at the bottom of the sheet should also be replaced with your own data.
A341: Board Members' Report
A343: We have included a standard board members report on this page. The only user input which is required on this sheet is to enter the names of the board members. You can also make changes to the default content and hide any items not applicable to your non-profit organization.
A345: Statement of comprehensive income and retained surplus
A347: The revenue, other income, finance costs and income tax line items are calculated in the respective notes to the financial statements. Operating expenses are calculated on the statement of comprehensive income and retained surplus. The reporting class codes for these calculations are included in column A.
A349: Note: Descriptions of all line items which are linked to the trial balance reporting classes (green or blue text in column A) can be edited on the Classes sheet and the descriptions of all the financial information reporting classes (orange and red text) can be edited on the FinInfo sheet.
A351: Note: If the number of expense line items are not sufficient, additional expenses line items can be added by inserting a new row, copying one of the existing rows and entering a new reporting class code in column A.
A353: Note: If the line item description contains a "no class!" error, it means that the appropriate reporting class in column A has not been added to the Classes sheet. If the description is "Add to FinInfo sheet!", it means that the code in column A starts with an "E" or a "F" but cannot be matched to a class on the FinInfo sheet.
A355: The retained surplus balances at the start of the year are calculated based on the prior year's trial balances by adding the balance sheet retained surplus to the total of all income statement accounts for the appropriate year. If this calculation differs from the current year's trial balance value for retained surplus (which represents the opening balance), the difference will be displayed in the prior year adjustments line.
A357: Note: If no prior year adjustments have been processed in your trial balance, balances in the prior year adjustment line indicate that there is an inconsistency between the retained surplus opening balance for the current year (as per the trial balance) and the retained surplus closing balance for the prior year.
A359: We have included control totals next to the financial statements in the profit or loss line. If any of these control totals contain a balance, it indicates that not all income statement accounts have been included in the income statement. You should then review your trial balance data on the TB sheet in order to identify the accounts that may not have been included in the financial statements.
A361: Statement of financial position
A363: Most of the amounts which are included on the balance sheet are calculated in the notes to the financial statements. The only exceptions are the interest payable and the provision for taxation lines which are all calculated on the balance sheet based on the reporting codes included in column A. The retained surplus amounts are calculated on the income statement.
... 110 more rows

Sheet Setup
A1: =IF(ISBLANK($B$4),"Example (Pty) Limited",$B$4) -> Example NPC
A2: Set-up
A3: © www.excel-skills.com
A4: Business Name | B4: Example NPC
A6: Currency Symbol | B6: R | C6: =IF(ISBLANK($B$6)=TRUE,"CU",$B$6) -> R
A8: Year End Month | B8: 2018-02-01
A10: Reporting Year | B10: 2024
D11: First Day | E11: Last Day | F11: Last Day Text
A12: Year End Reporting Date | B12: =IF(ISBLANK($B$10),IF(ISBLANK($B$8),DATE(YEAR(TODAY()),MONTH(TODAY())+1,0),DATE(YEAR(TODAY()),MONTH($B$8)+1,0)),IF(ISBLANK($B$8),DATE($B$10,MONTH(TODAY())+1,0),DATE($B$10,MONTH($B$8)+1,0))) -> 2024-02-29 | D12: =DATE(YEAR($B$12)-1,MONTH($B$12)+1,1) -> 2023-03-01 | E12: =DATE(YEAR(Setup!$B$12),MONTH(Setup!$B$12)+1,0) -> 2024-02-29 | F12: =TEXT($E$12,"dd mmmm yyyy") -> 29 February 2024
A14: Total Number of Pages | B14: 16
A16: Date of Approval | C16: =IF(ISBLANK($B$16),DATE(YEAR($B$12),MONTH($B$12)+3,0),$B$16) -> 2024-04-30
B18: =DATE(YEAR(TODAY()),1,1) -> 2024-01-01
B19: =DATE(YEAR(TODAY()),2,1) -> 2024-02-01
B20: =DATE(YEAR(TODAY()),3,1) -> 2024-03-01
B21: =DATE(YEAR(TODAY()),4,1) -> 2024-04-01
B22: =DATE(YEAR(TODAY()),5,1) -> 2024-05-01
B23: =DATE(YEAR(TODAY()),6,1) -> 2024-06-01
B24: =DATE(YEAR(TODAY()),7,1) -> 2024-07-01
B25: =DATE(YEAR(TODAY()),8,1) -> 2024-08-01
B26: =DATE(YEAR(TODAY()),9,1) -> 2024-09-01
B27: =DATE(YEAR(TODAY()),10,1) -> 2024-10-01
B28: =DATE(YEAR(TODAY()),11,1) -> 2024-11-01
B29: =DATE(YEAR(TODAY()),12,1) -> 2024-12-01

Sheet Classes
A1: =IF(ISBLANK(Setup!$B$4),"Example (Pty) Limited",Setup!$B$4) -> Example NPC
A2: Financial Statement Reporting Classes
A3: © www.excel-skills.com
A4: Class | B4: Description | C4: Code Status | D4: TB Status | E4: AFS Status | F4: Error Status
A5: Income Statement
A6: I-01G | B6: Revenue | C6: =IF(OR(LEFT($A6,1)="I",LEFT($A6,1)="B")=FALSE,"error!",IF(RIGHT($A6,1)<>"G","error!","ok")) -> ok | D6: =IF(ISNA(VLOOKUP($A6,TBData,COLUMN(TB!$B$4),0)),"-","ok") -> - | E6: =IF(ISNA(VLOOKUP($A6,AFSClass,1,0)),"-","ok") -> - | F6: =IF(AND(D6="ok",E6<>"ok"),"add!","ok") -> ok
A7: I-0101G | B7: Donations | C7: ok | D7: =IF(ISNA(VLOOKUP($A7,TBData,COLUMN(TB!$B$4),0)),"-","ok") -> ok | E7: ok | F7: =IF(AND(D7="ok",E7<>"ok"),"add!","ok") -> ok
A8: I-0102G | B8: Fund raising | C8: ok | D8: =IF(ISNA(VLOOKUP($A8,TBData,COLUMN(TB!$B$4),0)),"-","ok") -> ok | E8: ok | F8: ok
A9: I-0103G | B9: Government grants | C9: ok | D9: =IF(ISNA(VLOOKUP($A9,TBData,COLUMN(TB!$B$4),0)),"-","ok") -> ok | E9: ok | F9: =IF(AND(D9="ok",E9<>"ok"),"add!","ok") -> ok
A10: I-0104G | B10: Other grants | C10: ok | D10: =IF(ISNA(VLOOKUP($A10,TBData,COLUMN(TB!$B$4),0)),"-","ok") -> ok | E10: ok | F10: ok
A11: I-03G | B11: Operating expenses | C11: ok | D11: =IF(ISNA(VLOOKUP($A11,TBData,COLUMN(TB!$B$4),0)),"-","ok") -> - | E11: - | F11: ok
A12: I-0301G | B12: Accounting fees | C12: ok | D12: =IF(ISNA(VLOOKUP($A12,TBData,COLUMN(TB!$B$4),0)),"-","ok") -> ok | E12: ok | F12: ok
A13: I-0302G | B13: Advertising & marketing | C13: ok | D13: =IF(ISNA(VLOOKUP($A13,TBData,COLUMN(TB!$B$4),0)),"-","ok") -> ok | E13: ok | F13: ok
A14: I-0303G | B14: Bank charges | C14: ok | D14: =IF(ISNA(VLOOKUP($A14,TBData,COLUMN(TB!$B$4),0)),"-","ok") -> ok | E14: ok | F14: ok
A15: I-0304G | B15: Commission | C15: ok | D15: =IF(ISNA(VLOOKUP($A15,TBData,COLUMN(TB!$B$4),0)),"-","ok") -> ok | E15: ok | F15: ok
A16: I-0305G | B16: Computer expenses | C16: ok | D16: =IF(ISNA(VLOOKUP($A16,TBData,COLUMN(TB!$B$4),0)),"-","ok") -> ok | E16: ok | F16: ok
A17: I-0306G | B17: Consumables & cleaning | C17: ok | D17: =IF(ISNA(VLOOKUP($A17,TBData,COLUMN(TB!$B$4),0)),"-","ok") -> ok | E17: ok | F17: ok
A18: I-0307G | B18: Entertainment | C18: ok | D18: =IF(ISNA(VLOOKUP($A18,TBData,COLUMN(TB!$B$4),0)),"-","ok") -> ok | E18: ok | F18: ok
A19: I-0308G | B19: Insurance | C19: ok | D19: =IF(ISNA(VLOOKUP($A19,TBData,COLUMN(TB!$B$4),0)),"-","ok") -> ok | E19: ok | F19: ok
A20: I-0309G | B20: Office expenses | C20: ok | D20: =IF(ISNA(VLOOKUP($A20,TBData,COLUMN(TB!$B$4),0)),"-","ok") -> ok | E20: ok | F20: ok
A21: I-0310G | B21: Office rent | C21: ok | D21: =IF(ISNA(VLOOKUP($A21,TBData,COLUMN(TB!$B$4),0)),"-","ok") -> ok | E21: ok | F21: ok
A22: I-0311G | B22: Postage | C22: ok | D22: =IF(ISNA(VLOOKUP($A22,TBData,COLUMN(TB!$B$4),0)),"-","ok") -> ok | E22: ok | F22: ok
A23: I-0312G | B23: Professional & legal fees | C23: ok | D23: =IF(ISNA(VLOOKUP($A23,TBData,COLUMN(TB!$B$4),0)),"-","ok") -> ok | E23: ok | F23: ok
A24: I-0313G | B24: Stationery | C24: ok | D24: =IF(ISNA(VLOOKUP($A24,TBData,COLUMN(TB!$B$4),0)),"-","ok") -> ok | E24: ok | F24: ok
A25: I-0314G | B25: Subscriptions & memberships | C25: ok | D25: =IF(ISNA(VLOOKUP($A25,TBData,COLUMN(TB!$B$4),0)),"-","ok") -> ok | E25: ok | F25: ok
A26: I-0315G | B26: Telephone & internet | C26: ok | D26: =IF(ISNA(VLOOKUP($A26,TBData,COLUMN(TB!$B$4),0)),"-","ok") -> ok | E26: ok | F26: ok
A27: I-0316G | B27: Training | C27: ok | D27: =IF(ISNA(VLOOKUP($A27,TBData,COLUMN(TB!$B$4),0)),"-","ok") -> ok | E27: ok | F27: ok
A28: I-0317G | B28: Travelling & accommodation | C28: ok | D28: =IF(ISNA(VLOOKUP($A28,TBData,COLUMN(TB!$B$4),0)),"-","ok") -> ok | E28: ok | F28: ok
A29: I-0318G | B29: Utilities | C29: ok | D29: =IF(ISNA(VLOOKUP($A29,TBData,COLUMN(TB!$B$4),0)),"-","ok") -> ok | E29: ok | F29: ok
A30: I-04G | B30: Staff costs | C30: ok | D30: =IF(ISNA(VLOOKUP($A30,TBData,COLUMN(TB!$B$4),0)),"-","ok") -> - | E30: - | F30: ok
A31: I-0401G | B31: Salaries & wages | C31: ok | D31: =IF(ISNA(VLOOKUP($A31,TBData,COLUMN(TB!$B$4),0)),"-","ok") -> ok | E31: ok | F31: ok
A32: I-05G | B32: Depreciation | C32: ok | D32: =IF(ISNA(VLOOKUP($A32,TBData,COLUMN(TB!$B$4),0)),"-","ok") -> - | E32: - | F32: ok
A33: I-0501G | B33: Depreciation on property, plant & equipment | C33: ok | D33: =IF(ISNA(VLOOKUP($A33,TBData,COLUMN(TB!$B$4),0)),"-","ok") -> ok | E33: ok | F33: ok
A34: I-06G | B34: Interest on loans and overdraft | C34: ok | D34: =IF(ISNA(VLOOKUP($A34,TBData,COLUMN(TB!$B$4),0)),"-","ok") -> ok | E34: ok | F34: ok
A35: I-07G | B35: Taxation paid | C35: ok | D35: =IF(ISNA(VLOOKUP($A35,TBData,COLUMN(TB!$B$4),0)),"-","ok") -> ok | E35: ok | F35: ok
A36: I-08G | B36: Other expenses | C36: ok | D36: =IF(ISNA(VLOOKUP($A36,TBData,COLUMN(TB!$B$4),0)),"-","ok") -> ok | E36: ok | F36: ok
A37: I-08G01G | B37: Foreign exchange (gains) / losses | C37: ok | D37: =IF(ISNA(VLOOKUP($A37,TBData,COLUMN(TB!$B$4),0)),"-","ok") -> ok | E37: ok | F37: ok
A38: I-08G02G | B38: Loss on disposal of property, plant & equipment | C38: ok | D38: =IF(ISNA(VLOOKUP($A38,TBData,COLUMN(TB!$B$4),0)),"-","ok") -> ok | E38: ok | F38: ok
A39: I-09G | B39: Other income | C39: ok | D39: =IF(ISNA(VLOOKUP($A39,TBData,COLUMN(TB!$B$4),0)),"-","ok") -> - | E39: - | F39: ok
A40: I-0900G | B40: Miscellaneous income | C40: ok | D40: =IF(ISNA(VLOOKUP($A40,TBData,COLUMN(TB!$B$4),0)),"-","ok") -> ok | E40: ok | F40: ok
A41: I-0905G | B41: Dividends received | C41: ok | D41: =IF(ISNA(VLOOKUP($A41,TBData,COLUMN(TB!$B$4),0)),"-","ok") -> ok | E41: ok | F41: ok
A42: I-0910G | B42: Gain on disposal of property, plant & equipment | C42: ok | D42: =IF(ISNA(VLOOKUP($A42,TBData,COLUMN(TB!$B$4),0)),"-","ok") -> ok | E42: ok | F42: ok
A43: I-0915G | B43: Interest received | C43: ok | D43: =IF(ISNA(VLOOKUP($A43,TBData,COLUMN(TB!$B$4),0)),"-","ok") -> ok | E43: ok | F43: ok
A44: Balance Sheet - Assets
A45: B-00G | B45: Property, plant & equipment - cost | C45: ok | D45: =IF(ISNA(VLOOKUP($A45,TBData,COLUMN(TB!$B$4),0)),"-","ok") -> - | E45: =IF(ISNA(VLOOKUP($A45,AFSClass,1,0)),"-","ok") -> - | F45: =IF(AND(D45="ok",E45<>"ok"),"add!","ok") -> ok
A46: B-0001G | B46: Land & buildings | C46: ok | D46: =IF(ISNA(VLOOKUP($A46,TBData,COLUMN(TB!$B$4),0)),"-","ok") -> ok | E46: ok | F46: ok
A47: B-0002G | B47: Plant & equipment | C47: ok | D47: =IF(ISNA(VLOOKUP($A47,TBData,COLUMN(TB!$B$4),0)),"-","ok") -> ok | E47: ok | F47: ok
A48: B-0003G | B48: Furniture & fittings | C48: ok | D48: =IF(ISNA(VLOOKUP($A48,TBData,COLUMN(TB!$B$4),0)),"-","ok") -> ok | E48: ok | F48: ok
A49: B-0004G | B49: Office equipment | C49: ok | D49: =IF(ISNA(VLOOKUP($A49,TBData,COLUMN(TB!$B$4),0)),"-","ok") -> ok | E49: ok | F49: ok
A50: B-0005G | B50: Computer equipment | C50: ok | D50: =IF(ISNA(VLOOKUP($A50,TBData,COLUMN(TB!$B$4),0)),"-","ok") -> ok | E50: ok | F50: ok
A51: B-0006G | B51: Motor vehicles | C51: ok | D51: =IF(ISNA(VLOOKUP($A51,TBData,COLUMN(TB!$B$4),0)),"-","ok") -> ok | E51: ok | F51: ok
A52: B-01G | B52: Property, plant & equipment - accum dep | C52: ok | D52: =IF(ISNA(VLOOKUP($A52,TBData,COLUMN(TB!$B$4),0)),"-","ok") -> - | E52: - | F52: ok
A53: B-0101G | B53: Land & buildings | C53: ok | D53: =IF(ISNA(VLOOKUP($A53,TBData,COLUMN(TB!$B$4),0)),"-","ok") -> ok | E53: ok | F53: ok
A54: B-0102G | B54: Plant & equipment | C54: ok | D54: =IF(ISNA(VLOOKUP($A54,TBData,COLUMN(TB!$B$4),0)),"-","ok") -> ok | E54: ok | F54: ok
A55: B-0103G | B55: Furniture & fittings | C55: ok | D55: =IF(ISNA(VLOOKUP($A55,TBData,COLUMN(TB!$B$4),0)),"-","ok") -> ok | E55: ok | F55: ok
A56: B-0104G | B56: Office equipment | C56: ok | D56: =IF(ISNA(VLOOKUP($A56,TBData,COLUMN(TB!$B$4),0)),"-","ok") -> ok | E56: ok | F56: ok
A57: B-0105G | B57: Computer equipment | C57: ok | D57: =IF(ISNA(VLOOKUP($A57,TBData,COLUMN(TB!$B$4),0)),"-","ok") -> ok | E57: ok | F57: ok
A58: B-0106G | B58: Motor vehicles | C58: ok | D58: =IF(ISNA(VLOOKUP($A58,TBData,COLUMN(TB!$B$4),0)),"-","ok") -> ok | E58: ok | F58: ok
A59: B-03G | B59: Investments | C59: ok | D59: =IF(ISNA(VLOOKUP($A59,TBData,COLUMN(TB!$B$4),0)),"-","ok") -> - | E59: - | F59: ok
A60: B-0401G | B60: Fixed deposit - Bank One | C60: =IF(OR(LEFT($A60,1)="I",LEFT($A60,1)="B")=FALSE,"error!",IF(RIGHT($A60,1)<>"G","error!","ok")) -> ok | D60: =IF(ISNA(VLOOKUP($A60,TBData,COLUMN(TB!$B$4),0)),"-","ok") -> ok | E60: ok | F60: ok
A61: B-0402G | B61: Fixed deposit - Bank Two | C61: ok | D61: =IF(ISNA(VLOOKUP($A61,TBData,COLUMN(TB!$B$4),0)),"-","ok") -> ok | E61: ok | F61: ok
A62: B-05G | B62: Loans & advances | C62: ok | D62: =IF(ISNA(VLOOKUP($A62,TBData,COLUMN(TB!$B$4),0)),"-","ok") -> ok | E62: ok | F62: ok
A63: B-06G | B63: Cash at bank | C63: ok | D63: =IF(ISNA(VLOOKUP($A63,TBData,COLUMN(TB!$B$4),0)),"-","ok") -> ok | E63: ok | F63: ok
A64: B-07G | B64: Cash on hand | C64: ok | D64: =IF(ISNA(VLOOKUP($A64,TBData,COLUMN(TB!$B$4),0)),"-","ok") -> ok | E64: ok | F64: ok
A65: B-08G | B65: Trade debtors | C65: ok | D65: =IF(ISNA(VLOOKUP($A65,TBData,COLUMN(TB!$B$4),0)),"-","ok") -> ok | E65: ok | F65: ok
A66: B-09G | B66: Other debtors | C66: ok | D66: =IF(ISNA(VLOOKUP($A66,TBData,COLUMN(TB!$B$4),0)),"-","ok") -> - | E66: - | F66: ok
A67: B-0901G | B67: Prepayments | C67: ok | D67: =IF(ISNA(VLOOKUP($A67,TBData,COLUMN(TB!$B$4),0)),"-","ok") -> ok | E67: ok | F67: ok
A68: B-0902G | B68: Other debtors | C68: ok | D68: =IF(ISNA(VLOOKUP($A68,TBData,COLUMN(TB!$B$4),0)),"-","ok") -> ok | E68: ok | F68: ok
A69: B-10G | B69: Inventory | C69: ok | D69: =IF(ISNA(VLOOKUP($A69,TBData,COLUMN(TB!$B$4),0)),"-","ok") -> - | E69: - | F69: ok
A70: B-1001G | B70: Raw materials | C70: ok | D70: =IF(ISNA(VLOOKUP($A70,TBData,COLUMN(TB!$B$4),0)),"-","ok") -> ok | E70: ok | F70: ok
A71: B-1002G | B71: Work in progress | C71: ok | D71: =IF(ISNA(VLOOKUP($A71,TBData,COLUMN(TB!$B$4),0)),"-","ok") -> ok | E71: ok | F71: ok
A72: B-1003G | B72: Finished goods | C72: ok | D72: =IF(ISNA(VLOOKUP($A72,TBData,COLUMN(TB!$B$4),0)),"-","ok") -> ok | E72: ok | F72: ok
A73: Balance Sheet - Liabilities
A74: B-11G | B74: Bank overdraft | C74: ok | D74: =IF(ISNA(VLOOKUP($A74,TBData,COLUMN(TB!$B$4),0)),"-","ok") -> ok | E74: =IF(ISNA(VLOOKUP($A74,AFSClass,1,0)),"-","ok") -> ok | F74: =IF(AND(D74="ok",E74<>"ok"),"add!","ok") -> ok
A75: B-12G | B75: Trade creditors | C75: ok | D75: =IF(ISNA(VLOOKUP($A75,TBData,COLUMN(TB!$B$4),0)),"-","ok") -> ok | E75: ok | F75: ok
A76: B-13G | B76: Accrued expenses | C76: ok | D76: =IF(ISNA(VLOOKUP($A76,TBData,COLUMN(TB!$B$4),0)),"-","ok") -> ok | E76: ok | F76: ok
A77: B-1310G | B77: Interest payable | C77: ok | D77: =IF(ISNA(VLOOKUP($A77,TBData,COLUMN(TB!$B$4),0)),"-","ok") -> ok | E77: ok | F77: ok
A78: B-15G | B78: Provision for taxation | C78: ok | D78: =IF(ISNA(VLOOKUP($A78,TBData,COLUMN(TB!$B$4),0)),"-","ok") -> ok | E78: ok | F78: ok
A79: B-16G | B79: Other provisions | C79: ok | D79: =IF(ISNA(VLOOKUP($A79,TBData,COLUMN(TB!$B$4),0)),"-","ok") -> ok | E79: ok | F79: ok
A80: B-17G | B80: Sales tax | C80: ok | D80: =IF(ISNA(VLOOKUP($A80,TBData,COLUMN(TB!$B$4),0)),"-","ok") -> ok | E80: ok | F80: ok
A81: B-18G | B81: Long term loans | C81: ok | D81: =IF(ISNA(VLOOKUP($A81,TBData,COLUMN(TB!$B$4),0)),"-","ok") -> - | E81: - | F81: ok
A82: B-1801G | B82: Long term loan - Bank One | C82: ok | D82: =IF(ISNA(VLOOKUP($A82,TBData,COLUMN(TB!$B$4),0)),"-","ok") -> ok | E82: ok | F82: ok
A83: B-1802G | B83: Long term loan - Bank Two | C83: ok | D83: =IF(ISNA(VLOOKUP($A83,TBData,COLUMN(TB!$B$4),0)),"-","ok") -> ok | E83: ok | F83: ok
A84: B-23G | B84: Finance leases | C84: ok | D84: =IF(ISNA(VLOOKUP($A84,TBData,COLUMN(TB!$B$4),0)),"-","ok") -> - | E84: - | F84: ok
A85: B-2301G | B85: Non-current liability | C85: ok | D85: =IF(ISNA(VLOOKUP($A85,TBData,COLUMN(TB!$B$4),0)),"-","ok") -> ok | E85: ok | F85: ok
A86: Balance Sheet - Equity
A87: B-19G | B87: Revaluation reserve | C87: ok | D87: =IF(ISNA(VLOOKUP($A87,TBData,COLUMN(TB!$B$4),0)),"-","ok") -> ok | E87: =IF(ISNA(VLOOKUP($A87,AFSClass,1,0)),"-","ok") -> ok | F87: =IF(AND(D87="ok",E87<>"ok"),"add!","ok") -> ok
A88: B-21G | B88: Retained surplus | C88: ok | D88: =IF(ISNA(VLOOKUP($A88,TBData,COLUMN(TB!$B$4),0)),"-","ok") -> ok | E88: =IF(ISNA(VLOOKUP($A88,AFSClass,1,0)),"-","ok") -> ok | F88: ok
A89: End of list

Sheet TB
A1: =IF(ISBLANK(Setup!$B$4),"Example (Pty) Limited",Setup!$B$4) -> Example NPC
A2: Trial Balance
A3: © www.excel-skills.com | E3: =SUBTOTAL(9,OFFSET(E$4,1,0,TBRowCount,1)) -> 0 | F3: =SUBTOTAL(9,OFFSET(F$4,1,0,TBRowCount,1)) -> 0 | G3: =SUBTOTAL(9,OFFSET(G$4,1,0,TBRowCount,1)) -> 0 | H3: =SUBTOTAL(9,OFFSET(H$4,1,0,TBRowCount,1)) -> 0 | I3: =SUBTOTAL(9,OFFSET(I$4,1,0,TBRowCount,1)) -> 0 | J3: =SUBTOTAL(9,OFFSET(J$4,1,0,TBRowCount,1)) -> 0 | K3: =SUBTOTAL(9,OFFSET(K$4,1,0,TBRowCount,1)) -> 0 | L3: =SUBTOTAL(9,OFFSET(L$4,1,0,TBRowCount,1)) -> 0
A4: Status | B4: Class | C4: Acc No | D4: Account Description | E4: 2022 | F4: 2023 | G4: 2024 | H4: 2025 | I4: 2026 | J4: 2027 | K4: 2028 | L4: 2029
A5: =IF(ISNA(VLOOKUP($B5,ClassCode,1,0)),"class!",IF(ISNA(VLOOKUP($B5,AFSClass,1,0)),"add!","ok")) -> ok | B5: B-0001G | C5: BS-0005 | D5: Land & Buildings - Cost | E5: 2500000 | F5: 2500000 | G5: 2400000 | H5: 0 | I5: 0 | J5: 0 | K5: 0 | L5: 0
A6: ok | B6: B-0002G | C6: BS-0010 | D6: Plant & Equipment - Cost | E6: 1246045 | F6: 1316045 | G6: 1546045 | H6: 0 | I6: 0 | J6: 0 | K6: 0 | L6: 0
A7: ok | B7: B-0003G | C7: BS-0015 | D7: Furniture & Fittings - Cost | E7: 300000 | F7: 350000 | G7: 410000 | H7: 0 | I7: 0 | J7: 0 | K7: 0 | L7: 0
A8: ok | B8: B-0004G | C8: BS-0020 | D8: Office Equipment - Cost | E8: 225000 | F8: 240000 | G8: 240000 | H8: 0 | I8: 0 | J8: 0 | K8: 0 | L8: 0
A9: ok | B9: B-0005G | C9: BS-0025 | D9: Computer Equipment - Cost | E9: 120750 | F9: 150500 | G9: 165500 | H9: 0 | I9: 0 | J9: 0 | K9: 0 | L9: 0
A10: ok | B10: B-0006G | C10: BS-0030 | D10: Motor Vehicles - Cost | E10: 318000 | F10: 318000 | G10: 452000 | H10: 0 | I10: 0 | J10: 0 | K10: 0 | L10: 0
A11: ok | B11: B-0101G | C11: BS-0105 | D11: Land & Buildings - Accum Depreciation | E11: 0 | F11: 0 | G11: 0 | H11: 0 | I11: 0 | J11: 0 | K11: 0 | L11: 0
A12: ok | B12: B-0102G | C12: BS-0110 | D12: Plant & Equipment - Accum Depreciation | E12: -498418 | F12: -712418 | G12: -1051018 | H12: 0 | I12: 0 | J12: 0 | K12: 0 | L12: 0
A13: ok | B13: B-0103G | C13: BS-0115 | D13: Furniture & Fittings - Accum Depreciation | E13: -100000 | F13: -158300 | G13: -224700 | H13: 0 | I13: 0 | J13: 0 | K13: 0 | L13: 0
A14: ok | B14: B-0104G | C14: BS-0120 | D14: Office Equipment - Accum Depreciation | E14: -91500 | F14: -139850 | G14: -186980 | H14: 0 | I14: 0 | J14: 0 | K14: 0 | L14: 0
A15: ok | B15: B-0105G | C15: BS-0125 | D15: Computer Equipment - Accum Depreciation | E15: -80500 | F15: -130650 | G15: -145550 | H15: 0 | I15: 0 | J15: 0 | K15: 0 | L15: 0
A16: ok | B16: B-0106G | C16: BS-0130 | D16: Motor Vehicles - Accum Depreciation | E16: -159000 | F16: -238500 | G16: -56500 | H16: 0 | I16: 0 | J16: 0 | K16: 0 | L16: 0
A17: ok | B17: B-0401G | C17: BS-0400 | D17: Fixed Deposit - Bank One | E17: 0 | F17: 250000 | G17: 300000 | H17: 0 | I17: 0 | J17: 0 | K17: 0 | L17: 0
A18: ok | B18: B-0402G | C18: BS-0405 | D18: Fixed Deposit - Bank Two | E18: 300000 | F18: 350000 | G18: 350000 | H18: 0 | I18: 0 | J18: 0 | K18: 0 | L18: 0
A19: ok | B19: B-05G | C19: BS-0500 | D19: Loans & Advances | E19: 30220 | F19: 145079 | G19: 199836 | H19: 0 | I19: 0 | J19: 0 | K19: 0 | L19: 0
A20: ok | B20: B-07G | C20: BS-0700 | D20: Cash On Hand | E20: 0 | F20: 0 | G20: 0 | H20: 0 | I20: 0 | J20: 0 | K20: 0 | L20: 0
A21: ok | B21: B-07G | C21: BS-0799 | D21: Cash Transfer Control | E21: 0 | F21: 0 | G21: 0 | H21: 0 | I21: 0 | J21: 0 | K21: 0 | L21: 0
A22: ok | B22: B-0902G | C22: BS-0900 | D22: Other Debtors | E22: 0 | F22: 0 | G22: 0 | H22: 0 | I22: 0 | J22: 0 | K22: 0 | L22: 0
A23: ok | B23: B-0901G | C23: BS-0905 | D23: Prepayments | E23: 22600 | F23: 44500 | G23: 24000 | H23: 0 | I23: 0 | J23: 0 | K23: 0 | L23: 0
A24: ok | B24: B-1001G | C24: BS-1001 | D24: Raw Materials | E24: 53699 | F24: 64120 | G24: 85200 | H24: 0 | I24: 0 | J24: 0 | K24: 0 | L24: 0
A25: ok | B25: B-1002G | C25: BS-1002 | D25: Work in progress | E25: 25100 | F25: 15380 | G25: 22653 | H25: 0 | I25: 0 | J25: 0 | K25: 0 | L25: 0
A26: ok | B26: B-1003G | C26: BS-1003 | D26: Finished goods | E26: 0 | F26: 0 | G26: 0 | H26: 0 | I26: 0 | J26: 0 | K26: 0 | L26: 0
A27: ok | B27: B-11G | C27: BS-1100 | D27: Bank Overdraft | E27: 0 | F27: 0 | G27: 0 | H27: 0 | I27: 0 | J27: 0 | K27: 0 | L27: 0
A28: ok | B28: B-13G | C28: BS-1300 | D28: Accruals | E28: -58600 | F28: -72020 | G28: -90365 | H28: 0 | I28: 0 | J28: 0 | K28: 0 | L28: 0
A29: ok | B29: B-13G | C29: BS-1305 | D29: Payroll Accruals | E29: -13108 | F29: -14500 | G29: -20572 | H29: 0 | I29: 0 | J29: 0 | K29: 0 | L29: 0
A30: ok | B30: B-1310G | C30: BS-1310 | D30: Interest Payable | E30: -15061 | F30: -17696 | G30: -16185 | H30: 0 | I30: 0 | J30: 0 | K30: 0 | L30: 0
A31: =IF(ISNA(VLOOKUP($B31,ClassCode,1,0)),"class!",IF(ISNA(VLOOKUP($B31,AFSClass,1,0)),"add!","ok")) -> ok | B31: B-15G | C31: BS-1505 | D31: Provision For Taxation | E31: 0 | F31: 0 | G31: 0 | H31: 0 | I31: 0 | J31: 0 | K31: 0 | L31: 0
A32: ok | B32: B-16G | C32: BS-1610 | D32: Other provisions | E32: -211637 | F32: -214870 | G32: -214823 | H32: 0 | I32: 0 | J32: 0 | K32: 0 | L32: 0
A33: ok | B33: B-17G | C33: BS-1700 | D33: Sales Tax Control | E33: 0 | F33: 0 | G33: 0 | H33: 0 | I33: 0 | J33: 0 | K33: 0 | L33: 0
A34: ok | B34: B-1801G | C34: BS-1805 | D34: Loan - Bank One | E34: -1646180 | F34: -1151104 | G34: -604187 | H34: 0 | I34: 0 | J34: 0 | K34: 0 | L34: 0
A35: ok | B35: B-1802G | C35: BS-1810 | D35: Loan - Bank Two | E35: 0 | F35: -816581 | G35: -661805
A36: ok | B36: B-2301G | C36: BS-1815 | D36: Finance Leases | E36: -209394 | F36: -146420 | G36: -416240 | H36: 0 | I36: 0 | J36: 0 | K36: 0 | L36: 0
A37: ok | B37: B-19G | C37: BS-1900 | D37: Reserves | E37: 0 | F37: -300000 | G37: -900000 | H37: 0 | I37: 0 | J37: 0 | K37: 0 | L37: 0
A38: ok | B38: I-0101G | C38: IS-0105 | D38: Donations | E38: -1310790 | F38: -1972950 | G38: -2370245 | H38: 0 | I38: 0 | J38: 0 | K38: 0 | L38: 0
A39: ok | B39: I-0102G | C39: IS-0110 | D39: Fund Raising | E39: -723473 | F39: -1269087 | G39: -1541378 | H39: 0 | I39: 0 | J39: 0 | K39: 0 | L39: 0
A40: ok | B40: I-0103G | C40: IS-0105 | D40: Government Grants | E40: -1000000 | F40: -1500000 | G40: -1800000 | H40: 0 | I40: 0 | J40: 0 | K40: 0 | L40: 0
A41: ok | B41: I-0104G | C41: IS-0105 | D41: Other Grants | E41: -50000 | F41: -75000 | G41: -90000 | H41: 0 | I41: 0 | J41: 0 | K41: 0 | L41: 0
A42: ok | B42: I-0301G | C42: IS-0305 | D42: Accounting Fees | E42: 15500 | F42: 18000 | G42: 24000 | H42: 0 | I42: 0 | J42: 0 | K42: 0 | L42: 0
A43: ok | B43: I-0302G | C43: IS-0310 | D43: Advertising & Marketing | E43: 110520 | F43: 170000 | G43: 143644 | H43: 0 | I43: 0 | J43: 0 | K43: 0 | L43: 0
A44: ok | B44: I-0303G | C44: IS-0315 | D44: Bank Charges | E44: 780 | F44: 935 | G44: 1180 | H44: 0 | I44: 0 | J44: 0 | K44: 0 | L44: 0
A45: ok | B45: I-0304G | C45: IS-0320 | D45: Commission | E45: 18450 | F45: 22120 | G45: 27850 | H45: 0 | I45: 0 | J45: 0 | K45: 0 | L45: 0
A46: ok | B46: I-0305G | C46: IS-0325 | D46: Computer Expenses | E46: 5625 | F46: 7210 | G46: 3477 | H46: 0 | I46: 0 | J46: 0 | K46: 0 | L46: 0
A47: ok | B47: I-0306G | C47: IS-0330 | D47: Consumables & Cleaning | E47: 2500 | F47: 2000 | G47: 2500 | H47: 0 | I47: 0 | J47: 0 | K47: 0 | L47: 0
A48: ok | B48: I-0307G | C48: IS-0335 | D48: Entertainment | E48: 11020 | F48: 10875 | G48: 12420 | H48: 0 | I48: 0 | J48: 0 | K48: 0 | L48: 0
A49: ok | B49: I-0308G | C49: IS-0340 | D49: Insurance | E49: 3100 | F49: 3420 | G49: 3840 | H49: 0 | I49: 0 | J49: 0 | K49: 0 | L49: 0
A50: ok | B50: I-0309G | C50: IS-0345 | D50: Office Expenses | E50: 350 | F50: 660 | G50: 996 | H50: 0 | I50: 0 | J50: 0 | K50: 0 | L50: 0
A51: ok | B51: I-0310G | C51: IS-0350 | D51: Office Rent | E51: 214000 | F51: 220000 | G51: 244000 | H51: 0 | I51: 0 | J51: 0 | K51: 0 | L51: 0
A52: ok | B52: I-0311G | C52: IS-0355 | D52: Postage | E52: 685 | F52: 452 | G52: 524 | H52: 0 | I52: 0 | J52: 0 | K52: 0 | L52: 0
A53: ok | B53: I-0312G | C53: IS-0360 | D53: Professional & Legal Fees | E53: 0 | F53: 36250 | G53: 5652 | H53: 0 | I53: 0 | J53: 0 | K53: 0 | L53: 0
A54: ok | B54: I-0313G | C54: IS-0365 | D54: Stationery | E54: 1150 | F54: 1257 | G54: 2491 | H54: 0 | I54: 0 | J54: 0 | K54: 0 | L54: 0
A55: ok | B55: I-0314G | C55: IS-0370 | D55: Subscriptions & Memberships | E55: 4400 | F55: 4800 | G55: 5200 | H55: 0 | I55: 0 | J55: 0 | K55: 0 | L55: 0
A56: ok | B56: I-0315G | C56: IS-0375 | D56: Telephone & Internet | E56: 7220 | F56: 7504 | G56: 8867 | H56: 0 | I56: 0 | J56: 0 | K56: 0 | L56: 0
A57: ok | B57: I-0316G | C57: IS-0380 | D57: Training | E57: 401875 | F57: 1751521 | G57: 2200043 | H57: 0 | I57: 0 | J57: 0 | K57: 0 | L57: 0
A58: ok | B58: I-0317G | C58: IS-0385 | D58: Travelling & Accommodation | E58: 10420 | F58: 4589 | G58: 13705 | H58: 0 | I58: 0 | J58: 0 | K58: 0 | L58: 0
A59: =IF(ISNA(VLOOKUP($B59,ClassCode,1,0)),"class!",IF(ISNA(VLOOKUP($B59,AFSClass,1,0)),"add!","ok")) -> ok | B59: I-0318G | C59: IS-0390 | D59: Utilities | E59: 5872 | F59: 6090 | G59: 6540 | H59: 0 | I59: 0 | J59: 0 | K59: 0 | L59: 0
A60: ok | B60: I-0401G | C60: IS-0405 | D60: Salaries & Wages - Staff | E60: 885260 | F60: 935500 | G60: 1248600 | H60: 0 | I60: 0 | J60: 0 | K60: 0 | L60: 0
A61: ok | B61: I-0401G | C61: IS-0410 | D61: Salaries & Wages - Management | E61: 801250 | F61: 834640 | G61: 1085720 | H61: 0 | I61: 0 | J61: 0 | K61: 0 | L61: 0
A62: ok | B62: I-0501G | C62: IS-0505 | D62: Depreciation | E62: 500300 | F62: 550300 | G62: 513280 | H62: 0 | I62: 0 | J62: 0 | K62: 0 | L62: 0
A63: ok | B63: I-06G | C63: IS-0605 | D63: Interest Paid | E63: 180742 | F63: 212354 | G63: 194222 | H63: 0 | I63: 0 | J63: 0 | K63: 0 | L63: 0
A64: ok | B64: I-07G | C64: IS-0700 | D64: Taxation | E64: 0 | F64: 0 | G64: 0 | H64: 0 | I64: 0 | J64: 0 | K64: 0 | L64: 0
A65: ok | B65: I-08G | C65: IS-0800 | D65: Other Expenses | E65: 12589 | F65: 20998 | G65: 125362 | H65: 0 | I65: 0 | J65: 0 | K65: 0 | L65: 0
A66: ok | B66: I-08G01G | C66: IS-0805 | D66: Foreign Exchange Loss | E66: 10250 | F66: 15240 | G66: 6260 | H66: 0 | I66: 0 | J66: 0 | K66: 0 | L66: 0
A67: ok | B67: I-08G02G | C67: IS-0810 | D67: Loss on Disposal of Assets | E67: 0 | F67: 18000 | G67: 0 | H67: 0 | I67: 0 | J67: 0 | K67: 0 | L67: 0
A68: ok | B68: I-0900G | C68: IS-0900 | D68: Other Income | E68: -23564 | F68: -30900 | G68: -41850 | H68: 0 | I68: 0 | J68: 0 | K68: 0 | L68: 0
A69: ok | B69: I-0905G | C69: IS-0905 | D69: Dividends Received | E69: 0 | F69: -3050 | G69: -4065 | H69: 0 | I69: 0 | J69: 0 | K69: 0 | L69: 0
A70: ok | B70: I-0910G | C70: IS-0910 | D70: Profit on Disposal of Assets | E70: 0 | F70: 0 | G70: -48250 | H70: 0 | I70: 0 | J70: 0 | K70: 0 | L70: 0
A71: ok | B71: I-0915G | C71: IS-0915 | D71: Interest Received | E71: -562 | F71: -4562 | G71: -5100 | H71: 0 | I71: 0 | J71: 0 | K71: 0 | L71: 0
A72: ok | B72: B-06G | C72: BS-BB1 | D72: B1 Bank Account | E72: 187624 | F72: 560300 | G72: 447563 | H72: 0 | I72: 0 | J72: 0 | K72: 0 | L72: 0
A73: ok | B73: B-06G | C73: BS-BB2 | D73: B2 Bank Account | E73: 0 | F73: 4293 | G73: 40691 | H73: 0 | I73: 0 | J73: 0 | K73: 0 | L73: 0
A74: ok | B74: B-06G | C74: BS-BB3 | D74: B3 Bank Account | E74: 0 | F74: 0 | G74: 5200 | H74: 0 | I74: 0 | J74: 0 | K74: 0 | L74: 0
A75: ok | B75: B-07G | C75: BS-BPC | D75: PC Petty Cash | E75: 1000 | F75: 990 | G75: 1000 | H75: 0 | I75: 0 | J75: 0 | K75: 0 | L75: 0
A76: ok | B76: B-06G | C76: BS-BJC | D76: GL Journal Control | E76: 0 | F76: 0 | G76: 0 | H76: 0 | I76: 0 | J76: 0 | K76: 0 | L76: 0
A77: ok | B77: B-1003G | C77: BS-STG | D77: Inventory | E77: 169397 | F77: 234245 | G77: 245060 | H77: 0 | I77: 0 | J77: 0 | K77: 0 | L77: 0
A78: ok | B78: B-08G | C78: BS-RCG | D78: Trade Debtors | E78: 456039 | F78: 495942 | G78: 568079 | H78: 0 | I78: 0 | J78: 0 | K78: 0 | L78: 0
A79: ok | B79: B-12G | C79: BS-PAG | D79: Trade Creditors | E79: -166325 | F79: -219900 | G79: -186802 | H79: 0 | I79: 0 | J79: 0 | K79: 0 | L79: 0
A80: ok | B80: B-21G | C80: BS-RTG | D80: Retained Surplus | E80: -2801220 | F80: -2705751 | G80: -2706585 | H80: 0 | I80: 0 | J80: 0 | K80: 0 | L80: 0

Sheet FinInfo
A1: =IF(ISBLANK(Setup!$B$4),"Example (Pty) Limited",Setup!$B$4) -> Example NPC
A2: Financial Statement Information (orange classes require negative values)
A3: © www.excel-skills.com
A4: Status | B4: Class | C4: Description | D4: 2022 | E4: 2023 | F4: 2024 | G4: 2025 | H4: 2026 | I4: 2027 | J4: 2028 | K4: 2029
B5: Items with descriptions that are based on specific TB reporting classes (as per Classes sheet or this sheet)
A6: =IF(ISNA(VLOOKUP("B"&MID($B6,2,LEN($B6)-2)&"G",ClassAll,COLUMN(Classes!$B$4),0)),"error!","ok") -> ok | B6: F-0001R | C6: ="Depreciation Rate - "&IF(ISNA(VLOOKUP("B"&MID($B6,2,LEN($B6)-2)&"G",ClassAll,COLUMN(Classes!$B$4),0)),"PPE Class",VLOOKUP("B"&MID($B6,2,LEN($B6)-2)&"G",ClassAll,COLUMN(Classes!$B$4),0)) -> Depreciation Rate - Land & buildings | D6: 0 | E6: 0 | F6: 0 | G6: 0 | H6: 0 | I6: 0 | J6: 0 | K6: 0
A7: =IF(ISNA(VLOOKUP("B"&MID($B7,2,LEN($B7)-2)&"G",ClassAll,COLUMN(Classes!$B$4),0)),"error!","ok") -> ok | B7: F-0002R | C7: ="Depreciation Rate - "&IF(ISNA(VLOOKUP("B"&MID($B7,2,LEN($B7)-2)&"G",ClassAll,COLUMN(Classes!$B$4),0)),"PPE Class",VLOOKUP("B"&MID($B7,2,LEN($B7)-2)&"G",ClassAll,COLUMN(Classes!$B$4),0)) -> Depreciation Rate - Plant & equipment | D7: 0.2 | E7: 0.2 | F7: 0.2 | G7: 0.2 | H7: 0.2 | I7: 0.2 | J7: 0.2 | K7: 0.2
A8: =IF(ISNA(VLOOKUP("B"&MID($B8,2,LEN($B8)-2)&"G",ClassAll,COLUMN(Classes!$B$4),0)),"error!","ok") -> ok | B8: F-0003R | C8: ="Depreciation Rate - "&IF(ISNA(VLOOKUP("B"&MID($B8,2,LEN($B8)-2)&"G",ClassAll,COLUMN(Classes!$B$4),0)),"PPE Class",VLOOKUP("B"&MID($B8,2,LEN($B8)-2)&"G",ClassAll,COLUMN(Classes!$B$4),0)) -> Depreciation Rate - Furniture & fittings | D8: 0.167 | E8: 0.167 | F8: 0.167 | G8: 0.167 | H8: 0.167 | I8: 0.167 | J8: 0.167 | K8: 0.167
A9: =IF(ISNA(VLOOKUP("B"&MID($B9,2,LEN($B9)-2)&"G",ClassAll,COLUMN(Classes!$B$4),0)),"error!","ok") -> ok | B9: F-0004R | C9: ="Depreciation Rate - "&IF(ISNA(VLOOKUP("B"&MID($B9,2,LEN($B9)-2)&"G",ClassAll,COLUMN(Classes!$B$4),0)),"PPE Class",VLOOKUP("B"&MID($B9,2,LEN($B9)-2)&"G",ClassAll,COLUMN(Classes!$B$4),0)) -> Depreciation Rate - Office equipment | D9: 0.2 | E9: 0.2 | F9: 0.2 | G9: 0.2 | H9: 0.2 | I9: 0.2 | J9: 0.2 | K9: 0.2
A10: =IF(ISNA(VLOOKUP("B"&MID($B10,2,LEN($B10)-2)&"G",ClassAll,COLUMN(Classes!$B$4),0)),"error!","ok") -> ok | B10: F-0005R | C10: ="Depreciation Rate - "&IF(ISNA(VLOOKUP("B"&MID($B10,2,LEN($B10)-2)&"G",ClassAll,COLUMN(Classes!$B$4),0)),"PPE Class",VLOOKUP("B"&MID($B10,2,LEN($B10)-2)&"G",ClassAll,COLUMN(Classes!$B$4),0)) -> Depreciation Rate - Computer equipment | D10: 0.333 | E10: 0.333 | F10: 0.333 | G10: 0.333 | H10: 0.333 | I10: 0.333 | J10: 0.333 | K10: 0.333
A11: =IF(ISNA(VLOOKUP("B"&MID($B11,2,LEN($B11)-2)&"G",ClassAll,COLUMN(Classes!$B$4),0)),"error!","ok") -> ok | B11: F-0006R | C11: ="Depreciation Rate - "&IF(ISNA(VLOOKUP("B"&MID($B11,2,LEN($B11)-2)&"G",ClassAll,COLUMN(Classes!$B$4),0)),"PPE Class",VLOOKUP("B"&MID($B11,2,LEN($B11)-2)&"G",ClassAll,COLUMN(Classes!$B$4),0)) -> Depreciation Rate - Motor vehicles | D11: 0.25 | E11: 0.25 | F11: 0.25 | G11: 0.25 | H11: 0.25 | I11: 0.25 | J11: 0.25 | K11: 0.25
A12: =IF(ISNA(VLOOKUP("B"&MID($B12,2,LEN($B12)-2)&"G",ClassAll,COLUMN(Classes!$B$4),0)),"error!","ok") -> ok | B12: F-0001D | C12: ="Disposals - Cost - "&IF(ISNA(VLOOKUP("B"&MID($B12,2,LEN($B12)-2)&"G",ClassAll,COLUMN(Classes!$B$4),0)),"PPE Class",VLOOKUP("B"&MID($B12,2,LEN($B12)-2)&"G",ClassAll,COLUMN(Classes!$B$4),0)) -> Disposals - Cost - Land & buildings | D12: 0 | E12: 0 | F12: 0 | G12: 0 | H12: 0 | I12: 0 | J12: 0 | K12: 0
A13: =IF(ISNA(VLOOKUP("B"&MID($B13,2,LEN($B13)-2)&"G",ClassAll,COLUMN(Classes!$B$4),0)),"error!","ok") -> ok | B13: F-0002D | C13: ="Disposals - Cost - "&IF(ISNA(VLOOKUP("B"&MID($B13,2,LEN($B13)-2)&"G",ClassAll,COLUMN(Classes!$B$4),0)),"PPE Class",VLOOKUP("B"&MID($B13,2,LEN($B13)-2)&"G",ClassAll,COLUMN(Classes!$B$4),0)) -> Disposals - Cost - Plant & equipment | D13: 0 | E13: -110000 | F13: 0 | G13: 0 | H13: 0 | I13: 0 | J13: 0 | K13: 0
A14: =IF(ISNA(VLOOKUP("B"&MID($B14,2,LEN($B14)-2)&"G",ClassAll,COLUMN(Classes!$B$4),0)),"error!","ok") -> ok | B14: F-0003D | C14: ="Disposals - Cost - "&IF(ISNA(VLOOKUP("B"&MID($B14,2,LEN($B14)-2)&"G",ClassAll,COLUMN(Classes!$B$4),0)),"PPE Class",VLOOKUP("B"&MID($B14,2,LEN($B14)-2)&"G",ClassAll,COLUMN(Classes!$B$4),0)) -> Disposals - Cost - Furniture & fittings | D14: 0 | E14: 0 | F14: 0 | G14: 0 | H14: 0 | I14: 0 | J14: 0 | K14: 0
A15: =IF(ISNA(VLOOKUP("B"&MID($B15,2,LEN($B15)-2)&"G",ClassAll,COLUMN(Classes!$B$4),0)),"error!","ok") -> ok | B15: F-0004D | C15: ="Disposals - Cost - "&IF(ISNA(VLOOKUP("B"&MID($B15,2,LEN($B15)-2)&"G",ClassAll,COLUMN(Classes!$B$4),0)),"PPE Class",VLOOKUP("B"&MID($B15,2,LEN($B15)-2)&"G",ClassAll,COLUMN(Classes!$B$4),0)) -> Disposals - Cost - Office equipment | D15: 0 | E15: 0 | F15: 0 | G15: 0 | H15: 0 | I15: 0 | J15: 0 | K15: 0
A16: =IF(ISNA(VLOOKUP("B"&MID($B16,2,LEN($B16)-2)&"G",ClassAll,COLUMN(Classes!$B$4),0)),"error!","ok") -> ok | B16: F-0005D | C16: ="Disposals - Cost - "&IF(ISNA(VLOOKUP("B"&MID($B16,2,LEN($B16)-2)&"G",ClassAll,COLUMN(Classes!$B$4),0)),"PPE Class",VLOOKUP("B"&MID($B16,2,LEN($B16)-2)&"G",ClassAll,COLUMN(Classes!$B$4),0)) -> Disposals - Cost - Computer equipment | D16: 0 | E16: 0 | F16: 0 | G16: 0 | H16: 0 | I16: 0 | J16: 0 | K16: 0
A17: =IF(ISNA(VLOOKUP("B"&MID($B17,2,LEN($B17)-2)&"G",ClassAll,COLUMN(Classes!$B$4),0)),"error!","ok") -> ok | B17: F-0006D | C17: ="Disposals - Cost - "&IF(ISNA(VLOOKUP("B"&MID($B17,2,LEN($B17)-2)&"G",ClassAll,COLUMN(Classes!$B$4),0)),"PPE Class",VLOOKUP("B"&MID($B17,2,LEN($B17)-2)&"G",ClassAll,COLUMN(Classes!$B$4),0)) -> Disposals - Cost - Motor vehicles | D17: 0 | E17: 0 | F17: -318000 | G17: 0 | H17: 0 | I17: 0 | J17: 0 | K17: 0
A18: =IF(ISNA(VLOOKUP("B"&MID($B18,2,LEN($B18)-2)&"G",ClassAll,COLUMN(Classes!$B$4),0)),"error!","ok") -> ok | B18: F-0001I | C18: ="Impairment - Cost - "&IF(ISNA(VLOOKUP("B"&MID($B18,2,LEN($B18)-2)&"G",ClassAll,COLUMN(Classes!$B$4),0)),"PPE Class",VLOOKUP("B"&MID($B18,2,LEN($B18)-2)&"G",ClassAll,COLUMN(Classes!$B$4),0)) -> Impairment - Cost - Land & buildings | D18: 0 | E18: 0 | F18: -100000 | G18: 0 | H18: 0 | I18: 0 | J18: 0 | K18: 0
A19: =IF(ISNA(VLOOKUP("B"&MID($B19,2,LEN($B19)-2)&"G",ClassAll,COLUMN(Classes!$B$4),0)),"error!","ok") -> ok | B19: F-0002I | C19: ="Impairment - Cost - "&IF(ISNA(VLOOKUP("B"&MID($B19,2,LEN($B19)-2)&"G",ClassAll,COLUMN(Classes!$B$4),0)),"PPE Class",VLOOKUP("B"&MID($B19,2,LEN($B19)-2)&"G",ClassAll,COLUMN(Classes!$B$4),0)) -> Impairment - Cost - Plant & equipment | D19: 0 | E19: 0 | F19: 0 | G19: 0 | H19: 0 | I19: 0 | J19: 0 | K19: 0
A20: =IF(ISNA(VLOOKUP("B"&MID($B20,2,LEN($B20)-2)&"G",ClassAll,COLUMN(Classes!$B$4),0)),"error!","ok") -> ok | B20: F-0003I | C20: ="Impairment - Cost - "&IF(ISNA(VLOOKUP("B"&MID($B20,2,LEN($B20)-2)&"G",ClassAll,COLUMN(Classes!$B$4),0)),"PPE Class",VLOOKUP("B"&MID($B20,2,LEN($B20)-2)&"G",ClassAll,COLUMN(Classes!$B$4),0)) -> Impairment - Cost - Furniture & fittings | D20: 0 | E20: 0 | F20: 0 | G20: 0 | H20: 0 | I20: 0 | J20: 0 | K20: 0
A21: =IF(ISNA(VLOOKUP("B"&MID($B21,2,LEN($B21)-2)&"G",ClassAll,COLUMN(Classes!$B$4),0)),"error!","ok") -> ok | B21: F-0004I | C21: ="Impairment - Cost - "&IF(ISNA(VLOOKUP("B"&MID($B21,2,LEN($B21)-2)&"G",ClassAll,COLUMN(Classes!$B$4),0)),"PPE Class",VLOOKUP("B"&MID($B21,2,LEN($B21)-2)&"G",ClassAll,COLUMN(Classes!$B$4),0)) -> Impairment - Cost - Office equipment | D21: 0 | E21: 0 | F21: 0 | G21: 0 | H21: 0 | I21: 0 | J21: 0 | K21: 0
A22: =IF(ISNA(VLOOKUP("B"&MID($B22,2,LEN($B22)-2)&"G",ClassAll,COLUMN(Classes!$B$4),0)),"error!","ok") -> ok | B22: F-0005I | C22: ="Impairment - Cost - "&IF(ISNA(VLOOKUP("B"&MID($B22,2,LEN($B22)-2)&"G",ClassAll,COLUMN(Classes!$B$4),0)),"PPE Class",VLOOKUP("B"&MID($B22,2,LEN($B22)-2)&"G",ClassAll,COLUMN(Classes!$B$4),0)) -> Impairment - Cost - Computer equipment | D22: 0 | E22: 0 | F22: 0 | G22: 0 | H22: 0 | I22: 0 | J22: 0 | K22: 0
A23: =IF(ISNA(VLOOKUP("B"&MID($B23,2,LEN($B23)-2)&"G",ClassAll,COLUMN(Classes!$B$4),0)),"error!","ok") -> ok | B23: F-0006I | C23: ="Impairment - Cost - "&IF(ISNA(VLOOKUP("B"&MID($B23,2,LEN($B23)-2)&"G",ClassAll,COLUMN(Classes!$B$4),0)),"PPE Class",VLOOKUP("B"&MID($B23,2,LEN($B23)-2)&"G",ClassAll,COLUMN(Classes!$B$4),0)) -> Impairment - Cost - Motor vehicles | D23: 0 | E23: 0 | F23: 0 | G23: 0 | H23: 0 | I23: 0 | J23: 0 | K23: 0
A24: =IF(ISNA(VLOOKUP("B"&MID($B24,2,LEN($B24)-2)&"G",ClassAll,COLUMN(Classes!$B$4),0)),"error!","ok") -> ok | B24: F-0101D | C24: ="Disposals - Accum Depr - "&IF(ISNA(VLOOKUP("B"&MID($B24,2,LEN($B24)-2)&"G",ClassAll,COLUMN(Classes!$B$4),0)),"PPE Class",VLOOKUP("B"&MID($B24,2,LEN($B24)-2)&"G",ClassAll,COLUMN(Classes!$B$4),0)) -> Disposals - Accum Depr - Land & buildings | D24: 0 | E24: 0 | F24: 0 | G24: 0 | H24: 0 | I24: 0 | J24: 0 | K24: 0
A25: =IF(ISNA(VLOOKUP("B"&MID($B25,2,LEN($B25)-2)&"G",ClassAll,COLUMN(Classes!$B$4),0)),"error!","ok") -> ok | B25: F-0102D | C25: ="Disposals - Accum Depr - "&IF(ISNA(VLOOKUP("B"&MID($B25,2,LEN($B25)-2)&"G",ClassAll,COLUMN(Classes!$B$4),0)),"PPE Class",VLOOKUP("B"&MID($B25,2,LEN($B25)-2)&"G",ClassAll,COLUMN(Classes!$B$4),0)) -> Disposals - Accum Depr - Plant & equipment | D25: 0 | E25: -50000 | F25: 0 | G25: 0 | H25: 0 | I25: 0 | J25: 0 | K25: 0
A26: =IF(ISNA(VLOOKUP("B"&MID($B26,2,LEN($B26)-2)&"G",ClassAll,COLUMN(Classes!$B$4),0)),"error!","ok") -> ok | B26: F-0103D | C26: ="Disposals - Accum Depr - "&IF(ISNA(VLOOKUP("B"&MID($B26,2,LEN($B26)-2)&"G",ClassAll,COLUMN(Classes!$B$4),0)),"PPE Class",VLOOKUP("B"&MID($B26,2,LEN($B26)-2)&"G",ClassAll,COLUMN(Classes!$B$4),0)) -> Disposals - Accum Depr - Furniture & fittings | D26: 0 | E26: 0 | F26: 0 | G26: 0 | H26: 0 | I26: 0 | J26: 0 | K26: 0
A27: =IF(ISNA(VLOOKUP("B"&MID($B27,2,LEN($B27)-2)&"G",ClassAll,COLUMN(Classes!$B$4),0)),"error!","ok") -> ok | B27: F-0104D | C27: ="Disposals - Accum Depr - "&IF(ISNA(VLOOKUP("B"&MID($B27,2,LEN($B27)-2)&"G",ClassAll,COLUMN(Classes!$B$4),0)),"PPE Class",VLOOKUP("B"&MID($B27,2,LEN($B27)-2)&"G",ClassAll,COLUMN(Classes!$B$4),0)) -> Disposals - Accum Depr - Office equipment | D27: 0 | E27: 0 | F27: 0 | G27: 0 | H27: 0 | I27: 0 | J27: 0 | K27: 0
A28: =IF(ISNA(VLOOKUP("B"&MID($B28,2,LEN($B28)-2)&"G",ClassAll,COLUMN(Classes!$B$4),0)),"error!","ok") -> ok | B28: F-0105D | C28: ="Disposals - Accum Depr - "&IF(ISNA(VLOOKUP("B"&MID($B28,2,LEN($B28)-2)&"G",ClassAll,COLUMN(Classes!$B$4),0)),"PPE Class",VLOOKUP("B"&MID($B28,2,LEN($B28)-2)&"G",ClassAll,COLUMN(Classes!$B$4),0)) -> Disposals - Accum Depr - Computer equipment | D28: 0 | E28: 0 | F28: 0 | G28: 0 | H28: 0 | I28: 0 | J28: 0 | K28: 0
A29: =IF(ISNA(VLOOKUP("B"&MID($B29,2,LEN($B29)-2)&"G",ClassAll,COLUMN(Classes!$B$4),0)),"error!","ok") -> ok | B29: F-0106D | C29: ="Disposals - Accum Depr - "&IF(ISNA(VLOOKUP("B"&MID($B29,2,LEN($B29)-2)&"G",ClassAll,COLUMN(Classes!$B$4),0)),"PPE Class",VLOOKUP("B"&MID($B29,2,LEN($B29)-2)&"G",ClassAll,COLUMN(Classes!$B$4),0)) -> Disposals - Accum Depr - Motor vehicles | D29: 0 | E29: 0 | F29: -278250 | G29: 0 | H29: 0 | I29: 0 | J29: 0 | K29: 0
A30: =IF(ISNA(VLOOKUP("B"&MID($B30,2,LEN($B30)-2)&"G",ClassAll,COLUMN(Classes!$B$4),0)),"error!","ok") -> ok | B30: F-0101I | C30: ="Impairment - Accum Depr - "&IF(ISNA(VLOOKUP("B"&MID($B30,2,LEN($B30)-2)&"G",ClassAll,COLUMN(Classes!$B$4),0)),"PPE Class",VLOOKUP("B"&MID($B30,2,LEN($B30)-2)&"G",ClassAll,COLUMN(Classes!$B$4),0)) -> Impairment - Accum Depr - Land & buildings | D30: 0 | E30: 0 | F30: 0 | G30: 0 | H30: 0 | I30: 0 | J30: 0 | K30: 0
A31: =IF(ISNA(VLOOKUP("B"&MID($B31,2,LEN($B31)-2)&"G",ClassAll,COLUMN(Classes!$B$4),0)),"error!","ok") -> ok | B31: F-0102I | C31: ="Impairment - Accum Depr - "&IF(ISNA(VLOOKUP("B"&MID($B31,2,LEN($B31)-2)&"G",ClassAll,COLUMN(Classes!$B$4),0)),"PPE Class",VLOOKUP("B"&MID($B31,2,LEN($B31)-2)&"G",ClassAll,COLUMN(Classes!$B$4),0)) -> Impairment - Accum Depr - Plant & equipment | D31: 0 | E31: 0 | F31: 0 | G31: 0 | H31: 0 | I31: 0 | J31: 0 | K31: 0
A32: =IF(ISNA(VLOOKUP("B"&MID($B32,2,LEN($B32)-2)&"G",ClassAll,COLUMN(Classes!$B$4),0)),"error!","ok") -> ok | B32: F-0103I | C32: ="Impairment - Accum Depr - "&IF(ISNA(VLOOKUP("B"&MID($B32,2,LEN($B32)-2)&"G",ClassAll,COLUMN(Classes!$B$4),0)),"PPE Class",VLOOKUP("B"&MID($B32,2,LEN($B32)-2)&"G",ClassAll,COLUMN(Classes!$B$4),0)) -> Impairment - Accum Depr - Furniture & fittings | D32: 0 | E32: 0 | F32: 0 | G32: 0 | H32: 0 | I32: 0 | J32: 0 | K32: 0
A33: =IF(ISNA(VLOOKUP("B"&MID($B33,2,LEN($B33)-2)&"G",ClassAll,COLUMN(Classes!$B$4),0)),"error!","ok") -> ok | B33: F-0104I | C33: ="Impairment - Accum Depr - "&IF(ISNA(VLOOKUP("B"&MID($B33,2,LEN($B33)-2)&"G",ClassAll,COLUMN(Classes!$B$4),0)),"PPE Class",VLOOKUP("B"&MID($B33,2,LEN($B33)-2)&"G",ClassAll,COLUMN(Classes!$B$4),0)) -> Impairment - Accum Depr - Office equipment | D33: 0 | E33: 0 | F33: 0 | G33: 0 | H33: 0 | I33: 0 | J33: 0 | K33: 0
A34: =IF(ISNA(VLOOKUP("B"&MID($B34,2,LEN($B34)-2)&"G",ClassAll,COLUMN(Classes!$B$4),0)),"error!","ok") -> ok | B34: F-0105I | C34: ="Impairment - Accum Depr - "&IF(ISNA(VLOOKUP("B"&MID($B34,2,LEN($B34)-2)&"G",ClassAll,COLUMN(Classes!$B$4),0)),"PPE Class",VLOOKUP("B"&MID($B34,2,LEN($B34)-2)&"G",ClassAll,COLUMN(Classes!$B$4),0)) -> Impairment - Accum Depr - Computer equipment | D34: 0 | E34: 0 | F34: 0 | G34: 0 | H34: 0 | I34: 0 | J34: 0 | K34: 0
A35: =IF(ISNA(VLOOKUP("B"&MID($B35,2,LEN($B35)-2)&"G",ClassAll,COLUMN(Classes!$B$4),0)),"error!","ok") -> ok | B35: F-0106I | C35: ="Impairment - Accum Depr - "&IF(ISNA(VLOOKUP("B"&MID($B35,2,LEN($B35)-2)&"G",ClassAll,COLUMN(Classes!$B$4),0)),"PPE Class",VLOOKUP("B"&MID($B35,2,LEN($B35)-2)&"G",ClassAll,COLUMN(Classes!$B$4),0)) -> Impairment - Accum Depr - Motor vehicles | D35: 0 | E35: 0 | F35: 0 | G35: 0 | H35: 0 | I35: 0 | J35: 0 | K35: 0
A36: =IF(ISNA(VLOOKUP(LEFT($B36,LEN($B36)-1)&"G",FinData,COLUMN($C$43)-1,0)),"error!","ok") -> ok | B36: F-1601C | C36: ="Charges - "&IF(ISNA(VLOOKUP(LEFT($B36,LEN($B36)-1)&"G",FinData,COLUMN($C$43)-1,0)),"Provisions",VLOOKUP(LEFT($B36,LEN($B36)-1)&"G",FinData,COLUMN($C$43)-1,0)) -> Charges - Claims | D36: 45000 | E36: 48000 | F36: 53200 | G36: 0 | H36: 0 | I36: 0 | J36: 0 | K36: 0
A37: ok | B37: F-1602C | C37: ="Charges - "&IF(ISNA(VLOOKUP(LEFT($B37,LEN($B37)-1)&"G",FinData,COLUMN($C$43)-1,0)),"Provisions",VLOOKUP(LEFT($B37,LEN($B37)-1)&"G",FinData,COLUMN($C$43)-1,0)) -> Charges - Leave | D37: 59500 | E37: 69500 | F37: 51500 | G37: 0 | H37: 0 | I37: 0 | J37: 0 | K37: 0
A38: ok | B38: F-1603C | C38: ="Charges - "&IF(ISNA(VLOOKUP(LEFT($B38,LEN($B38)-1)&"G",FinData,COLUMN($C$43)-1,0)),"Provisions",VLOOKUP(LEFT($B38,LEN($B38)-1)&"G",FinData,COLUMN($C$43)-1,0)) -> Charges - Bonuses | D38: 72530 | E38: 90000 | F38: 97170 | G38: 0 | H38: 0 | I38: 0 | J38: 0 | K38: 0
A39: ok | B39: F-1601R | C39: ="Reversals - "&IF(ISNA(VLOOKUP(LEFT($B39,LEN($B39)-1)&"G",FinData,COLUMN($C$43)-1,0)),"Provisions",VLOOKUP(LEFT($B39,LEN($B39)-1)&"G",FinData,COLUMN($C$43)-1,0)) -> Reversals - Claims | D39: 1500 | E39: 2000 | F39: 1100 | G39: 0 | H39: 0 | I39: 0 | J39: 0 | K39: 0
A40: ok | B40: F-1602R | C40: ="Reversals - "&IF(ISNA(VLOOKUP(LEFT($B40,LEN($B40)-1)&"G",FinData,COLUMN($C$43)-1,0)),"Provisions",VLOOKUP(LEFT($B40,LEN($B40)-1)&"G",FinData,COLUMN($C$43)-1,0)) -> Reversals - Leave | D40: 0 | E40: 2500 | F40: 10000 | G40: 0 | H40: 0 | I40: 0 | J40: 0 | K40: 0
A41: ok | B41: F-1603R | C41: ="Reversals - "&IF(ISNA(VLOOKUP(LEFT($B41,LEN($B41)-1)&"G",FinData,COLUMN($C$43)-1,0)),"Provisions",VLOOKUP(LEFT($B41,LEN($B41)-1)&"G",FinData,COLUMN($C$43)-1,0)) -> Reversals - Bonuses | D41: 1589 | E41: 437 | F41: 1900 | G41: 0 | H41: 0 | I41: 0 | J41: 0 | K41: 0
B42: Items with descriptions and balances that are used on the financial statements
B43: F-16G | C43: Other provisions
A44: =IF(ISNA(VLOOKUP($B44,AFSClass,1,0)),"add!","ok") -> ok | B44: F-1601G | C44: Claims | D44: -50000 | E44: -54300 | F44: -61800 | G44: 0 | H44: 0 | I44: 0 | J44: 0 | K44: 0
A45: =IF(ISNA(VLOOKUP($B45,AFSClass,1,0)),"add!","ok") -> ok | B45: F-1602G | C45: Leave | D45: -71200 | E45: -61500 | F45: -82650 | G45: 0 | H45: 0 | I45: 0 | J45: 0 | K45: 0
A46: =IF(ISNA(VLOOKUP($B46,AFSClass,1,0)),"add!","ok") -> ok | B46: F-1603G | C46: Bonuses | D46: -90437 | E46: -99070 | F46: -70373 | G46: 0 | H46: 0 | I46: 0 | J46: 0 | K46: 0
B47: Items with balances that are linked to specific reporting classes (as per Classes sheet)
A48: =IF(ISERROR(FIND("G",$B48)),"no G!",IF(COUNTIF(TBClass,IF(LEFT($B48,1)="E","I","B")&MID($B48,2,FIND("G",$B48)-1))=0,"class!",IF(ISNA(VLOOKUP($B48,AFSClass,1,0)),"add!","ok"))) -> ok | B48: F-08G | C48: Amounts due by related parties | D48: 3000 | E48: 5000 | F48: 8000 | G48: 0 | H48: 0 | I48: 0 | J48: 0 | K48: 0
A49: =IF(ISERROR(FIND("G",$B49)),"no G!",IF(COUNTIF(TBClass,IF(LEFT($B49,1)="E","I","B")&MID($B49,2,FIND("G",$B49)-1))=0,"class!",IF(ISNA(VLOOKUP($B49,AFSClass,1,0)),"add!","ok"))) -> ok | B49: F-12G | C49: Amounts due to related parties | D49: -5000 | E49: -8000 | F49: -12000 | G49: 0 | H49: 0 | I49: 0 | J49: 0 | K49: 0
A50: =IF(ISERROR(FIND("G",$B50)),"no G!",IF(COUNTIF(TBClass,IF(LEFT($B50,1)="E","I","B")&MID($B50,2,FIND("G",$B50)-1))=0,"class!",IF(ISNA(VLOOKUP($B50,AFSClass,1,0)),"add!","ok"))) -> ok | B50: F-1801G | C50: Short term loan - Bank One | D50: -545076 | E50: -546917 | F50: -547010 | G50: 0 | H50: 0 | I50: 0 | J50: 0 | K50: 0
A51: =IF(ISERROR(FIND("G",$B51)),"no G!",IF(COUNTIF(TBClass,IF(LEFT($B51,1)="E","I","B")&MID($B51,2,FIND("G",$B51)-1))=0,"class!",IF(ISNA(VLOOKUP($B51,AFSClass,1,0)),"add!","ok"))) -> ok | B51: F-1802G | C51: Short term loan - Bank Two | D51: 0 | E51: -154776 | F51: -155210 | G51: 0 | H51: 0 | I51: 0 | J51: 0 | K51: 0
A52: =IF(ISERROR(FIND("G",$B52)),"no G!",IF(COUNTIF(TBClass,IF(LEFT($B52,1)="E","I","B")&MID($B52,2,FIND("G",$B52)-1))=0,"class!",IF(ISNA(VLOOKUP($B52,AFSClass,1,0)),"add!","ok"))) -> ok | B52: F-2301G | C52: Current liability | D52: -62974 | E52: -69568 | F52: -77089 | G52: 0 | H52: 0 | I52: 0 | J52: 0 | K52: 0
A53: =IF(ISERROR(FIND("G",$B53)),"no G!",IF(COUNTIF(TBClass,IF(LEFT($B53,1)="E","I","B")&MID($B53,2,FIND("G",$B53)-1))=0,"class!",IF(ISNA(VLOOKUP($B53,AFSClass,1,0)),"add!","ok"))) -> ok | B53: E-06G01G | C53: Interest on finance leases | D53: 24074 | E53: 18105 | F53: 28483 | G53: 0 | H53: 0 | I53: 0 | J53: 0 | K53: 0
A54: =IF(ISERROR(FIND("G",$B54)),"no G!",IF(COUNTIF(TBClass,IF(LEFT($B54,1)="E","I","B")&MID($B54,2,FIND("G",$B54)-1))=0,"class!",IF(ISNA(VLOOKUP($B54,AFSClass,1,0)),"add!","ok"))) -> ok | B54: E-06G02G | C54: Interest received | D54: 0 | E54: 0 | F54: 0 | G54: 0 | H54: 0 | I54: 0 | J54: 0 | K54: 0
A55: =IF(ISERROR(FIND("G",$B55)),"no G!",IF(COUNTIF(TBClass,IF(LEFT($B55,1)="E","I","B")&MID($B55,2,FIND("G",$B55)-1))=0,"class!",IF(ISNA(VLOOKUP($B55,AFSClass,1,0)),"add!","ok"))) -> ok | B55: E-0900G | C55: Interest received | D55: 0 | E55: 0 | F55: 0 | G55: 0 | H55: 0 | I55: 0 | J55: 0 | K55: 0
B56: Items that are used in other disclosures
A57: =IF(ISNA(VLOOKUP($B57,AFSClass,1,0)),"missing!","ok") -> ok | B57: F-LEASENEW | C57: New finance leases | D57: 0 | E57: 0 | F57: 300000 | G57: 0 | H57: 0 | I57: 0 | J57: 0 | K57: 0
A58: ok | B58: F-LOANNEW | C58: Proceeds from new loans | D58: 0 | E58: 900000 | F58: 0 | G58: 0 | H58: 0 | I58: 0 | J58: 0 | K58: 0
A59: ok | B59: F-TAX% | C59: Income tax percentage | D59: 0 | E59: 28 | F59: 28 | G59: 0 | H59: 0 | I59: 0 | J59: 0 | K59: 0
A60: ok | B60: F-TAXR01 | C60: Exempt income | D60: 0 | E60: -28 | F60: -28 | G60: 0 | H60: 0 | I60: 0 | J60: 0 | K60: 0
A61: ok | B61: F-TAXR02 | C61: Assessed loss carried over from prior year | D61: 0 | E61: 0 | F61: 0 | G61: 0 | H61: 0 | I61: 0 | J61: 0 | K61: 0
A62: ok | B62: F-TAXR03 | C62: Prior year (over) / under estimation | D62: 0 | E62: 0 | F62: 0 | G62: 0 | H62: 0 | I62: 0 | J62: 0 | K62: 0
A63: ok | B63: F-00L | C63: Carrying amount of leased assets | D63: 159000 | E63: 79500 | F63: 395500 | G63: 0 | H63: 0 | I63: 0 | J63: 0 | K63: 0
A64: ok | B64: F-IMP | C64: Impairment of property, plant & equipment | D64: 0 | E64: 0 | F64: 100000 | G64: 0 | H64: 0 | I64: 0 | J64: 0 | K64: 0
A65: ok | B65: F-CONT01 | C65: Contingent liabilities | D65: 0 | E65: 0 | F65: 150000 | G65: 0 | H65: 0 | I65: 0 | J65: 0 | K65: 0
A66: ok | B66: F-EVENT01 | C66: Event after end of reporting period | D66: 0 | E66: 0 | F66: 175000 | G66: 0 | H66: 0 | I66: 0 | J66: 0 | K66: 0
A67: ok | B67: F-FLEASEP1 | C67: Minimum finance lease payments: < 1 year | D67: 81078 | E67: 81078 | F67: 115243 | G67: 0 | H67: 0 | I67: 0 | J67: 0 | K67: 0
A68: ok | B68: F-FLEASEP5 | C68: Minimum finance lease payments: 1 - 5 years | D68: 162156 | E68: 81078 | F68: 403353 | G68: 0 | H68: 0 | I68: 0 | J68: 0 | K68: 0
A69: ok | B69: F-FLEASEP9 | C69: Minimum finance lease payments: > 5 years | D69: 0 | E69: 0 | F69: 0 | G69: 0 | H69: 0 | I69: 0 | J69: 0 | K69: 0
A70: ok | B70: F-OLEASEAP | C70: Operating lease average period | D70: 3 | E70: 3 | F70: 3 | G70: 0 | H70: 0 | I70: 0 | J70: 0 | K70: 0
A71: ok | B71: F-OLEASEXP | C71: Operating lease expenses for the year | D71: 12500 | E71: 13400 | F71: 11850 | G71: 0 | H71: 0 | I71: 0 | J71: 0 | K71: 0
A72: ok | B72: F-OLEASEP1 | C72: Minimum operating lease payments: < 1 year | D72: 12000 | E72: 12000 | F72: 12000 | G72: 0 | H72: 0 | I72: 0 | J72: 0 | K72: 0
A73: ok | B73: F-OLEASEP5 | C73: Minimum operating lease payments: 1 - 5 years | D73: 28000 | E73: 30000 | F73: 24000 | G73: 0 | H73: 0 | I73: 0 | J73: 0 | K73: 0
A74: ok | B74: F-OLEASEP9 | C74: Minimum operating lease payments: > 5 years | D74: 0 | E74: 0 | F74: 0 | G74: 0 | H74: 0 | I74: 0 | J74: 0 | K74: 0
A75: ok | B75: F-REMUN | C75: Total remuneration of board & management | D75: 801250 | E75: 834640 | F75: 1085720 | G75: 0 | H75: 0 | I75: 0 | J75: 0 | K75: 0

Sheet AFS
K1: NOTE: Print area is only from column B to J.
B5: =Setup!$A$1 -> Example NPC
B6: ="(Registration Number: "&IF(ISBLANK($E$88),"0000 000000 00",$E$88)&")" -> (Registration Number: 999 000 000)
B10: Financial statements
B11: ="for the year ended "&Setup!$F$12 -> for the year ended 29 February 2024
B27: =Setup!$A$1 -> Example NPC
B28: Financial Statements
B29: ="for the year ended "&Setup!$F$12 -> for the year ended 29 February 2024
B31: Table of contents | C31: =IF(INFO("system")="mac",CHAR(13),CHAR(10)) ->  | I31: Page
B33: General information | I33: 3
B35: Independent reviewer's report | I35: 4
B37: Board members' report | I37: 5
B39: Statement of comprehensive income and retained surplus | I39: 6
B41: Statement of financial position | I41: 7
B43: Statement of changes in equity | I43: 8
B45: Statement of cash flows | I45: 9
B47: Accounting policies and explanatory notes to the financial statements | I47: =10&" - "&IF(ISBLANK(Setup!$B$14),"18",Setup!$B$14) -> 10 - 16
B49: Approval of financial statements
B51: ="These financial statements were approved by the board members & authorised for issue on "&TEXT(Setup!$C$16,"dd mmmm yyyy")&"." -> These financial statements were approved by the board members & authorised for issue on 30 April 2024.
K57: <<<== Enter board member details
B58: Name of Board Member
B59: Board Member
B60: =TEXT(Setup!$C$16,"dd mmmm yyyy") -> 30 April 2024
B61: =Setup!$A$1 -> Example NPC
B62: Financial Statements
B63: ="for the year ended "&Setup!$F$12 -> for the year ended 29 February 2024
B65: General information | K65: Note: Enter the required information in column E.
B67: Country of incorporation | E67: South Africa
B69: Reporting currency | E69: South African Rand
B71: Registered office | E71: Street Address
E72: Suburb
E73: City, Code
B75: Business address | E75: Street Address
E76: Suburb
E77: City, Code
B79: Postal address | E79: PO Box 9999, Suburb
E80: City, Code
B82: Bankers | E82: AAA Bank
B84: Accountants | E84: AN Accountants
B86: Registration number | E86: 2015 000000 00
B88: PBO Number | E88: 999 000 000
B90: =Setup!$A$1 -> Example NPC
B91: Financial Statements
B92: ="for the year ended "&Setup!$F$12 -> for the year ended 29 February 2024
B94: INDEPENDENT REVIEWER'S REPORT | K94: Note: This report is intended as an example. Replace if needed.
B96: ="To the board members of "&$B$90 -> To the board members of Example NPC
B98: =P98 -> We have reviewed the accompanying financial statements of Example NPC that comprise the statement of financial position as at 29 February 2024, and the statement of comprehensive income, statement of changes in equity and statement of cash flows for the year then ended, and a summary of significant accounting policies and other explanatory information. | K98: Edit in column P ==>>> | P98: ="We have reviewed the accompanying financial statements of "&$B$90&" that comprise the statement of financial position as at "&Setup!$F$12&", and the statement of comprehensive income, statement of changes in equity and statement of cash flows for the year then ended,"&" and a summary of significant accounting policies and other explanatory information." -> We have reviewed the accompanying financial statements of Example NPC that comprise the statement of financial position as at 29 February 2024, and the statement of comprehensive income, statement of changes in equity and statement of cash flows for the year then ended, and a summary of significant accounting policies and other explanatory information.
B100: =P100 -> Board Members' Responsibility for the Financial Statements | K100: Edit in column P ==>>> | P100: Board Members' Responsibility for the Financial Statements
B102: =P102 -> The board members are responsible for the preparation and fair presentation of these financial statements in accordance with International Financial Reporting Standards for Small and Medium-sized Entities, and for such internal control as the board members determine is necessary to enable the preparation of financial statements that are free from material misstatement, whether due to fraud or error. | K102: Edit in column P ==>>> | P102: The board members are responsible for the preparation and fair presentation of these financial statements in accordance with International Financial Reporting Standards for Small and Medium-sized Entities, and for such internal control as the board members determine is necessary to enable the preparation of financial statements that are free from material misstatement, whether due to fraud or error.
B104: =P104 -> Independent Reviewer’s Responsibility | K104: Edit in column P ==>>> | P104: Independent Reviewer’s Responsibility
B106: =P106 -> Our responsibility is to express a conclusion on the accompanying financial statements based on our review. We conducted our review in accordance with International Standard on Review Engagements (ISRE) 2400 (Revised), Engagements to Review Historical Financial Statements. ISRE 2400 (Revised) requires us to conclude whether anything has come to our attention that causes us to believe that the financial statements, taken as a whole, are not prepared in all material respects in accordance with the applicable financial reporting framework. This Standard also requires us to comply with relevant ethical requirements. | K106: Edit in column P ==>>> | P106: Our responsibility is to express a conclusion on the accompanying financial statements based on our review. We conducted our review in accordance with International Standard on Review Engagements (ISRE) 2400 (Revised), Engagements to Review Historical Financial Statements. ISRE 2400 (Revised) requires us to conclude whether anything has come to our attention that causes us to believe that the financial statements, taken as a whole, are not prepared in all material respects in accordance with the applicable financial reporting framework. This Standard also requires us to comply with relevant ethical requirements.
B108: =P108 -> A review of financial statements in accordance with ISRE 2400 (Revised) is a limited assurance engagement. The independent reviewer performs procedures, primarily consisting of making inquiries of management and others within the entity, as appropriate, and applying analytical procedures, and evaluates the evidence obtained. The procedures performed in a review are substantially less than those performed in an audit conducted in accordance with International Standards on Auditing. Accordingly, we do not express an audit opinion on these financial statements. | K108: Edit in column P ==>>> | P108: A review of financial statements in accordance with ISRE 2400 (Revised) is a limited assurance engagement. The independent reviewer performs procedures, primarily consisting of making inquiries of management and others within the entity, as appropriate, and applying analytical procedures, and evaluates the evidence obtained. The procedures performed in a review are substantially less than those performed in an audit conducted in accordance with International Standards on Auditing. Accordingly, we do not express an audit opinion on these financial statements.
B110: =P110 -> Conclusion | K110: Edit in column P ==>>> | P110: Conclusion
B112: =P112 -> Based on our review, nothing has come to our attention that causes us to believe that these financial statements do not present fairly, in all material respects, the financial position of Example NPC as at 29 February 2024, and its financial performance and cash flows for the year then ended, in accordance with International Financial Reporting Standards for Small and Medium-sized Entities. | K112: Edit in column P ==>>> | P112: ="Based on our review, nothing has come to our attention that causes us to believe that these financial statements do not present fairly, in all material respects, the financial position of "&$B$90&" as at "&Setup!$F$12&", and its financial performance and cash flows for the year then ended, in accordance with International Financial Reporting Standards for Small and Medium-sized Entities." -> Based on our review, nothing has come to our attention that causes us to believe that these financial statements do not present fairly, in all material respects, the financial position of Example NPC as at 29 February 2024, and its financial performance and cash flows for the year then ended, in accordance with International Financial Reporting Standards for Small and Medium-sized Entities.
B119: NAME OF INDEPENDENT REVIEWER | K119: <<<== Enter accountant details & date
B120: ADDRESS
B121: DATE
B123: =Setup!$A$1 -> Example NPC
B124: Financial Statements
B125: ="for the year ended "&Setup!$F$12 -> for the year ended 29 February 2024
B127: BOARD MEMBERS' REPORT | K127: Note: Review & make changes where necessary.
B129: =P129 -> The board members of Example NPC present their Report together with the financial statements of the organization for the year ended 29 February 2024. | K129: Edit in column P ==>>> | P129: ="The board members of "&$B$123&" present their Report together with the financial statements of the organization for the year ended "&Setup!$F$12&"." -> The board members of Example NPC present their Report together with the financial statements of the organization for the year ended 29 February 2024.
B131: Main business activities
B133: =P133 -> The organization is a registered non-profit organization involved in skills development of the unemployed. There has been no change in the main business activities of the organization over the reporting period. | K133: Edit in column P ==>>> | P133: The organization is a registered non-profit organization involved in skills development of the unemployed. There has been no change in the main business activities of the organization over the reporting period.
B135: Board Members Details
B137: ="The following persons were board members of "&$B$123&" during or since the end of the financial year:" -> The following persons were board members of Example NPC during or since the end of the financial year:
B138: ■ Name of board member 1
B139: ■ Name of board member 2 | K139: <<<== Enter names of board members
B140: ■ Name of board member 3
B141: ■ Name of board member 4
B142: ■ Name of board member 5
B144: Review of operations and financial results | K144: =IF($G$163-$I$163=0,"remained unchanged at ",IF((($G$163-$I$163)/$I$163)<0,"decreased by "&FIXED(ABS((($G$163-$I$163)/$I$163)*100),1)&"% to ","increased by "&FIXED(ABS((($G$163-$I$163)/$I$163)*100),1)&"% to ")) -> remained unchanged at | M144: =IF($G$296-$I$296=0,"remained unchanged ",IF((($G$296-$I$296)/ABS($I$296))>0,"increased by "&FIXED(ABS((($G$296-$I$296)/ABS($I$296))*100),1)&"% ","decreased by "&FIXED(ABS((($G$296-$I$296)/ABS($I$296))*100),1)&"% ")) -> increased by 76.2%
K145: =IF($G$199-$I$199=0,"remained unchanged at ",IF((($G$199-$I$199)/ABS($I$199))>0,"increased by "&FIXED(ABS((($G$199-$I$199)/ABS($I$199))*100),1)&"% to ","decreased by "&FIXED(ABS((($G$199-$I$199)/ABS($I$199))*100),1)&"% to ")) -> increased by 2,359.8% to | M145: =IF($G$229-$I$229=0,"remained unchanged at ",IF((($G$229-$I$229)/ABS($I$229))>0,"increased by "&FIXED(ABS((($G$229-$I$229)/ABS($I$229))*100),1)&"% to ","decreased by "&FIXED(ABS((($G$229-$I$229)/ABS($I$229))*100),1)&"% to ")) -> increased by 20.6% to
B146: =P146 -> The organization's revenue remained unchanged at R0 during the financial year and the net profit increased by 2,359.8% to R20,515. Net cash flow from operating activities increased by 76.2% and the organization's net assets increased by 20.6% to R3,627,100. | K146: Edit in column P ==>>> | P146: ="The organization's revenue "&$K$144&Setup!$C$6&FIXED($G$163,0)&" during the financial year and the net profit "&$K$145&Setup!$C$6&FIXED($G$199,0)&". Net cash flow from operating activities "&M144&"and the organization's net assets "&M$145&Setup!$C$6&FIXED($G$229,0)&"." -> The organization's revenue remained unchanged at R0 during the financial year and the net profit increased by 2,359.8% to R20,515. Net cash flow from operating activities increased by 76.2% and the organization's net assets increased by 20.6% to R3,627,100.
B148: Significant changes in the state of affairs
B150: =P150 -> There were no significant changes in the state of affairs of the organization during the financial year or since the end of the financial year. | K150: Edit in column P ==>>> | P150: There were no significant changes in the state of affairs of the organization during the financial year or since the end of the financial year.
B152: Events arising since the end of the reporting period
B154: =P154 -> The board members are not aware of any material fact or circumstance arising between the end of the financial year and the date of this report that would require adjustments to or disclosure in the financial statements. | K154: Edit in column P ==>>> | P154: ="The board members are not aware of any material fact or circumstance arising between the end of the financial year and the date of this report that would require adjustments to or disclosure in the financial statements." -> The board members are not aware of any material fact or circumstance arising between the end of the financial year and the date of this report that would require adjustments to or disclosure in the financial statements.
B156: =Setup!$A$1 -> Example NPC
B157: Statement of comprehensive income and retained surplus
B158: ="for the year ended "&Setup!$F$12 -> for the year ended 29 February 2024
E160: Notes | G160: =YEAR(Setup!$B$12) -> 2024 | I160: =$G$160-1 -> 2023
G161: =Setup!$C$6 -> R | I161: =Setup!$C$6 -> R
B163: Revenue
A164: I-0101G | B164: Donations | G164: =-IF(OR(LEFT($A164,1)="F",LEFT($A164,1)="E"),IF(ISNA(SUMIF(FinData,$A164,FinCYData)),0,SUMIF(FinData,$A164,FinCYData)),IF(ISNA(SUMIF(TBData,$A164&"*",TBCYData)),0,SUMIF(TBData,$A164&"*",TBCYData))-IF(LEFT($A164,1)="I",IF(ISNA(SUMIF(FinData,"E"&MID($A164,2,LEN($A164)-2)&"G*",FinCYData)),0,SUMIF(FinData,"E"&MID($A164,2,LEN($A164)-2)&"G*",FinCYData)),IF(ISNA(SUMIF(FinData,"F"&MID($A164,2,LEN($A164)-2)&"G*",FinCYData)),0,SUMIF(FinData,"F"&MID($A164,2,LEN($A164)-2)&"G*",FinCYData)))) -> 2370245 | I164: =-IF(OR(LEFT($A164,1)="F",LEFT($A164,1)="E"),IF(ISNA(SUMIF(FinData,$A164,FinPYData)),0,SUMIF(FinData,$A164,FinPYData)),IF(ISNA(SUMIF(TBData,$A164&"*",TBPYData)),0,SUMIF(TBData,$A164&"*",TBPYData))-IF(LEFT($A164,1)="I",IF(ISNA(SUMIF(FinData,"E"&MID($A164,2,LEN($A164)-2)&"G*",FinPYData)),0,SUMIF(FinData,"E"&MID($A164,2,LEN($A164)-2)&"G*",FinPYData)),IF(ISNA(SUMIF(FinData,"F"&MID($A164,2,LEN($A164)-2)&"G*",FinPYData)),0,SUMIF(FinData,"F"&MID($A164,2,LEN($A164)-2)&"G*",FinPYData)))) -> 1972950
A165: I-0102G | B165: Fund raising | G165: =-IF(OR(LEFT($A165,1)="F",LEFT($A165,1)="E"),IF(ISNA(SUMIF(FinData,$A165,FinCYData)),0,SUMIF(FinData,$A165,FinCYData)),IF(ISNA(SUMIF(TBData,$A165&"*",TBCYData)),0,SUMIF(TBData,$A165&"*",TBCYData))-IF(LEFT($A165,1)="I",IF(ISNA(SUMIF(FinData,"E"&MID($A165,2,LEN($A165)-2)&"G*",FinCYData)),0,SUMIF(FinData,"E"&MID($A165,2,LEN($A165)-2)&"G*",FinCYData)),IF(ISNA(SUMIF(FinData,"F"&MID($A165,2,LEN($A165)-2)&"G*",FinCYData)),0,SUMIF(FinData,"F"&MID($A165,2,LEN($A165)-2)&"G*",FinCYData)))) -> 1541378 | I165: =-IF(OR(LEFT($A165,1)="F",LEFT($A165,1)="E"),IF(ISNA(SUMIF(FinData,$A165,FinPYData)),0,SUMIF(FinData,$A165,FinPYData)),IF(ISNA(SUMIF(TBData,$A165&"*",TBPYData)),0,SUMIF(TBData,$A165&"*",TBPYData))-IF(LEFT($A165,1)="I",IF(ISNA(SUMIF(FinData,"E"&MID($A165,2,LEN($A165)-2)&"G*",FinPYData)),0,SUMIF(FinData,"E"&MID($A165,2,LEN($A165)-2)&"G*",FinPYData)),IF(ISNA(SUMIF(FinData,"F"&MID($A165,2,LEN($A165)-2)&"G*",FinPYData)),0,SUMIF(FinData,"F"&MID($A165,2,LEN($A165)-2)&"G*",FinPYData)))) -> 1269087
A166: I-0103G | B166: Government grants | G166: =-IF(OR(LEFT($A166,1)="F",LEFT($A166,1)="E"),IF(ISNA(SUMIF(FinData,$A166,FinCYData)),0,SUMIF(FinData,$A166,FinCYData)),IF(ISNA(SUMIF(TBData,$A166&"*",TBCYData)),0,SUMIF(TBData,$A166&"*",TBCYData))-IF(LEFT($A166,1)="I",IF(ISNA(SUMIF(FinData,"E"&MID($A166,2,LEN($A166)-2)&"G*",FinCYData)),0,SUMIF(FinData,"E"&MID($A166,2,LEN($A166)-2)&"G*",FinCYData)),IF(ISNA(SUMIF(FinData,"F"&MID($A166,2,LEN($A166)-2)&"G*",FinCYData)),0,SUMIF(FinData,"F"&MID($A166,2,LEN($A166)-2)&"G*",FinCYData)))) -> 1800000 | I166: =-IF(OR(LEFT($A166,1)="F",LEFT($A166,1)="E"),IF(ISNA(SUMIF(FinData,$A166,FinPYData)),0,SUMIF(FinData,$A166,FinPYData)),IF(ISNA(SUMIF(TBData,$A166&"*",TBPYData)),0,SUMIF(TBData,$A166&"*",TBPYData))-IF(LEFT($A166,1)="I",IF(ISNA(SUMIF(FinData,"E"&MID($A166,2,LEN($A166)-2)&"G*",FinPYData)),0,SUMIF(FinData,"E"&MID($A166,2,LEN($A166)-2)&"G*",FinPYData)),IF(ISNA(SUMIF(FinData,"F"&MID($A166,2,LEN($A166)-2)&"G*",FinPYData)),0,SUMIF(FinData,"F"&MID($A166,2,LEN($A166)-2)&"G*",FinPYData)))) -> 1500000
A167: I-0104G | B167: Other grants | G167: =-IF(OR(LEFT($A167,1)="F",LEFT($A167,1)="E"),IF(ISNA(SUMIF(FinData,$A167,FinCYData)),0,SUMIF(FinData,$A167,FinCYData)),IF(ISNA(SUMIF(TBData,$A167&"*",TBCYData)),0,SUMIF(TBData,$A167&"*",TBCYData))-IF(LEFT($A167,1)="I",IF(ISNA(SUMIF(FinData,"E"&MID($A167,2,LEN($A167)-2)&"G*",FinCYData)),0,SUMIF(FinData,"E"&MID($A167,2,LEN($A167)-2)&"G*",FinCYData)),IF(ISNA(SUMIF(FinData,"F"&MID($A167,2,LEN($A167)-2)&"G*",FinCYData)),0,SUMIF(FinData,"F"&MID($A167,2,LEN($A167)-2)&"G*",FinCYData)))) -> 90000 | I167: =-IF(OR(LEFT($A167,1)="F",LEFT($A167,1)="E"),IF(ISNA(SUMIF(FinData,$A167,FinPYData)),0,SUMIF(FinData,$A167,FinPYData)),IF(ISNA(SUMIF(TBData,$A167&"*",TBPYData)),0,SUMIF(TBData,$A167&"*",TBPYData))-IF(LEFT($A167,1)="I",IF(ISNA(SUMIF(FinData,"E"&MID($A167,2,LEN($A167)-2)&"G*",FinPYData)),0,SUMIF(FinData,"E"&MID($A167,2,LEN($A167)-2)&"G*",FinPYData)),IF(ISNA(SUMIF(FinData,"F"&MID($A167,2,LEN($A167)-2)&"G*",FinPYData)),0,SUMIF(FinData,"F"&MID($A167,2,LEN($A167)-2)&"G*",FinPYData)))) -> 75000
B168: Other income | E168: =$A$395 -> 2 | G168: =G404 -> 99265 | I168: =I404 -> 38512
G169: =SUM(OFFSET(G163,1,0,ROW($B169)-ROW($B163)-1,1)) -> 5900888 | I169: =SUM(OFFSET(I163,1,0,ROW($B169)-ROW($B163)-1,1)) -> 4855549
B171: Operating expenses
A172: I-0301G | B172: =IF(OR(LEFT($A172,1)="F",LEFT($A172,1)="E"),IF(ISNA(VLOOKUP($A172,FinData,COLUMN(FinInfo!$C$4)-1,0)),"Add to FinInfo sheet!",VLOOKUP($A172,FinData,COLUMN(FinInfo!$C$4)-1,0)),IF(ISNA(VLOOKUP($A172,ClassAll,COLUMN(Classes!$B$4),0)),"No class!",VLOOKUP($A172,ClassAll,COLUMN(Classes!$B$4),0))) -> Accounting fees | G172: =-IF(OR(LEFT($A172,1)="F",LEFT($A172,1)="E"),IF(ISNA(SUMIF(FinData,$A172,FinCYData)),0,SUMIF(FinData,$A172,FinCYData)),IF(ISNA(SUMIF(TBData,$A172&"*",TBCYData)),0,SUMIF(TBData,$A172&"*",TBCYData))-IF(LEFT($A172,1)="I",IF(ISNA(SUMIF(FinData,"E"&MID($A172,2,LEN($A172)-2)&"G*",FinCYData)),0,SUMIF(FinData,"E"&MID($A172,2,LEN($A172)-2)&"G*",FinCYData)),IF(ISNA(SUMIF(FinData,"F"&MID($A172,2,LEN($A172)-2)&"G*",FinCYData)),0,SUMIF(FinData,"F"&MID($A172,2,LEN($A172)-2)&"G*",FinCYData)))) -> -24000 | I172: =-IF(OR(LEFT($A172,1)="F",LEFT($A172,1)="E"),IF(ISNA(SUMIF(FinData,$A172,FinPYData)),0,SUMIF(FinData,$A172,FinPYData)),IF(ISNA(SUMIF(TBData,$A172&"*",TBPYData)),0,SUMIF(TBData,$A172&"*",TBPYData))-IF(LEFT($A172,1)="I",IF(ISNA(SUMIF(FinData,"E"&MID($A172,2,LEN($A172)-2)&"G*",FinPYData)),0,SUMIF(FinData,"E"&MID($A172,2,LEN($A172)-2)&"G*",FinPYData)),IF(ISNA(SUMIF(FinData,"F"&MID($A172,2,LEN($A172)-2)&"G*",FinPYData)),0,SUMIF(FinData,"F"&MID($A172,2,LEN($A172)-2)&"G*",FinPYData)))) -> -18000
A173: I-0302G | B173: =IF(OR(LEFT($A173,1)="F",LEFT($A173,1)="E"),IF(ISNA(VLOOKUP($A173,FinData,COLUMN(FinInfo!$C$4)-1,0)),"Add to FinInfo sheet!",VLOOKUP($A173,FinData,COLUMN(FinInfo!$C$4)-1,0)),IF(ISNA(VLOOKUP($A173,ClassAll,COLUMN(Classes!$B$4),0)),"No class!",VLOOKUP($A173,ClassAll,COLUMN(Classes!$B$4),0))) -> Advertising & marketing | G173: =-IF(OR(LEFT($A173,1)="F",LEFT($A173,1)="E"),IF(ISNA(SUMIF(FinData,$A173,FinCYData)),0,SUMIF(FinData,$A173,FinCYData)),IF(ISNA(SUMIF(TBData,$A173&"*",TBCYData)),0,SUMIF(TBData,$A173&"*",TBCYData))-IF(LEFT($A173,1)="I",IF(ISNA(SUMIF(FinData,"E"&MID($A173,2,LEN($A173)-2)&"G*",FinCYData)),0,SUMIF(FinData,"E"&MID($A173,2,LEN($A173)-2)&"G*",FinCYData)),IF(ISNA(SUMIF(FinData,"F"&MID($A173,2,LEN($A173)-2)&"G*",FinCYData)),0,SUMIF(FinData,"F"&MID($A173,2,LEN($A173)-2)&"G*",FinCYData)))) -> -143644 | I173: =-IF(OR(LEFT($A173,1)="F",LEFT($A173,1)="E"),IF(ISNA(SUMIF(FinData,$A173,FinPYData)),0,SUMIF(FinData,$A173,FinPYData)),IF(ISNA(SUMIF(TBData,$A173&"*",TBPYData)),0,SUMIF(TBData,$A173&"*",TBPYData))-IF(LEFT($A173,1)="I",IF(ISNA(SUMIF(FinData,"E"&MID($A173,2,LEN($A173)-2)&"G*",FinPYData)),0,SUMIF(FinData,"E"&MID($A173,2,LEN($A173)-2)&"G*",FinPYData)),IF(ISNA(SUMIF(FinData,"F"&MID($A173,2,LEN($A173)-2)&"G*",FinPYData)),0,SUMIF(FinData,"F"&MID($A173,2,LEN($A173)-2)&"G*",FinPYData)))) -> -170000
A174: I-0303G | B174: =IF(OR(LEFT($A174,1)="F",LEFT($A174,1)="E"),IF(ISNA(VLOOKUP($A174,FinData,COLUMN(FinInfo!$C$4)-1,0)),"Add to FinInfo sheet!",VLOOKUP($A174,FinData,COLUMN(FinInfo!$C$4)-1,0)),IF(ISNA(VLOOKUP($A174,ClassAll,COLUMN(Classes!$B$4),0)),"No class!",VLOOKUP($A174,ClassAll,COLUMN(Classes!$B$4),0))) -> Bank charges | G174: =-IF(OR(LEFT($A174,1)="F",LEFT($A174,1)="E"),IF(ISNA(SUMIF(FinData,$A174,FinCYData)),0,SUMIF(FinData,$A174,FinCYData)),IF(ISNA(SUMIF(TBData,$A174&"*",TBCYData)),0,SUMIF(TBData,$A174&"*",TBCYData))-IF(LEFT($A174,1)="I",IF(ISNA(SUMIF(FinData,"E"&MID($A174,2,LEN($A174)-2)&"G*",FinCYData)),0,SUMIF(FinData,"E"&MID($A174,2,LEN($A174)-2)&"G*",FinCYData)),IF(ISNA(SUMIF(FinData,"F"&MID($A174,2,LEN($A174)-2)&"G*",FinCYData)),0,SUMIF(FinData,"F"&MID($A174,2,LEN($A174)-2)&"G*",FinCYData)))) -> -1180 | I174: =-IF(OR(LEFT($A174,1)="F",LEFT($A174,1)="E"),IF(ISNA(SUMIF(FinData,$A174,FinPYData)),0,SUMIF(FinData,$A174,FinPYData)),IF(ISNA(SUMIF(TBData,$A174&"*",TBPYData)),0,SUMIF(TBData,$A174&"*",TBPYData))-IF(LEFT($A174,1)="I",IF(ISNA(SUMIF(FinData,"E"&MID($A174,2,LEN($A174)-2)&"G*",FinPYData)),0,SUMIF(FinData,"E"&MID($A174,2,LEN($A174)-2)&"G*",FinPYData)),IF(ISNA(SUMIF(FinData,"F"&MID($A174,2,LEN($A174)-2)&"G*",FinPYData)),0,SUMIF(FinData,"F"&MID($A174,2,LEN($A174)-2)&"G*",FinPYData)))) -> -935
A175: I-0304G | B175: =IF(OR(LEFT($A175,1)="F",LEFT($A175,1)="E"),IF(ISNA(VLOOKUP($A175,FinData,COLUMN(FinInfo!$C$4)-1,0)),"Add to FinInfo sheet!",VLOOKUP($A175,FinData,COLUMN(FinInfo!$C$4)-1,0)),IF(ISNA(VLOOKUP($A175,ClassAll,COLUMN(Classes!$B$4),0)),"No class!",VLOOKUP($A175,ClassAll,COLUMN(Classes!$B$4),0))) -> Commission | G175: =-IF(OR(LEFT($A175,1)="F",LEFT($A175,1)="E"),IF(ISNA(SUMIF(FinData,$A175,FinCYData)),0,SUMIF(FinData,$A175,FinCYData)),IF(ISNA(SUMIF(TBData,$A175&"*",TBCYData)),0,SUMIF(TBData,$A175&"*",TBCYData))-IF(LEFT($A175,1)="I",IF(ISNA(SUMIF(FinData,"E"&MID($A175,2,LEN($A175)-2)&"G*",FinCYData)),0,SUMIF(FinData,"E"&MID($A175,2,LEN($A175)-2)&"G*",FinCYData)),IF(ISNA(SUMIF(FinData,"F"&MID($A175,2,LEN($A175)-2)&"G*",FinCYData)),0,SUMIF(FinData,"F"&MID($A175,2,LEN($A175)-2)&"G*",FinCYData)))) -> -27850 | I175: =-IF(OR(LEFT($A175,1)="F",LEFT($A175,1)="E"),IF(ISNA(SUMIF(FinData,$A175,FinPYData)),0,SUMIF(FinData,$A175,FinPYData)),IF(ISNA(SUMIF(TBData,$A175&"*",TBPYData)),0,SUMIF(TBData,$A175&"*",TBPYData))-IF(LEFT($A175,1)="I",IF(ISNA(SUMIF(FinData,"E"&MID($A175,2,LEN($A175)-2)&"G*",FinPYData)),0,SUMIF(FinData,"E"&MID($A175,2,LEN($A175)-2)&"G*",FinPYData)),IF(ISNA(SUMIF(FinData,"F"&MID($A175,2,LEN($A175)-2)&"G*",FinPYData)),0,SUMIF(FinData,"F"&MID($A175,2,LEN($A175)-2)&"G*",FinPYData)))) -> -22120
A176: I-0305G | B176: =IF(OR(LEFT($A176,1)="F",LEFT($A176,1)="E"),IF(ISNA(VLOOKUP($A176,FinData,COLUMN(FinInfo!$C$4)-1,0)),"Add to FinInfo sheet!",VLOOKUP($A176,FinData,COLUMN(FinInfo!$C$4)-1,0)),IF(ISNA(VLOOKUP($A176,ClassAll,COLUMN(Classes!$B$4),0)),"No class!",VLOOKUP($A176,ClassAll,COLUMN(Classes!$B$4),0))) -> Computer expenses | G176: =-IF(OR(LEFT($A176,1)="F",LEFT($A176,1)="E"),IF(ISNA(SUMIF(FinData,$A176,FinCYData)),0,SUMIF(FinData,$A176,FinCYData)),IF(ISNA(SUMIF(TBData,$A176&"*",TBCYData)),0,SUMIF(TBData,$A176&"*",TBCYData))-IF(LEFT($A176,1)="I",IF(ISNA(SUMIF(FinData,"E"&MID($A176,2,LEN($A176)-2)&"G*",FinCYData)),0,SUMIF(FinData,"E"&MID($A176,2,LEN($A176)-2)&"G*",FinCYData)),IF(ISNA(SUMIF(FinData,"F"&MID($A176,2,LEN($A176)-2)&"G*",FinCYData)),0,SUMIF(FinData,"F"&MID($A176,2,LEN($A176)-2)&"G*",FinCYData)))) -> -3477 | I176: =-IF(OR(LEFT($A176,1)="F",LEFT($A176,1)="E"),IF(ISNA(SUMIF(FinData,$A176,FinPYData)),0,SUMIF(FinData,$A176,FinPYData)),IF(ISNA(SUMIF(TBData,$A176&"*",TBPYData)),0,SUMIF(TBData,$A176&"*",TBPYData))-IF(LEFT($A176,1)="I",IF(ISNA(SUMIF(FinData,"E"&MID($A176,2,LEN($A176)-2)&"G*",FinPYData)),0,SUMIF(FinData,"E"&MID($A176,2,LEN($A176)-2)&"G*",FinPYData)),IF(ISNA(SUMIF(FinData,"F"&MID($A176,2,LEN($A176)-2)&"G*",FinPYData)),0,SUMIF(FinData,"F"&MID($A176,2,LEN($A176)-2)&"G*",FinPYData)))) -> -7210
A177: I-0306G | B177: =IF(OR(LEFT($A177,1)="F",LEFT($A177,1)="E"),IF(ISNA(VLOOKUP($A177,FinData,COLUMN(FinInfo!$C$4)-1,0)),"Add to FinInfo sheet!",VLOOKUP($A177,FinData,COLUMN(FinInfo!$C$4)-1,0)),IF(ISNA(VLOOKUP($A177,ClassAll,COLUMN(Classes!$B$4),0)),"No class!",VLOOKUP($A177,ClassAll,COLUMN(Classes!$B$4),0))) -> Consumables & cleaning | G177: =-IF(OR(LEFT($A177,1)="F",LEFT($A177,1)="E"),IF(ISNA(SUMIF(FinData,$A177,FinCYData)),0,SUMIF(FinData,$A177,FinCYData)),IF(ISNA(SUMIF(TBData,$A177&"*",TBCYData)),0,SUMIF(TBData,$A177&"*",TBCYData))-IF(LEFT($A177,1)="I",IF(ISNA(SUMIF(FinData,"E"&MID($A177,2,LEN($A177)-2)&"G*",FinCYData)),0,SUMIF(FinData,"E"&MID($A177,2,LEN($A177)-2)&"G*",FinCYData)),IF(ISNA(SUMIF(FinData,"F"&MID($A177,2,LEN($A177)-2)&"G*",FinCYData)),0,SUMIF(FinData,"F"&MID($A177,2,LEN($A177)-2)&"G*",FinCYData)))) -> -2500 | I177: =-IF(OR(LEFT($A177,1)="F",LEFT($A177,1)="E"),IF(ISNA(SUMIF(FinData,$A177,FinPYData)),0,SUMIF(FinData,$A177,FinPYData)),IF(ISNA(SUMIF(TBData,$A177&"*",TBPYData)),0,SUMIF(TBData,$A177&"*",TBPYData))-IF(LEFT($A177,1)="I",IF(ISNA(SUMIF(FinData,"E"&MID($A177,2,LEN($A177)-2)&"G*",FinPYData)),0,SUMIF(FinData,"E"&MID($A177,2,LEN($A177)-2)&"G*",FinPYData)),IF(ISNA(SUMIF(FinData,"F"&MID($A177,2,LEN($A177)-2)&"G*",FinPYData)),0,SUMIF(FinData,"F"&MID($A177,2,LEN($A177)-2)&"G*",FinPYData)))) -> -2000
A178: I-0501G | B178: =IF(OR(LEFT($A178,1)="F",LEFT($A178,1)="E"),IF(ISNA(VLOOKUP($A178,FinData,COLUMN(FinInfo!$C$4)-1,0)),"Add to FinInfo sheet!",VLOOKUP($A178,FinData,COLUMN(FinInfo!$C$4)-1,0)),IF(ISNA(VLOOKUP($A178,ClassAll,COLUMN(Classes!$B$4),0)),"No class!",VLOOKUP($A178,ClassAll,COLUMN(Classes!$B$4),0))) -> Depreciation on property, plant & equipment | G178: =-IF(OR(LEFT($A178,1)="F",LEFT($A178,1)="E"),IF(ISNA(SUMIF(FinData,$A178,FinCYData)),0,SUMIF(FinData,$A178,FinCYData)),IF(ISNA(SUMIF(TBData,$A178&"*",TBCYData)),0,SUMIF(TBData,$A178&"*",TBCYData))-IF(LEFT($A178,1)="I",IF(ISNA(SUMIF(FinData,"E"&MID($A178,2,LEN($A178)-2)&"G*",FinCYData)),0,SUMIF(FinData,"E"&MID($A178,2,LEN($A178)-2)&"G*",FinCYData)),IF(ISNA(SUMIF(FinData,"F"&MID($A178,2,LEN($A178)-2)&"G*",FinCYData)),0,SUMIF(FinData,"F"&MID($A178,2,LEN($A178)-2)&"G*",FinCYData)))) -> -513280 | I178: =-IF(OR(LEFT($A178,1)="F",LEFT($A178,1)="E"),IF(ISNA(SUMIF(FinData,$A178,FinPYData)),0,SUMIF(FinData,$A178,FinPYData)),IF(ISNA(SUMIF(TBData,$A178&"*",TBPYData)),0,SUMIF(TBData,$A178&"*",TBPYData))-IF(LEFT($A178,1)="I",IF(ISNA(SUMIF(FinData,"E"&MID($A178,2,LEN($A178)-2)&"G*",FinPYData)),0,SUMIF(FinData,"E"&MID($A178,2,LEN($A178)-2)&"G*",FinPYData)),IF(ISNA(SUMIF(FinData,"F"&MID($A178,2,LEN($A178)-2)&"G*",FinPYData)),0,SUMIF(FinData,"F"&MID($A178,2,LEN($A178)-2)&"G*",FinPYData)))) -> -550300
A179: I-0307G | B179: =IF(OR(LEFT($A179,1)="F",LEFT($A179,1)="E"),IF(ISNA(VLOOKUP($A179,FinData,COLUMN(FinInfo!$C$4)-1,0)),"Add to FinInfo sheet!",VLOOKUP($A179,FinData,COLUMN(FinInfo!$C$4)-1,0)),IF(ISNA(VLOOKUP($A179,ClassAll,COLUMN(Classes!$B$4),0)),"No class!",VLOOKUP($A179,ClassAll,COLUMN(Classes!$B$4),0))) -> Entertainment | G179: =-IF(OR(LEFT($A179,1)="F",LEFT($A179,1)="E"),IF(ISNA(SUMIF(FinData,$A179,FinCYData)),0,SUMIF(FinData,$A179,FinCYData)),IF(ISNA(SUMIF(TBData,$A179&"*",TBCYData)),0,SUMIF(TBData,$A179&"*",TBCYData))-IF(LEFT($A179,1)="I",IF(ISNA(SUMIF(FinData,"E"&MID($A179,2,LEN($A179)-2)&"G*",FinCYData)),0,SUMIF(FinData,"E"&MID($A179,2,LEN($A179)-2)&"G*",FinCYData)),IF(ISNA(SUMIF(FinData,"F"&MID($A179,2,LEN($A179)-2)&"G*",FinCYData)),0,SUMIF(FinData,"F"&MID($A179,2,LEN($A179)-2)&"G*",FinCYData)))) -> -12420 | I179: =-IF(OR(LEFT($A179,1)="F",LEFT($A179,1)="E"),IF(ISNA(SUMIF(FinData,$A179,FinPYData)),0,SUMIF(FinData,$A179,FinPYData)),IF(ISNA(SUMIF(TBData,$A179&"*",TBPYData)),0,SUMIF(TBData,$A179&"*",TBPYData))-IF(LEFT($A179,1)="I",IF(ISNA(SUMIF(FinData,"E"&MID($A179,2,LEN($A179)-2)&"G*",FinPYData)),0,SUMIF(FinData,"E"&MID($A179,2,LEN($A179)-2)&"G*",FinPYData)),IF(ISNA(SUMIF(FinData,"F"&MID($A179,2,LEN($A179)-2)&"G*",FinPYData)),0,SUMIF(FinData,"F"&MID($A179,2,LEN($A179)-2)&"G*",FinPYData)))) -> -10875
A180: I-0308G | B180: =IF(OR(LEFT($A180,1)="F",LEFT($A180,1)="E"),IF(ISNA(VLOOKUP($A180,FinData,COLUMN(FinInfo!$C$4)-1,0)),"Add to FinInfo sheet!",VLOOKUP($A180,FinData,COLUMN(FinInfo!$C$4)-1,0)),IF(ISNA(VLOOKUP($A180,ClassAll,COLUMN(Classes!$B$4),0)),"No class!",VLOOKUP($A180,ClassAll,COLUMN(Classes!$B$4),0))) -> Insurance | G180: =-IF(OR(LEFT($A180,1)="F",LEFT($A180,1)="E"),IF(ISNA(SUMIF(FinData,$A180,FinCYData)),0,SUMIF(FinData,$A180,FinCYData)),IF(ISNA(SUMIF(TBData,$A180&"*",TBCYData)),0,SUMIF(TBData,$A180&"*",TBCYData))-IF(LEFT($A180,1)="I",IF(ISNA(SUMIF(FinData,"E"&MID($A180,2,LEN($A180)-2)&"G*",FinCYData)),0,SUMIF(FinData,"E"&MID($A180,2,LEN($A180)-2)&"G*",FinCYData)),IF(ISNA(SUMIF(FinData,"F"&MID($A180,2,LEN($A180)-2)&"G*",FinCYData)),0,SUMIF(FinData,"F"&MID($A180,2,LEN($A180)-2)&"G*",FinCYData)))) -> -3840 | I180: =-IF(OR(LEFT($A180,1)="F",LEFT($A180,1)="E"),IF(ISNA(SUMIF(FinData,$A180,FinPYData)),0,SUMIF(FinData,$A180,FinPYData)),IF(ISNA(SUMIF(TBData,$A180&"*",TBPYData)),0,SUMIF(TBData,$A180&"*",TBPYData))-IF(LEFT($A180,1)="I",IF(ISNA(SUMIF(FinData,"E"&MID($A180,2,LEN($A180)-2)&"G*",FinPYData)),0,SUMIF(FinData,"E"&MID($A180,2,LEN($A180)-2)&"G*",FinPYData)),IF(ISNA(SUMIF(FinData,"F"&MID($A180,2,LEN($A180)-2)&"G*",FinPYData)),0,SUMIF(FinData,"F"&MID($A180,2,LEN($A180)-2)&"G*",FinPYData)))) -> -3420
A181: I-0309G | B181: =IF(OR(LEFT($A181,1)="F",LEFT($A181,1)="E"),IF(ISNA(VLOOKUP($A181,FinData,COLUMN(FinInfo!$C$4)-1,0)),"Add to FinInfo sheet!",VLOOKUP($A181,FinData,COLUMN(FinInfo!$C$4)-1,0)),IF(ISNA(VLOOKUP($A181,ClassAll,COLUMN(Classes!$B$4),0)),"No class!",VLOOKUP($A181,ClassAll,COLUMN(Classes!$B$4),0))) -> Office expenses | G181: =-IF(OR(LEFT($A181,1)="F",LEFT($A181,1)="E"),IF(ISNA(SUMIF(FinData,$A181,FinCYData)),0,SUMIF(FinData,$A181,FinCYData)),IF(ISNA(SUMIF(TBData,$A181&"*",TBCYData)),0,SUMIF(TBData,$A181&"*",TBCYData))-IF(LEFT($A181,1)="I",IF(ISNA(SUMIF(FinData,"E"&MID($A181,2,LEN($A181)-2)&"G*",FinCYData)),0,SUMIF(FinData,"E"&MID($A181,2,LEN($A181)-2)&"G*",FinCYData)),IF(ISNA(SUMIF(FinData,"F"&MID($A181,2,LEN($A181)-2)&"G*",FinCYData)),0,SUMIF(FinData,"F"&MID($A181,2,LEN($A181)-2)&"G*",FinCYData)))) -> -996 | I181: =-IF(OR(LEFT($A181,1)="F",LEFT($A181,1)="E"),IF(ISNA(SUMIF(FinData,$A181,FinPYData)),0,SUMIF(FinData,$A181,FinPYData)),IF(ISNA(SUMIF(TBData,$A181&"*",TBPYData)),0,SUMIF(TBData,$A181&"*",TBPYData))-IF(LEFT($A181,1)="I",IF(ISNA(SUMIF(FinData,"E"&MID($A181,2,LEN($A181)-2)&"G*",FinPYData)),0,SUMIF(FinData,"E"&MID($A181,2,LEN($A181)-2)&"G*",FinPYData)),IF(ISNA(SUMIF(FinData,"F"&MID($A181,2,LEN($A181)-2)&"G*",FinPYData)),0,SUMIF(FinData,"F"&MID($A181,2,LEN($A181)-2)&"G*",FinPYData)))) -> -660
A182: I-0310G | B182: =IF(OR(LEFT($A182,1)="F",LEFT($A182,1)="E"),IF(ISNA(VLOOKUP($A182,FinData,COLUMN(FinInfo!$C$4)-1,0)),"Add to FinInfo sheet!",VLOOKUP($A182,FinData,COLUMN(FinInfo!$C$4)-1,0)),IF(ISNA(VLOOKUP($A182,ClassAll,COLUMN(Classes!$B$4),0)),"No class!",VLOOKUP($A182,ClassAll,COLUMN(Classes!$B$4),0))) -> Office rent | G182: =-IF(OR(LEFT($A182,1)="F",LEFT($A182,1)="E"),IF(ISNA(SUMIF(FinData,$A182,FinCYData)),0,SUMIF(FinData,$A182,FinCYData)),IF(ISNA(SUMIF(TBData,$A182&"*",TBCYData)),0,SUMIF(TBData,$A182&"*",TBCYData))-IF(LEFT($A182,1)="I",IF(ISNA(SUMIF(FinData,"E"&MID($A182,2,LEN($A182)-2)&"G*",FinCYData)),0,SUMIF(FinData,"E"&MID($A182,2,LEN($A182)-2)&"G*",FinCYData)),IF(ISNA(SUMIF(FinData,"F"&MID($A182,2,LEN($A182)-2)&"G*",FinCYData)),0,SUMIF(FinData,"F"&MID($A182,2,LEN($A182)-2)&"G*",FinCYData)))) -> -244000 | I182: =-IF(OR(LEFT($A182,1)="F",LEFT($A182,1)="E"),IF(ISNA(SUMIF(FinData,$A182,FinPYData)),0,SUMIF(FinData,$A182,FinPYData)),IF(ISNA(SUMIF(TBData,$A182&"*",TBPYData)),0,SUMIF(TBData,$A182&"*",TBPYData))-IF(LEFT($A182,1)="I",IF(ISNA(SUMIF(FinData,"E"&MID($A182,2,LEN($A182)-2)&"G*",FinPYData)),0,SUMIF(FinData,"E"&MID($A182,2,LEN($A182)-2)&"G*",FinPYData)),IF(ISNA(SUMIF(FinData,"F"&MID($A182,2,LEN($A182)-2)&"G*",FinPYData)),0,SUMIF(FinData,"F"&MID($A182,2,LEN($A182)-2)&"G*",FinPYData)))) -> -220000
A183: I-0311G | B183: =IF(OR(LEFT($A183,1)="F",LEFT($A183,1)="E"),IF(ISNA(VLOOKUP($A183,FinData,COLUMN(FinInfo!$C$4)-1,0)),"Add to FinInfo sheet!",VLOOKUP($A183,FinData,COLUMN(FinInfo!$C$4)-1,0)),IF(ISNA(VLOOKUP($A183,ClassAll,COLUMN(Classes!$B$4),0)),"No class!",VLOOKUP($A183,ClassAll,COLUMN(Classes!$B$4),0))) -> Postage | G183: =-IF(OR(LEFT($A183,1)="F",LEFT($A183,1)="E"),IF(ISNA(SUMIF(FinData,$A183,FinCYData)),0,SUMIF(FinData,$A183,FinCYData)),IF(ISNA(SUMIF(TBData,$A183&"*",TBCYData)),0,SUMIF(TBData,$A183&"*",TBCYData))-IF(LEFT($A183,1)="I",IF(ISNA(SUMIF(FinData,"E"&MID($A183,2,LEN($A183)-2)&"G*",FinCYData)),0,SUMIF(FinData,"E"&MID($A183,2,LEN($A183)-2)&"G*",FinCYData)),IF(ISNA(SUMIF(FinData,"F"&MID($A183,2,LEN($A183)-2)&"G*",FinCYData)),0,SUMIF(FinData,"F"&MID($A183,2,LEN($A183)-2)&"G*",FinCYData)))) -> -524 | I183: =-IF(OR(LEFT($A183,1)="F",LEFT($A183,1)="E"),IF(ISNA(SUMIF(FinData,$A183,FinPYData)),0,SUMIF(FinData,$A183,FinPYData)),IF(ISNA(SUMIF(TBData,$A183&"*",TBPYData)),0,SUMIF(TBData,$A183&"*",TBPYData))-IF(LEFT($A183,1)="I",IF(ISNA(SUMIF(FinData,"E"&MID($A183,2,LEN($A183)-2)&"G*",FinPYData)),0,SUMIF(FinData,"E"&MID($A183,2,LEN($A183)-2)&"G*",FinPYData)),IF(ISNA(SUMIF(FinData,"F"&MID($A183,2,LEN($A183)-2)&"G*",FinPYData)),0,SUMIF(FinData,"F"&MID($A183,2,LEN($A183)-2)&"G*",FinPYData)))) -> -452
A184: I-0312G | B184: =IF(OR(LEFT($A184,1)="F",LEFT($A184,1)="E"),IF(ISNA(VLOOKUP($A184,FinData,COLUMN(FinInfo!$C$4)-1,0)),"Add to FinInfo sheet!",VLOOKUP($A184,FinData,COLUMN(FinInfo!$C$4)-1,0)),IF(ISNA(VLOOKUP($A184,ClassAll,COLUMN(Classes!$B$4),0)),"No class!",VLOOKUP($A184,ClassAll,COLUMN(Classes!$B$4),0))) -> Professional & legal fees | G184: =-IF(OR(LEFT($A184,1)="F",LEFT($A184,1)="E"),IF(ISNA(SUMIF(FinData,$A184,FinCYData)),0,SUMIF(FinData,$A184,FinCYData)),IF(ISNA(SUMIF(TBData,$A184&"*",TBCYData)),0,SUMIF(TBData,$A184&"*",TBCYData))-IF(LEFT($A184,1)="I",IF(ISNA(SUMIF(FinData,"E"&MID($A184,2,LEN($A184)-2)&"G*",FinCYData)),0,SUMIF(FinData,"E"&MID($A184,2,LEN($A184)-2)&"G*",FinCYData)),IF(ISNA(SUMIF(FinData,"F"&MID($A184,2,LEN($A184)-2)&"G*",FinCYData)),0,SUMIF(FinData,"F"&MID($A184,2,LEN($A184)-2)&"G*",FinCYData)))) -> -5652 | I184: =-IF(OR(LEFT($A184,1)="F",LEFT($A184,1)="E"),IF(ISNA(SUMIF(FinData,$A184,FinPYData)),0,SUMIF(FinData,$A184,FinPYData)),IF(ISNA(SUMIF(TBData,$A184&"*",TBPYData)),0,SUMIF(TBData,$A184&"*",TBPYData))-IF(LEFT($A184,1)="I",IF(ISNA(SUMIF(FinData,"E"&MID($A184,2,LEN($A184)-2)&"G*",FinPYData)),0,SUMIF(FinData,"E"&MID($A184,2,LEN($A184)-2)&"G*",FinPYData)),IF(ISNA(SUMIF(FinData,"F"&MID($A184,2,LEN($A184)-2)&"G*",FinPYData)),0,SUMIF(FinData,"F"&MID($A184,2,LEN($A184)-2)&"G*",FinPYData)))) -> -36250
A185: I-0401G | B185: =IF(OR(LEFT($A185,1)="F",LEFT($A185,1)="E"),IF(ISNA(VLOOKUP($A185,FinData,COLUMN(FinInfo!$C$4)-1,0)),"Add to FinInfo sheet!",VLOOKUP($A185,FinData,COLUMN(FinInfo!$C$4)-1,0)),IF(ISNA(VLOOKUP($A185,ClassAll,COLUMN(Classes!$B$4),0)),"No class!",VLOOKUP($A185,ClassAll,COLUMN(Classes!$B$4),0))) -> Salaries & wages | G185: =-IF(OR(LEFT($A185,1)="F",LEFT($A185,1)="E"),IF(ISNA(SUMIF(FinData,$A185,FinCYData)),0,SUMIF(FinData,$A185,FinCYData)),IF(ISNA(SUMIF(TBData,$A185&"*",TBCYData)),0,SUMIF(TBData,$A185&"*",TBCYData))-IF(LEFT($A185,1)="I",IF(ISNA(SUMIF(FinData,"E"&MID($A185,2,LEN($A185)-2)&"G*",FinCYData)),0,SUMIF(FinData,"E"&MID($A185,2,LEN($A185)-2)&"G*",FinCYData)),IF(ISNA(SUMIF(FinData,"F"&MID($A185,2,LEN($A185)-2)&"G*",FinCYData)),0,SUMIF(FinData,"F"&MID($A185,2,LEN($A185)-2)&"G*",FinCYData)))) -> -2334320 | I185: =-IF(OR(LEFT($A185,1)="F",LEFT($A185,1)="E"),IF(ISNA(SUMIF(FinData,$A185,FinPYData)),0,SUMIF(FinData,$A185,FinPYData)),IF(ISNA(SUMIF(TBData,$A185&"*",TBPYData)),0,SUMIF(TBData,$A185&"*",TBPYData))-IF(LEFT($A185,1)="I",IF(ISNA(SUMIF(FinData,"E"&MID($A185,2,LEN($A185)-2)&"G*",FinPYData)),0,SUMIF(FinData,"E"&MID($A185,2,LEN($A185)-2)&"G*",FinPYData)),IF(ISNA(SUMIF(FinData,"F"&MID($A185,2,LEN($A185)-2)&"G*",FinPYData)),0,SUMIF(FinData,"F"&MID($A185,2,LEN($A185)-2)&"G*",FinPYData)))) -> -1770140
A186: I-0313G | B186: =IF(OR(LEFT($A186,1)="F",LEFT($A186,1)="E"),IF(ISNA(VLOOKUP($A186,FinData,COLUMN(FinInfo!$C$4)-1,0)),"Add to FinInfo sheet!",VLOOKUP($A186,FinData,COLUMN(FinInfo!$C$4)-1,0)),IF(ISNA(VLOOKUP($A186,ClassAll,COLUMN(Classes!$B$4),0)),"No class!",VLOOKUP($A186,ClassAll,COLUMN(Classes!$B$4),0))) -> Stationery | G186: =-IF(OR(LEFT($A186,1)="F",LEFT($A186,1)="E"),IF(ISNA(SUMIF(FinData,$A186,FinCYData)),0,SUMIF(FinData,$A186,FinCYData)),IF(ISNA(SUMIF(TBData,$A186&"*",TBCYData)),0,SUMIF(TBData,$A186&"*",TBCYData))-IF(LEFT($A186,1)="I",IF(ISNA(SUMIF(FinData,"E"&MID($A186,2,LEN($A186)-2)&"G*",FinCYData)),0,SUMIF(FinData,"E"&MID($A186,2,LEN($A186)-2)&"G*",FinCYData)),IF(ISNA(SUMIF(FinData,"F"&MID($A186,2,LEN($A186)-2)&"G*",FinCYData)),0,SUMIF(FinData,"F"&MID($A186,2,LEN($A186)-2)&"G*",FinCYData)))) -> -2491 | I186: =-IF(OR(LEFT($A186,1)="F",LEFT($A186,1)="E"),IF(ISNA(SUMIF(FinData,$A186,FinPYData)),0,SUMIF(FinData,$A186,FinPYData)),IF(ISNA(SUMIF(TBData,$A186&"*",TBPYData)),0,SUMIF(TBData,$A186&"*",TBPYData))-IF(LEFT($A186,1)="I",IF(ISNA(SUMIF(FinData,"E"&MID($A186,2,LEN($A186)-2)&"G*",FinPYData)),0,SUMIF(FinData,"E"&MID($A186,2,LEN($A186)-2)&"G*",FinPYData)),IF(ISNA(SUMIF(FinData,"F"&MID($A186,2,LEN($A186)-2)&"G*",FinPYData)),0,SUMIF(FinData,"F"&MID($A186,2,LEN($A186)-2)&"G*",FinPYData)))) -> -1257
A187: I-0314G | B187: =IF(OR(LEFT($A187,1)="F",LEFT($A187,1)="E"),IF(ISNA(VLOOKUP($A187,FinData,COLUMN(FinInfo!$C$4)-1,0)),"Add to FinInfo sheet!",VLOOKUP($A187,FinData,COLUMN(FinInfo!$C$4)-1,0)),IF(ISNA(VLOOKUP($A187,ClassAll,COLUMN(Classes!$B$4),0)),"No class!",VLOOKUP($A187,ClassAll,COLUMN(Classes!$B$4),0))) -> Subscriptions & memberships | G187: =-IF(OR(LEFT($A187,1)="F",LEFT($A187,1)="E"),IF(ISNA(SUMIF(FinData,$A187,FinCYData)),0,SUMIF(FinData,$A187,FinCYData)),IF(ISNA(SUMIF(TBData,$A187&"*",TBCYData)),0,SUMIF(TBData,$A187&"*",TBCYData))-IF(LEFT($A187,1)="I",IF(ISNA(SUMIF(FinData,"E"&MID($A187,2,LEN($A187)-2)&"G*",FinCYData)),0,SUMIF(FinData,"E"&MID($A187,2,LEN($A187)-2)&"G*",FinCYData)),IF(ISNA(SUMIF(FinData,"F"&MID($A187,2,LEN($A187)-2)&"G*",FinCYData)),0,SUMIF(FinData,"F"&MID($A187,2,LEN($A187)-2)&"G*",FinCYData)))) -> -5200 | I187: =-IF(OR(LEFT($A187,1)="F",LEFT($A187,1)="E"),IF(ISNA(SUMIF(FinData,$A187,FinPYData)),0,SUMIF(FinData,$A187,FinPYData)),IF(ISNA(SUMIF(TBData,$A187&"*",TBPYData)),0,SUMIF(TBData,$A187&"*",TBPYData))-IF(LEFT($A187,1)="I",IF(ISNA(SUMIF(FinData,"E"&MID($A187,2,LEN($A187)-2)&"G*",FinPYData)),0,SUMIF(FinData,"E"&MID($A187,2,LEN($A187)-2)&"G*",FinPYData)),IF(ISNA(SUMIF(FinData,"F"&MID($A187,2,LEN($A187)-2)&"G*",FinPYData)),0,SUMIF(FinData,"F"&MID($A187,2,LEN($A187)-2)&"G*",FinPYData)))) -> -4800
A188: I-0315G | B188: =IF(OR(LEFT($A188,1)="F",LEFT($A188,1)="E"),IF(ISNA(VLOOKUP($A188,FinData,COLUMN(FinInfo!$C$4)-1,0)),"Add to FinInfo sheet!",VLOOKUP($A188,FinData,COLUMN(FinInfo!$C$4)-1,0)),IF(ISNA(VLOOKUP($A188,ClassAll,COLUMN(Classes!$B$4),0)),"No class!",VLOOKUP($A188,ClassAll,COLUMN(Classes!$B$4),0))) -> Telephone & internet | G188: =-IF(OR(LEFT($A188,1)="F",LEFT($A188,1)="E"),IF(ISNA(SUMIF(FinData,$A188,FinCYData)),0,SUMIF(FinData,$A188,FinCYData)),IF(ISNA(SUMIF(TBData,$A188&"*",TBCYData)),0,SUMIF(TBData,$A188&"*",TBCYData))-IF(LEFT($A188,1)="I",IF(ISNA(SUMIF(FinData,"E"&MID($A188,2,LEN($A188)-2)&"G*",FinCYData)),0,SUMIF(FinData,"E"&MID($A188,2,LEN($A188)-2)&"G*",FinCYData)),IF(ISNA(SUMIF(FinData,"F"&MID($A188,2,LEN($A188)-2)&"G*",FinCYData)),0,SUMIF(FinData,"F"&MID($A188,2,LEN($A188)-2)&"G*",FinCYData)))) -> -8867 | I188: =-IF(OR(LEFT($A188,1)="F",LEFT($A188,1)="E"),IF(ISNA(SUMIF(FinData,$A188,FinPYData)),0,SUMIF(FinData,$A188,FinPYData)),IF(ISNA(SUMIF(TBData,$A188&"*",TBPYData)),0,SUMIF(TBData,$A188&"*",TBPYData))-IF(LEFT($A188,1)="I",IF(ISNA(SUMIF(FinData,"E"&MID($A188,2,LEN($A188)-2)&"G*",FinPYData)),0,SUMIF(FinData,"E"&MID($A188,2,LEN($A188)-2)&"G*",FinPYData)),IF(ISNA(SUMIF(FinData,"F"&MID($A188,2,LEN($A188)-2)&"G*",FinPYData)),0,SUMIF(FinData,"F"&MID($A188,2,LEN($A188)-2)&"G*",FinPYData)))) -> -7504
A189: I-0316G | B189: =IF(OR(LEFT($A189,1)="F",LEFT($A189,1)="E"),IF(ISNA(VLOOKUP($A189,FinData,COLUMN(FinInfo!$C$4)-1,0)),"Add to FinInfo sheet!",VLOOKUP($A189,FinData,COLUMN(FinInfo!$C$4)-1,0)),IF(ISNA(VLOOKUP($A189,ClassAll,COLUMN(Classes!$B$4),0)),"No class!",VLOOKUP($A189,ClassAll,COLUMN(Classes!$B$4),0))) -> Training | G189: =-IF(OR(LEFT($A189,1)="F",LEFT($A189,1)="E"),IF(ISNA(SUMIF(FinData,$A189,FinCYData)),0,SUMIF(FinData,$A189,FinCYData)),IF(ISNA(SUMIF(TBData,$A189&"*",TBCYData)),0,SUMIF(TBData,$A189&"*",TBCYData))-IF(LEFT($A189,1)="I",IF(ISNA(SUMIF(FinData,"E"&MID($A189,2,LEN($A189)-2)&"G*",FinCYData)),0,SUMIF(FinData,"E"&MID($A189,2,LEN($A189)-2)&"G*",FinCYData)),IF(ISNA(SUMIF(FinData,"F"&MID($A189,2,LEN($A189)-2)&"G*",FinCYData)),0,SUMIF(FinData,"F"&MID($A189,2,LEN($A189)-2)&"G*",FinCYData)))) -> -2200043 | I189: =-IF(OR(LEFT($A189,1)="F",LEFT($A189,1)="E"),IF(ISNA(SUMIF(FinData,$A189,FinPYData)),0,SUMIF(FinData,$A189,FinPYData)),IF(ISNA(SUMIF(TBData,$A189&"*",TBPYData)),0,SUMIF(TBData,$A189&"*",TBPYData))-IF(LEFT($A189,1)="I",IF(ISNA(SUMIF(FinData,"E"&MID($A189,2,LEN($A189)-2)&"G*",FinPYData)),0,SUMIF(FinData,"E"&MID($A189,2,LEN($A189)-2)&"G*",FinPYData)),IF(ISNA(SUMIF(FinData,"F"&MID($A189,2,LEN($A189)-2)&"G*",FinPYData)),0,SUMIF(FinData,"F"&MID($A189,2,LEN($A189)-2)&"G*",FinPYData)))) -> -1751521
A190: I-0317G | B190: =IF(OR(LEFT($A190,1)="F",LEFT($A190,1)="E"),IF(ISNA(VLOOKUP($A190,FinData,COLUMN(FinInfo!$C$4)-1,0)),"Add to FinInfo sheet!",VLOOKUP($A190,FinData,COLUMN(FinInfo!$C$4)-1,0)),IF(ISNA(VLOOKUP($A190,ClassAll,COLUMN(Classes!$B$4),0)),"No class!",VLOOKUP($A190,ClassAll,COLUMN(Classes!$B$4),0))) -> Travelling & accommodation | G190: =-IF(OR(LEFT($A190,1)="F",LEFT($A190,1)="E"),IF(ISNA(SUMIF(FinData,$A190,FinCYData)),0,SUMIF(FinData,$A190,FinCYData)),IF(ISNA(SUMIF(TBData,$A190&"*",TBCYData)),0,SUMIF(TBData,$A190&"*",TBCYData))-IF(LEFT($A190,1)="I",IF(ISNA(SUMIF(FinData,"E"&MID($A190,2,LEN($A190)-2)&"G*",FinCYData)),0,SUMIF(FinData,"E"&MID($A190,2,LEN($A190)-2)&"G*",FinCYData)),IF(ISNA(SUMIF(FinData,"F"&MID($A190,2,LEN($A190)-2)&"G*",FinCYData)),0,SUMIF(FinData,"F"&MID($A190,2,LEN($A190)-2)&"G*",FinCYData)))) -> -13705 | I190: =-IF(OR(LEFT($A190,1)="F",LEFT($A190,1)="E"),IF(ISNA(SUMIF(FinData,$A190,FinPYData)),0,SUMIF(FinData,$A190,FinPYData)),IF(ISNA(SUMIF(TBData,$A190&"*",TBPYData)),0,SUMIF(TBData,$A190&"*",TBPYData))-IF(LEFT($A190,1)="I",IF(ISNA(SUMIF(FinData,"E"&MID($A190,2,LEN($A190)-2)&"G*",FinPYData)),0,SUMIF(FinData,"E"&MID($A190,2,LEN($A190)-2)&"G*",FinPYData)),IF(ISNA(SUMIF(FinData,"F"&MID($A190,2,LEN($A190)-2)&"G*",FinPYData)),0,SUMIF(FinData,"F"&MID($A190,2,LEN($A190)-2)&"G*",FinPYData)))) -> -4589
A191: I-0318G | B191: =IF(OR(LEFT($A191,1)="F",LEFT($A191,1)="E"),IF(ISNA(VLOOKUP($A191,FinData,COLUMN(FinInfo!$C$4)-1,0)),"Add to FinInfo sheet!",VLOOKUP($A191,FinData,COLUMN(FinInfo!$C$4)-1,0)),IF(ISNA(VLOOKUP($A191,ClassAll,COLUMN(Classes!$B$4),0)),"No class!",VLOOKUP($A191,ClassAll,COLUMN(Classes!$B$4),0))) -> Utilities | G191: =-IF(OR(LEFT($A191,1)="F",LEFT($A191,1)="E"),IF(ISNA(SUMIF(FinData,$A191,FinCYData)),0,SUMIF(FinData,$A191,FinCYData)),IF(ISNA(SUMIF(TBData,$A191&"*",TBCYData)),0,SUMIF(TBData,$A191&"*",TBCYData))-IF(LEFT($A191,1)="I",IF(ISNA(SUMIF(FinData,"E"&MID($A191,2,LEN($A191)-2)&"G*",FinCYData)),0,SUMIF(FinData,"E"&MID($A191,2,LEN($A191)-2)&"G*",FinCYData)),IF(ISNA(SUMIF(FinData,"F"&MID($A191,2,LEN($A191)-2)&"G*",FinCYData)),0,SUMIF(FinData,"F"&MID($A191,2,LEN($A191)-2)&"G*",FinCYData)))) -> -6540 | I191: =-IF(OR(LEFT($A191,1)="F",LEFT($A191,1)="E"),IF(ISNA(SUMIF(FinData,$A191,FinPYData)),0,SUMIF(FinData,$A191,FinPYData)),IF(ISNA(SUMIF(TBData,$A191&"*",TBPYData)),0,SUMIF(TBData,$A191&"*",TBPYData))-IF(LEFT($A191,1)="I",IF(ISNA(SUMIF(FinData,"E"&MID($A191,2,LEN($A191)-2)&"G*",FinPYData)),0,SUMIF(FinData,"E"&MID($A191,2,LEN($A191)-2)&"G*",FinPYData)),IF(ISNA(SUMIF(FinData,"F"&MID($A191,2,LEN($A191)-2)&"G*",FinPYData)),0,SUMIF(FinData,"F"&MID($A191,2,LEN($A191)-2)&"G*",FinPYData)))) -> -6090
A192: I-08G | B192: =IF(OR(LEFT($A192,1)="F",LEFT($A192,1)="E"),IF(ISNA(VLOOKUP($A192,FinData,COLUMN(FinInfo!$C$4)-1,0)),"Add to FinInfo sheet!",VLOOKUP($A192,FinData,COLUMN(FinInfo!$C$4)-1,0)),IF(ISNA(VLOOKUP($A192,ClassAll,COLUMN(Classes!$B$4),0)),"No class!",VLOOKUP($A192,ClassAll,COLUMN(Classes!$B$4),0))) -> Other expenses | G192: =-IF(OR(LEFT($A192,1)="F",LEFT($A192,1)="E"),IF(ISNA(SUMIF(FinData,$A192,FinCYData)),0,SUMIF(FinData,$A192,FinCYData)),IF(ISNA(SUMIF(TBData,$A192&"*",TBCYData)),0,SUMIF(TBData,$A192&"*",TBCYData))-IF(LEFT($A192,1)="I",IF(ISNA(SUMIF(FinData,"E"&MID($A192,2,LEN($A192)-2)&"G*",FinCYData)),0,SUMIF(FinData,"E"&MID($A192,2,LEN($A192)-2)&"G*",FinCYData)),IF(ISNA(SUMIF(FinData,"F"&MID($A192,2,LEN($A192)-2)&"G*",FinCYData)),0,SUMIF(FinData,"F"&MID($A192,2,LEN($A192)-2)&"G*",FinCYData)))) -> -131622 | I192: =-IF(OR(LEFT($A192,1)="F",LEFT($A192,1)="E"),IF(ISNA(SUMIF(FinData,$A192,FinPYData)),0,SUMIF(FinData,$A192,FinPYData)),IF(ISNA(SUMIF(TBData,$A192&"*",TBPYData)),0,SUMIF(TBData,$A192&"*",TBPYData))-IF(LEFT($A192,1)="I",IF(ISNA(SUMIF(FinData,"E"&MID($A192,2,LEN($A192)-2)&"G*",FinPYData)),0,SUMIF(FinData,"E"&MID($A192,2,LEN($A192)-2)&"G*",FinPYData)),IF(ISNA(SUMIF(FinData,"F"&MID($A192,2,LEN($A192)-2)&"G*",FinPYData)),0,SUMIF(FinData,"F"&MID($A192,2,LEN($A192)-2)&"G*",FinPYData)))) -> -54238
G193: =SUM(OFFSET(G171,1,0,ROW($B193)-ROW($B171)-1,1)) -> -5686151 | I193: =SUM(OFFSET(I171,1,0,ROW($B193)-ROW($B171)-1,1)) -> -4642361
B195: Surplus / (Deficit) before interest & tax | G195: =G169+G193 -> 214737 | I195: =I169+I193 -> 213188
B196: Finance costs | E196: =$A$406 -> 3 | G196: =G411 -> -194222 | I196: =I411 -> -212354
B197: Surplus / (Deficit) before tax | E197: =$A$413 -> 4 | G197: =SUM(G195:G196) -> 20515 | I197: =SUM(I195:I196) -> 834
B198: Income tax expense | E198: =$A$423 -> 5 | G198: =G426 -> 0 | I198: =I426 -> 0 | K198: ="control "&$G$160 -> control 2024 | L198: ="control "&$I$160 -> control 2023
B199: Surplus / (Deficit) for the year | G199: =SUM(G197:G198) -> 20515 | I199: =SUM(I197:I198) -> 834 | K199: =IF(ISNA(SUMIF(TBData,"I-*",TBCYData)),0,SUMIF(TBData,"I-*",TBCYData))+$G$199 -> 0 | L199: =IF(ISNA(SUMIF(TBData,"I-*",TBPYData)),0,SUMIF(TBData,"I-*",TBPYData))+$I$199 -> 0
A200: B-21G | B200: Retained surplus at start of year | G200: =-IF(ISNA(SUMIF(TBData,$A200&"*",TBPYData)),0,SUMIF(TBData,$A200&"*",TBPYData))-IF(ISNA(SUMIF(TBData,"I-*",TBPYData)),0,SUMIF(TBData,"I-*",TBPYData)) -> 2706585 | I200: =-IF(ISNA(SUMIF(TBData,$A200&"*",TBP2Data)),0,SUMIF(TBData,$A200&"*",TBP2Data))-IF(ISNA(SUMIF(TBData,"I-*",TBP2Data)),0,SUMIF(TBData,"I-*",TBP2Data)) -> 2705751
B201: Prior year adjustments | G201: =-IF(ISNA(SUMIF(TBData,$A200&"*",TBCYData)),0,SUMIF(TBData,$A200&"*",TBCYData))-G200 -> 0 | I201: =-IF(ISNA(SUMIF(TBData,$A200&"*",TBPYData)),0,SUMIF(TBData,$A200&"*",TBPYData))-I200 -> 0
B202: Retained surplus at end of year | G202: =SUM(G199:G201) -> 2727100 | I202: =SUM(I199:I201) -> 2706585 | K202: =IF($G$200<>$I$202,$G$160&" retained surplus at start of year does not match "&$I$160&" end of year balance","") -> 
B204: =Setup!$A$1 -> Example NPC
B205: Statement of financial position
B206: ="at "&Setup!$F$12 -> at 29 February 2024
E208: Notes | G208: =YEAR(Setup!$B$12) -> 2024 | I208: =$G$160-1 -> 2023 | K208: =$G$160-2 -> 2022
G209: =Setup!$C$6 -> R | I209: =Setup!$C$6 -> R | K209: =Setup!$C$6 -> R
B210: ASSETS
B212: Non-current assets
B213: Property, plant & equipment | E213: =$A$440 -> 6 | G213: =I461 -> 3548797 | I213: =C461 -> 3494827 | K213: =K461 -> 3780377
B214: Investments | E214: =$A$467 -> 7 | G214: =G472 -> 650000 | I214: =I472 -> 600000 | K214: =K472 -> 300000
G215: =SUM(OFFSET(G212,0,0,ROW($B215)-ROW($B212),1)) -> 4198797 | I215: =SUM(OFFSET(I212,0,0,ROW($B215)-ROW($B212),1)) -> 4094827 | K215: =SUM(OFFSET(K212,0,0,ROW($B215)-ROW($B212),1)) -> 4080377
B217: Current assets
B218: Inventories | E218: =$A$483 -> 8 | G218: =G489 -> 352913 | I218: =I489 -> 313745 | K218: =K489 -> 248196
B219: Trade and other receivables | E219: =$A$491 -> 9 | G219: =G499 -> 791915 | I219: =I499 -> 685521 | K219: =K499 -> 508859
B220: Cash and cash equivalents | E220: =$A$501 -> 10 | G220: =G506 -> 494454 | I220: =I506 -> 565583 | K220: =K506 -> 188624
G221: =SUM(OFFSET(G217,0,0,ROW($B221)-ROW($B217),1)) -> 1639282 | I221: =SUM(OFFSET(I217,0,0,ROW($B221)-ROW($B217),1)) -> 1564849 | K221: =SUM(OFFSET(K217,0,0,ROW($B221)-ROW($B217),1)) -> 945679
B222: Total assets | G222: =SUM(G215,G221) -> 5838079 | I222: =SUM(I215,I221) -> 5659676 | K222: =SUM(K215,K221) -> 5026056
B224: EQUITY & LIABILITIES
B226: Equity
B227: Reserves | E227: =$A$512 -> 11 | G227: =G515 -> 900000 | I227: =I515 -> 300000 | K227: =K515 -> 0
B228: Retained surplus | G228: =G202 -> 2727100 | I228: =I202 -> 2706585 | K228: =IF(ISNA(MATCH($K$208,TBYears,0)),0,$I$200) -> 2705751
G229: =SUM(OFFSET(G226,0,0,ROW($B229)-ROW($B226),1)) -> 3627100 | I229: =SUM(OFFSET(I226,0,0,ROW($B229)-ROW($B226),1)) -> 3006585 | K229: =SUM(OFFSET(K226,0,0,ROW($B229)-ROW($B226),1)) -> 2705751
B231: Non-current liabilities
B232: Long term loans | E232: =$A$523 -> 12 | G232: =G529 -> 563772 | I232: =I529 -> 1265992 | K232: =K529 -> 1101104
B233: Finance leases | E233: =$A$537 -> 13 | G233: =G550 -> 339151 | I233: =I550 -> 76852 | K233: =K550 -> 146420
G234: =SUM(OFFSET(G231,0,0,ROW($B234)-ROW($B231),1)) -> 902923 | I234: =SUM(OFFSET(I231,0,0,ROW($B234)-ROW($B231),1)) -> 1342844 | K234: =SUM(OFFSET(K231,0,0,ROW($B234)-ROW($B231),1)) -> 1247524
B236: Current liabilities
B237: Short term loans | E237: =$A$523 -> 12 | G237: =G533 -> 702220 | I237: =I533 -> 701693 | K237: =K533 -> 545076
B238: Current portion of finance leases | E238: =$A$537 -> 13 | G238: =G549 -> 77089 | I238: =I549 -> 69568 | K238: =K549 -> 62974
B239: Bank overdraft | E239: =$A$501 -> 10 | G239: =-G507 -> 0 | I239: =-I507 -> 0 | K239: =-K507 -> 0
B240: Trade payables | E240: =$A$572 -> 15 | G240: =G579 -> 297739 | I240: =I579 -> 306420 | K240: =K579 -> 238033
B241: Provisions | E241: =$A$581 -> 16 | G241: =I588 -> 214823 | I241: =C588 -> 214870 | K241: =K588 -> 211637
A242: B-1310G | B242: =IF(OR(LEFT($A242,1)="F",LEFT($A242,1)="E"),IF(ISNA(VLOOKUP($A242,FinData,COLUMN(FinInfo!$C$4)-1,0)),"Add to FinInfo sheet!",VLOOKUP($A242,FinData,COLUMN(FinInfo!$C$4)-1,0)),IF(ISNA(VLOOKUP($A242,ClassAll,COLUMN(Classes!$B$4),0)),"No class!",VLOOKUP($A242,ClassAll,COLUMN(Classes!$B$4),0))) -> Interest payable | G242: =-IF(OR(LEFT($A242,1)="F",LEFT($A242,1)="E"),IF(ISNA(SUMIF(FinData,$A242,FinCYData)),0,SUMIF(FinData,$A242,FinCYData)),IF(ISNA(SUMIF(TBData,$A242&"*",TBCYData)),0,SUMIF(TBData,$A242&"*",TBCYData))-IF(LEFT($A242,1)="I",IF(ISNA(SUMIF(FinData,"E"&MID($A242,2,LEN($A242)-2)&"G*",FinCYData)),0,SUMIF(FinData,"E"&MID($A242,2,LEN($A242)-2)&"G*",FinCYData)),IF(ISNA(SUMIF(FinData,"F"&MID($A242,2,LEN($A242)-2)&"G*",FinCYData)),0,SUMIF(FinData,"F"&MID($A242,2,LEN($A242)-2)&"G*",FinCYData)))) -> 16185 | I242: =-IF(OR(LEFT($A242,1)="F",LEFT($A242,1)="E"),IF(ISNA(SUMIF(FinData,$A242,FinPYData)),0,SUMIF(FinData,$A242,FinPYData)),IF(ISNA(SUMIF(TBData,$A242&"*",TBPYData)),0,SUMIF(TBData,$A242&"*",TBPYData))-IF(LEFT($A242,1)="I",IF(ISNA(SUMIF(FinData,"E"&MID($A242,2,LEN($A242)-2)&"G*",FinPYData)),0,SUMIF(FinData,"E"&MID($A242,2,LEN($A242)-2)&"G*",FinPYData)),IF(ISNA(SUMIF(FinData,"F"&MID($A242,2,LEN($A242)-2)&"G*",FinPYData)),0,SUMIF(FinData,"F"&MID($A242,2,LEN($A242)-2)&"G*",FinPYData)))) -> 17696 | K242: =-IF(OR(LEFT($A242,1)="F",LEFT($A242,1)="E"),IF(ISNA(SUMIF(FinData,$A242,FinP2Data)),0,SUMIF(FinData,$A242,FinP2Data)),IF(ISNA(SUMIF(TBData,$A242,TBP2Data)),0,SUMIF(TBData,$A242,TBP2Data))-IF(LEFT($A242,1)="I",IF(ISNA(SUMIF(FinData,"E"&MID($A242,2,LEN($A242)-2)&"G*",FinP2Data)),0,SUMIF(FinData,"E"&MID($A242,2,LEN($A242)-2)&"G*",FinP2Data)),IF(ISNA(SUMIF(FinData,"F"&MID($A242,2,LEN($A242)-2)&"G*",FinP2Data)),0,SUMIF(FinData,"F"&MID($A242,2,LEN($A242)-2)&"G*",FinP2Data)))) -> 15061
A243: B-15G | B243: =IF(OR(LEFT($A243,1)="F",LEFT($A243,1)="E"),IF(ISNA(VLOOKUP($A243,FinData,COLUMN(FinInfo!$C$4)-1,0)),"Add to FinInfo sheet!",VLOOKUP($A243,FinData,COLUMN(FinInfo!$C$4)-1,0)),IF(ISNA(VLOOKUP($A243,ClassAll,COLUMN(Classes!$B$4),0)),"No class!",VLOOKUP($A243,ClassAll,COLUMN(Classes!$B$4),0))) -> Provision for taxation | G243: =-IF(OR(LEFT($A243,1)="F",LEFT($A243,1)="E"),IF(ISNA(SUMIF(FinData,$A243,FinCYData)),0,SUMIF(FinData,$A243,FinCYData)),IF(ISNA(SUMIF(TBData,$A243&"*",TBCYData)),0,SUMIF(TBData,$A243&"*",TBCYData))-IF(LEFT($A243,1)="I",IF(ISNA(SUMIF(FinData,"E"&MID($A243,2,LEN($A243)-2)&"G*",FinCYData)),0,SUMIF(FinData,"E"&MID($A243,2,LEN($A243)-2)&"G*",FinCYData)),IF(ISNA(SUMIF(FinData,"F"&MID($A243,2,LEN($A243)-2)&"G*",FinCYData)),0,SUMIF(FinData,"F"&MID($A243,2,LEN($A243)-2)&"G*",FinCYData)))) -> 0 | I243: =-IF(OR(LEFT($A243,1)="F",LEFT($A243,1)="E"),IF(ISNA(SUMIF(FinData,$A243,FinPYData)),0,SUMIF(FinData,$A243,FinPYData)),IF(ISNA(SUMIF(TBData,$A243&"*",TBPYData)),0,SUMIF(TBData,$A243&"*",TBPYData))-IF(LEFT($A243,1)="I",IF(ISNA(SUMIF(FinData,"E"&MID($A243,2,LEN($A243)-2)&"G*",FinPYData)),0,SUMIF(FinData,"E"&MID($A243,2,LEN($A243)-2)&"G*",FinPYData)),IF(ISNA(SUMIF(FinData,"F"&MID($A243,2,LEN($A243)-2)&"G*",FinPYData)),0,SUMIF(FinData,"F"&MID($A243,2,LEN($A243)-2)&"G*",FinPYData)))) -> 0 | K243: =-IF(OR(LEFT($A243,1)="F",LEFT($A243,1)="E"),IF(ISNA(SUMIF(FinData,$A243,FinP2Data)),0,SUMIF(FinData,$A243,FinP2Data)),IF(ISNA(SUMIF(TBData,$A243,TBP2Data)),0,SUMIF(TBData,$A243,TBP2Data))-IF(LEFT($A243,1)="I",IF(ISNA(SUMIF(FinData,"E"&MID($A243,2,LEN($A243)-2)&"G*",FinP2Data)),0,SUMIF(FinData,"E"&MID($A243,2,LEN($A243)-2)&"G*",FinP2Data)),IF(ISNA(SUMIF(FinData,"F"&MID($A243,2,LEN($A243)-2)&"G*",FinP2Data)),0,SUMIF(FinData,"F"&MID($A243,2,LEN($A243)-2)&"G*",FinP2Data)))) -> 0
G244: =SUM(OFFSET(G236,0,0,ROW($B244)-ROW($B236),1)) -> 1308056 | I244: =SUM(OFFSET(I236,0,0,ROW($B244)-ROW($B236),1)) -> 1310247 | K244: =SUM(OFFSET(K236,0,0,ROW($B244)-ROW($B236),1)) -> 1072781
B245: Total liabilities | G245: =SUM(G234,G244) -> 2210979 | I245: =SUM(I234,I244) -> 2653091 | K245: =SUM(K234,K244) -> 2320305
B246: Total equity & liabilities | G246: =SUM(G229,G245) -> 5838079 | I246: =SUM(I229,I245) -> 5659676 | K246: =SUM(K229,K245) -> 5026056
B248: =Setup!$A$1 -> Example NPC
B249: Statement of changes in equity
B250: ="for the year ended "&Setup!$F$12 -> for the year ended 29 February 2024
E252: Reserves | G252: Retained Surplus | I252: Total
E253: =Setup!$C$6 -> R | G253: =Setup!$C$6 -> R | I253: =Setup!$C$6 -> R
B255: ="At "&TEXT(DATE(YEAR(Setup!$B$12)-2,MONTH(Setup!$B$12)+1,1),"dd mmmm yyyy") -> At 01 March 2022 | E255: =K227 -> 0 | G255: =I200 -> 2705751 | I255: =SUM(C255:H255) -> 2705751 | K255: Note: If you do not need Reserves, you can just delete it or format in white text
K256: if you may need it later
B257: Surplus / (Deficit) for the year | E257: 0 | G257: =I199 -> 834 | I257: =SUM(C257:H257) -> 834
B259: Movement in reserves | E259: =I227-K227 -> 300000 | G259: 0 | I259: =SUM(C259:H259) -> 300000
B261: ="At "&TEXT(DATE(YEAR(Setup!$B$12)-1,MONTH(Setup!$B$12)+1,0),"dd mmmm yyyy") -> At 28 February 2023 | E261: =SUM(E255:E260) -> 300000 | G261: =SUM(G255:G260) -> 2706585 | I261: =SUM(C261:H261) -> 3006585
B263: Surplus / (Deficit) for the year | E263: 0 | G263: =G199 -> 20515 | I263: =SUM(C263:H263) -> 20515
B265: Movement in reserves | E265: =G227-I227 -> 600000 | G265: 0 | I265: =SUM(C265:H265) -> 600000
B267: ="At "&Setup!$F$12 -> At 29 February 2024 | E267: =SUM(E261:E266) -> 900000 | G267: =SUM(G261:G266) -> 2727100 | I267: =SUM(C267:H267) -> 3627100
B269: =Setup!$A$1 -> Example NPC
B270: Statement of cash flows
B271: ="for the year ended "&Setup!$F$12 -> for the year ended 29 February 2024
E273: Notes | G273: =YEAR(Setup!$B$12) -> 2024 | I273: =$G$160-1 -> 2023
G274: =Setup!$C$6 -> R | I274: =Setup!$C$6 -> R
B275: Cash flows from operating activities
B276: Surplus / (Deficit) for the year | G276: =G199 -> 20515 | I276: =I199 -> 834
B277: ="- Finance costs" -> - Finance costs | G277: =-G196 -> 194222 | I277: =-I196 -> 212354
B278: ="- Income taxes" -> - Income taxes | G278: =-G198 -> 0 | I278: =-I198 -> 0
B279: ="- Interest received" -> - Interest received | G279: =-G399-G400-G401 -> -5100 | I279: =-I399-I400-I401 -> -4562
B280: ="- Dividends received" -> - Dividends received | G280: =-G398 -> -4065 | I280: =-I398 -> -3050
B281: Adjustments for non-cash income and expenses:
B282: ="- Depreciation" -> - Depreciation | G282: =E459 -> 563280 | I282: =-O455 -> 500300
B283: ="- (Fair value gains) / Impairment losses" -> - (Fair value gains) / Impairment losses | G283: =-(N444+N454) -> 100000 | I283: =-(O444+O454) -> 0
B284: ="- Increase / (Decrease) in provisions" -> - Increase / (Decrease) in provisions | G284: =G241-I241 -> -47 | I284: =I241-K241 -> 3233
B285: ="- Increase / (Decrease) in reserves" -> - Increase / (Decrease) in reserves | G285: =G227-I227 -> 600000 | I285: =I227-K227 -> 300000
B286: ="- Prior year adjustments" -> - Prior year adjustments | G286: =G201 -> 0 | I286: =I201 -> 0
B287: Cash flow included in investing activities:
B288: ="- (Gains) / Losses on sale of equipment" -> - (Gains) / Losses on sale of equipment | G288: =G420-G402 -> -48250 | I288: =I420-I402 -> -18000
B289: Changes in operating assets and liabilities:
B290: ="- Decrease / (Increase) in trade and other receivables" -> - Decrease / (Increase) in trade and other receivables | G290: =I219-G219 -> -106394 | I290: =K219-I219 -> -176662
B291: ="- Decrease / (Increase) in inventories" -> - Decrease / (Increase) in inventories | G291: =I218-G218 -> -39168 | I291: =K218-I218 -> -65549
B292: ="- Increase / (Decrease) in trade and other payables" -> - Increase / (Decrease) in trade and other payables | G292: =G240-I240 -> -8681 | I292: =I240-K240 -> 68387
B293: Cash generated from operations | G293: =SUM(OFFSET(G275,0,0,ROW($B293)-ROW($B275),1)) -> 1266312 | I293: =SUM(OFFSET(I275,0,0,ROW($B293)-ROW($B275),1)) -> 817285
B294: Interest paid | G294: =-(I242-G196-G242) -> -195733 | I294: =-(K242-I196-I242) -> -209719
B295: Income tax paid | G295: =-(I243-G426-G243) -> 0 | I295: =-(K243-I426-I243) -> 0
B296: Net cash from operating activities | G296: =SUM(G293:G295) -> 1070579 | I296: =SUM(I293:I295) -> 607566
B298: Cash flows from investing activities
B299: Proceeds from sale of property, plant & equipment | G299: =-(N443+N453)+G402-G420 -> 88000 | I299: =-(O443+O453)+I402-I420 -> 78000
A300: F-LEASENEW | B300: Purchases of property, plant & equipment | G300: =-E449+IF(ISNA(SUMIF(FinData,$A300,FinCYData)),0,SUMIF(FinData,$A300,FinCYData)) -> -457000 | I300: =K449-C449+O443+O444+IF(ISNA(SUMIF(FinData,$A300,FinPYData)),0,SUMIF(FinData,$A300,FinPYData)) -> -274750
... 231 more rows

Sheet TBImport
A1: =IF(ISBLANK(Setup!$B$4),"Example (Pty) Limited",Setup!$B$4) -> Example NPC
A2: Trial Balance Sequence & Rounding
A3: © www.excel-skills.com | E3: =SUBTOTAL(9,OFFSET($E$4,1,0,1000,1)) -> 0 | F3: =IF(E3<>0,"Error! Rounded TB values in column E do not balance.","ok") -> ok
A4: Acc No | B4: Account Description | C4: Amount | D4: Check | E4: Amount
A5: BS-0005 | B5: Land & Buildings - Cost | C5: 2400000 | D5: =IF(OFFSET(TB!$C$4,ROW($A5)-ROW($A$4),0,1,1)=$A5,"ok","error!") -> ok | E5: =ROUND(C5,0) -> 2400000
A6: BS-0010 | B6: Plant & Equipment - Cost | C6: 1546045 | D6: =IF(OFFSET(TB!$C$4,ROW($A6)-ROW($A$4),0,1,1)=$A6,"ok","error!") -> ok | E6: =ROUND(C6,0) -> 1546045
A7: BS-0015 | B7: Furniture & Fittings - Cost | C7: 410000 | D7: =IF(OFFSET(TB!$C$4,ROW($A7)-ROW($A$4),0,1,1)=$A7,"ok","error!") -> ok | E7: 410000
A8: BS-0020 | B8: Office Equipment - Cost | C8: 240000 | D8: =IF(OFFSET(TB!$C$4,ROW($A8)-ROW($A$4),0,1,1)=$A8,"ok","error!") -> ok | E8: 240000
A9: BS-0025 | B9: Computer Equipment - Cost | C9: 165500 | D9: =IF(OFFSET(TB!$C$4,ROW($A9)-ROW($A$4),0,1,1)=$A9,"ok","error!") -> ok | E9: 165500
A10: BS-0030 | B10: Motor Vehicles - Cost | C10: 452000 | D10: =IF(OFFSET(TB!$C$4,ROW($A10)-ROW($A$4),0,1,1)=$A10,"ok","error!") -> ok | E10: 452000
A11: BS-0105 | B11: Land & Buildings - Accum Depreciation | C11: 0 | D11: =IF(OFFSET(TB!$C$4,ROW($A11)-ROW($A$4),0,1,1)=$A11,"ok","error!") -> ok | E11: 0
A12: BS-0110 | B12: Plant & Equipment - Accum Depreciation | C12: -1051018 | D12: =IF(OFFSET(TB!$C$4,ROW($A12)-ROW($A$4),0,1,1)=$A12,"ok","error!") -> ok | E12: -1051018
A13: BS-0115 | B13: Furniture & Fittings - Accum Depreciation | C13: -224700 | D13: =IF(OFFSET(TB!$C$4,ROW($A13)-ROW($A$4),0,1,1)=$A13,"ok","error!") -> ok | E13: -224700
A14: BS-0120 | B14: Office Equipment - Accum Depreciation | C14: -186980 | D14: =IF(OFFSET(TB!$C$4,ROW($A14)-ROW($A$4),0,1,1)=$A14,"ok","error!") -> ok | E14: -186980
A15: BS-0125 | B15: Computer Equipment - Accum Depreciation | C15: -145550 | D15: =IF(OFFSET(TB!$C$4,ROW($A15)-ROW($A$4),0,1,1)=$A15,"ok","error!") -> ok | E15: -145550
A16: BS-0130 | B16: Motor Vehicles - Accum Depreciation | C16: -56500 | D16: =IF(OFFSET(TB!$C$4,ROW($A16)-ROW($A$4),0,1,1)=$A16,"ok","error!") -> ok | E16: -56500
A17: BS-0400 | B17: Fixed Deposit - Bank One | C17: 300000 | D17: =IF(OFFSET(TB!$C$4,ROW($A17)-ROW($A$4),0,1,1)=$A17,"ok","error!") -> ok | E17: 300000
A18: BS-0405 | B18: Fixed Deposit - Bank Two | C18: 350000 | D18: =IF(OFFSET(TB!$C$4,ROW($A18)-ROW($A$4),0,1,1)=$A18,"ok","error!") -> ok | E18: 350000
A19: BS-0500 | B19: Loans & Advances | C19: 199836 | D19: =IF(OFFSET(TB!$C$4,ROW($A19)-ROW($A$4),0,1,1)=$A19,"ok","error!") -> ok | E19: 199836
A20: BS-0700 | B20: Cash On Hand | C20: 0 | D20: =IF(OFFSET(TB!$C$4,ROW($A20)-ROW($A$4),0,1,1)=$A20,"ok","error!") -> ok | E20: 0
A21: BS-0799 | B21: Cash Transfer Control | C21: 0 | D21: =IF(OFFSET(TB!$C$4,ROW($A21)-ROW($A$4),0,1,1)=$A21,"ok","error!") -> ok | E21: 0
A22: BS-0900 | B22: Other Debtors | C22: 0 | D22: =IF(OFFSET(TB!$C$4,ROW($A22)-ROW($A$4),0,1,1)=$A22,"ok","error!") -> ok | E22: 0
A23: BS-0905 | B23: Prepayments | C23: 24000 | D23: =IF(OFFSET(TB!$C$4,ROW($A23)-ROW($A$4),0,1,1)=$A23,"ok","error!") -> ok | E23: 24000
A24: BS-1001 | B24: Raw Materials | C24: 85200 | D24: =IF(OFFSET(TB!$C$4,ROW($A24)-ROW($A$4),0,1,1)=$A24,"ok","error!") -> ok | E24: =ROUND(C24,0) -> 85200
A25: BS-1002 | B25: Work in progress | C25: 22653 | D25: =IF(OFFSET(TB!$C$4,ROW($A25)-ROW($A$4),0,1,1)=$A25,"ok","error!") -> ok | E25: 22653
A26: BS-1003 | B26: Finished goods | C26: 0 | D26: =IF(OFFSET(TB!$C$4,ROW($A26)-ROW($A$4),0,1,1)=$A26,"ok","error!") -> ok | E26: 0
A27: BS-1100 | B27: Bank Overdraft | C27: 0 | D27: =IF(OFFSET(TB!$C$4,ROW($A27)-ROW($A$4),0,1,1)=$A27,"ok","error!") -> ok | E27: 0
A28: BS-1300 | B28: Accruals | C28: -90365 | D28: =IF(OFFSET(TB!$C$4,ROW($A28)-ROW($A$4),0,1,1)=$A28,"ok","error!") -> ok | E28: -90365
A29: BS-1305 | B29: Payroll Accruals | C29: -20572 | D29: =IF(OFFSET(TB!$C$4,ROW($A29)-ROW($A$4),0,1,1)=$A29,"ok","error!") -> ok | E29: -20572
A30: BS-1310 | B30: Interest Payable | C30: -16185 | D30: =IF(OFFSET(TB!$C$4,ROW($A30)-ROW($A$4),0,1,1)=$A30,"ok","error!") -> ok | E30: =ROUND(C30,0) -> -16185
A31: BS-1505 | B31: Provision For Taxation | C31: 0 | D31: =IF(OFFSET(TB!$C$4,ROW($A31)-ROW($A$4),0,1,1)=$A31,"ok","error!") -> ok | E31: 0
A32: BS-1610 | B32: Other provisions | C32: -214823 | D32: =IF(OFFSET(TB!$C$4,ROW($A32)-ROW($A$4),0,1,1)=$A32,"ok","error!") -> ok | E32: -214823
A33: BS-1700 | B33: Sales Tax Control | C33: 0 | D33: =IF(OFFSET(TB!$C$4,ROW($A33)-ROW($A$4),0,1,1)=$A33,"ok","error!") -> ok | E33: 0
A34: BS-1805 | B34: Loan - Bank One | C34: -604187 | D34: =IF(OFFSET(TB!$C$4,ROW($A34)-ROW($A$4),0,1,1)=$A34,"ok","error!") -> ok | E34: -604187
A35: BS-1810 | B35: Loan - Bank Two | C35: -661805 | D35: =IF(OFFSET(TB!$C$4,ROW($A35)-ROW($A$4),0,1,1)=$A35,"ok","error!") -> ok | E35: -661805
A36: BS-1815 | B36: Finance Leases | C36: -416240 | D36: =IF(OFFSET(TB!$C$4,ROW($A36)-ROW($A$4),0,1,1)=$A36,"ok","error!") -> ok | E36: -416240
A37: BS-1900 | B37: Reserves | C37: -900000 | D37: =IF(OFFSET(TB!$C$4,ROW($A37)-ROW($A$4),0,1,1)=$A37,"ok","error!") -> ok | E37: -900000
A38: IS-0105 | B38: Donations | C38: -2370245 | D38: =IF(OFFSET(TB!$C$4,ROW($A38)-ROW($A$4),0,1,1)=$A38,"ok","error!") -> ok | E38: -2370245
A39: IS-0110 | B39: Fund Raising | C39: -1541378 | D39: =IF(OFFSET(TB!$C$4,ROW($A39)-ROW($A$4),0,1,1)=$A39,"ok","error!") -> ok | E39: -1541378
A40: IS-0105 | B40: Government Grants | C40: -1800000 | D40: =IF(OFFSET(TB!$C$4,ROW($A40)-ROW($A$4),0,1,1)=$A40,"ok","error!") -> ok | E40: -1800000
A41: IS-0105 | B41: Other Grants | C41: -90000 | D41: =IF(OFFSET(TB!$C$4,ROW($A41)-ROW($A$4),0,1,1)=$A41,"ok","error!") -> ok | E41: -90000
A42: IS-0305 | B42: Accounting Fees | C42: 24000 | D42: =IF(OFFSET(TB!$C$4,ROW($A42)-ROW($A$4),0,1,1)=$A42,"ok","error!") -> ok | E42: =ROUND(C42,0) -> 24000
A43: IS-0310 | B43: Advertising & Marketing | C43: 143644 | D43: =IF(OFFSET(TB!$C$4,ROW($A43)-ROW($A$4),0,1,1)=$A43,"ok","error!") -> ok | E43: 143644
A44: IS-0315 | B44: Bank Charges | C44: 1180 | D44: =IF(OFFSET(TB!$C$4,ROW($A44)-ROW($A$4),0,1,1)=$A44,"ok","error!") -> ok | E44: 1180
A45: IS-0320 | B45: Commission | C45: 27850 | D45: =IF(OFFSET(TB!$C$4,ROW($A45)-ROW($A$4),0,1,1)=$A45,"ok","error!") -> ok | E45: 27850
A46: IS-0325 | B46: Computer Expenses | C46: 3477 | D46: =IF(OFFSET(TB!$C$4,ROW($A46)-ROW($A$4),0,1,1)=$A46,"ok","error!") -> ok | E46: =ROUND(C46,0) -> 3477
A47: IS-0330 | B47: Consumables & Cleaning | C47: 2500 | D47: =IF(OFFSET(TB!$C$4,ROW($A47)-ROW($A$4),0,1,1)=$A47,"ok","error!") -> ok | E47: 2500
A48: IS-0335 | B48: Entertainment | C48: 12420 | D48: =IF(OFFSET(TB!$C$4,ROW($A48)-ROW($A$4),0,1,1)=$A48,"ok","error!") -> ok | E48: 12420
A49: IS-0340 | B49: Insurance | C49: 3840 | D49: =IF(OFFSET(TB!$C$4,ROW($A49)-ROW($A$4),0,1,1)=$A49,"ok","error!") -> ok | E49: 3840
A50: IS-0345 | B50: Office Expenses | C50: 996 | D50: =IF(OFFSET(TB!$C$4,ROW($A50)-ROW($A$4),0,1,1)=$A50,"ok","error!") -> ok | E50: 996
A51: IS-0350 | B51: Office Rent | C51: 244000 | D51: =IF(OFFSET(TB!$C$4,ROW($A51)-ROW($A$4),0,1,1)=$A51,"ok","error!") -> ok | E51: 244000
A52: IS-0355 | B52: Postage | C52: 524 | D52: =IF(OFFSET(TB!$C$4,ROW($A52)-ROW($A$4),0,1,1)=$A52,"ok","error!") -> ok | E52: 524
A53: IS-0360 | B53: Professional & Legal Fees | C53: 5652 | D53: =IF(OFFSET(TB!$C$4,ROW($A53)-ROW($A$4),0,1,1)=$A53,"ok","error!") -> ok | E53: 5652
A54: IS-0365 | B54: Stationery | C54: 2491 | D54: =IF(OFFSET(TB!$C$4,ROW($A54)-ROW($A$4),0,1,1)=$A54,"ok","error!") -> ok | E54: 2491
A55: IS-0370 | B55: Subscriptions & Memberships | C55: 5200 | D55: =IF(OFFSET(TB!$C$4,ROW($A55)-ROW($A$4),0,1,1)=$A55,"ok","error!") -> ok | E55: 5200
A56: IS-0375 | B56: Telephone & Internet | C56: 8867 | D56: =IF(OFFSET(TB!$C$4,ROW($A56)-ROW($A$4),0,1,1)=$A56,"ok","error!") -> ok | E56: 8867
A57: IS-0380 | B57: Training | C57: 2200043 | D57: =IF(OFFSET(TB!$C$4,ROW($A57)-ROW($A$4),0,1,1)=$A57,"ok","error!") -> ok | E57: 2200043
A58: IS-0385 | B58: Travelling & Accommodation | C58: 13705 | D58: =IF(OFFSET(TB!$C$4,ROW($A58)-ROW($A$4),0,1,1)=$A58,"ok","error!") -> ok | E58: 13705
A59: IS-0390 | B59: Utilities | C59: 6540 | D59: =IF(OFFSET(TB!$C$4,ROW($A59)-ROW($A$4),0,1,1)=$A59,"ok","error!") -> ok | E59: 6540
A60: IS-0405 | B60: Salaries & Wages - Staff | C60: 1248600 | D60: =IF(OFFSET(TB!$C$4,ROW($A60)-ROW($A$4),0,1,1)=$A60,"ok","error!") -> ok | E60: 1248600
A61: IS-0410 | B61: Salaries & Wages - Management | C61: 1085720 | D61: =IF(OFFSET(TB!$C$4,ROW($A61)-ROW($A$4),0,1,1)=$A61,"ok","error!") -> ok | E61: 1085720
A62: IS-0505 | B62: Depreciation | C62: 513280 | D62: =IF(OFFSET(TB!$C$4,ROW($A62)-ROW($A$4),0,1,1)=$A62,"ok","error!") -> ok | E62: 513280
A63: IS-0605 | B63: Interest Paid | C63: 194222 | D63: =IF(OFFSET(TB!$C$4,ROW($A63)-ROW($A$4),0,1,1)=$A63,"ok","error!") -> ok | E63: 194222
A64: IS-0700 | B64: Taxation | C64: 0 | D64: =IF(OFFSET(TB!$C$4,ROW($A64)-ROW($A$4),0,1,1)=$A64,"ok","error!") -> ok | E64: 0
A65: IS-0800 | B65: Other Expenses | C65: 125362 | D65: =IF(OFFSET(TB!$C$4,ROW($A65)-ROW($A$4),0,1,1)=$A65,"ok","error!") -> ok | E65: 125362
A66: IS-0805 | B66: Foreign Exchange Loss | C66: 6260 | D66: =IF(OFFSET(TB!$C$4,ROW($A66)-ROW($A$4),0,1,1)=$A66,"ok","error!") -> ok | E66: 6260
A67: IS-0810 | B67: Loss on Disposal of Assets | C67: 0 | D67: =IF(OFFSET(TB!$C$4,ROW($A67)-ROW($A$4),0,1,1)=$A67,"ok","error!") -> ok | E67: 0
A68: IS-0900 | B68: Other Income | C68: -41850 | D68: =IF(OFFSET(TB!$C$4,ROW($A68)-ROW($A$4),0,1,1)=$A68,"ok","error!") -> ok | E68: -41850
A69: IS-0905 | B69: Dividends Received | C69: -4065 | D69: =IF(OFFSET(TB!$C$4,ROW($A69)-ROW($A$4),0,1,1)=$A69,"ok","error!") -> ok | E69: -4065
A70: IS-0910 | B70: Profit on Disposal of Assets | C70: -48250 | D70: =IF(OFFSET(TB!$C$4,ROW($A70)-ROW($A$4),0,1,1)=$A70,"ok","error!") -> ok | E70: -48250
A71: IS-0915 | B71: Interest Received | C71: -5100 | D71: =IF(OFFSET(TB!$C$4,ROW($A71)-ROW($A$4),0,1,1)=$A71,"ok","error!") -> ok | E71: -5100
A72: BS-BB1 | B72: B1 Bank Account | C72: 447563 | D72: =IF(OFFSET(TB!$C$4,ROW($A72)-ROW($A$4),0,1,1)=$A72,"ok","error!") -> ok | E72: 447563
A73: BS-BB2 | B73: B2 Bank Account | C73: 40691 | D73: =IF(OFFSET(TB!$C$4,ROW($A73)-ROW($A$4),0,1,1)=$A73,"ok","error!") -> ok | E73: 40691
A74: BS-BB3 | B74: B3 Bank Account | C74: 5200 | D74: =IF(OFFSET(TB!$C$4,ROW($A74)-ROW($A$4),0,1,1)=$A74,"ok","error!") -> ok | E74: 5200
A75: BS-BPC | B75: PC Petty Cash | C75: 1000 | D75: =IF(OFFSET(TB!$C$4,ROW($A75)-ROW($A$4),0,1,1)=$A75,"ok","error!") -> ok | E75: 1000
A76: BS-BJC | B76: GL Journal Control | C76: 0 | D76: =IF(OFFSET(TB!$C$4,ROW($A76)-ROW($A$4),0,1,1)=$A76,"ok","error!") -> ok | E76: 0
A77: BS-STG | B77: Inventory | C77: 245060 | D77: =IF(OFFSET(TB!$C$4,ROW($A77)-ROW($A$4),0,1,1)=$A77,"ok","error!") -> ok | E77: 245060
A78: BS-RCG | B78: Trade Debtors | C78: 568079 | D78: =IF(OFFSET(TB!$C$4,ROW($A78)-ROW($A$4),0,1,1)=$A78,"ok","error!") -> ok | E78: 568079
A79: BS-PAG | B79: Trade Creditors | C79: -186802 | D79: =IF(OFFSET(TB!$C$4,ROW($A79)-ROW($A$4),0,1,1)=$A79,"ok","error!") -> ok | E79: -186802
A80: BS-RTG | B80: Retained Surplus | C80: -2706585 | D80: =IF(OFFSET(TB!$C$4,ROW($A80)-ROW($A$4),0,1,1)=$A80,"ok","error!") -> ok | E80: =ROUND(C80,0) -> -2706585
